Workbook

Sheet Display
F2: CQG iShares Russell 1000® Growth ETF Performance | AB2: =RTD("cqg.rtd", ,"SystemInfo", "Linetime") -> 42879.55944
B5: Exchange Traded Funds Performance | S5: Top 15 Performing Companies
B6: Symbol | C6: Description | H6: Last | I6: NC | J6: %NC | K6: NC/ATR | L6: Open | M6: High | N6: Low | O6: Volume | Q6: Ratio
B7: IWF | C7: =RTD("cqg.rtd", ,"ContractData",B7, "LongDescription",, "T") -> iShares Russell 1000 Growth ETF | H7: =RTD("cqg.rtd", ,"ContractData",B7, "LastTradeToday",, "T") -> 118.19 | I7: =RTD("cqg.rtd", ,"ContractData",B7, "NetLastTradeToday",, "T") -> 0.39 | J7: =RTD("cqg.rtd", ,"ContractData",B7, "PerCentNetLastTrade",, "T")/100 -> 0.003310696095 | K7: =I7/RTD("cqg.rtd",,"StudyData",B7, "ATR", "MaType=Sim,Period=10", "ATR","D","-1","ALL",,,"FALSE","T")/100 -> 0.004761904762 | L7: =RTD("cqg.rtd", ,"ContractData",B7, "OPen",, "T") -> 117.98 | M7: =RTD("cqg.rtd", ,"ContractData", B7, "HIgh",, "T") -> 118.23 | N7: =RTD("cqg.rtd", ,"ContractData",B7, "LOw",, "T") -> 117.8 | O7: =RTD("cqg.rtd", ,"ContractData",B7, "T_CVol",, "T") -> 470038 | Q7: =IFERROR(O7/RTD("cqg.rtd",,"StudyData",B7, "MA", "InputChoice=Vol,MAType=Sim,Period=21", "MA","D","-1","all",,,,"T"),"") -> 0.3449984529
B8: SPY | C8: =RTD("cqg.rtd", ,"ContractData",B8, "LongDescription",, "T") -> SPDR S&P 500 | H8: =RTD("cqg.rtd", ,"ContractData",B8, "LastTradeToday",, "T") -> 240.38 | I8: =RTD("cqg.rtd", ,"ContractData",B8, "NetLastTradeToday",, "T") -> 0.33 | J8: =RTD("cqg.rtd", ,"ContractData",B8, "PerCentNetLastTrade",, "T")/100 -> 0.001374713601 | K8: =I8/RTD("cqg.rtd",,"StudyData",B8, "ATR", "MaType=Sim,Period=10", "ATR","D","-1","ALL",,,"FALSE","T")/100 -> 0.001966626937 | L8: =RTD("cqg.rtd", ,"ContractData",B8, "OPen",, "T") -> 240.32 | M8: =RTD("cqg.rtd", ,"ContractData", B8, "HIgh",, "T") -> 240.53 | N8: =RTD("cqg.rtd", ,"ContractData",B8, "LOw",, "T") -> 239.93 | O8: =RTD("cqg.rtd", ,"ContractData",B8, "T_CVol",, "T") -> 22799374 | Q8: =IFERROR(O8/RTD("cqg.rtd",,"StudyData",B8, "MA", "InputChoice=Vol,MAType=Sim,Period=21", "MA","D","-1","all",,,,"T"),"") -> 0.3218744767
B9: XLF | C9: =RTD("cqg.rtd", ,"ContractData",B9, "LongDescription",, "T") -> Financial Select Sector SPDR | H9: =RTD("cqg.rtd", ,"ContractData",B9, "LastTradeToday",, "T") -> 23.53 | I9: =RTD("cqg.rtd", ,"ContractData",B9, "NetLastTradeToday",, "T") -> -0.06 | J9: =RTD("cqg.rtd", ,"ContractData",B9, "PerCentNetLastTrade",, "T")/100 -> -0.002543450615 | K9: =I9/RTD("cqg.rtd",,"StudyData",B9, "ATR", "MaType=Sim,Period=10", "ATR","D","-1","ALL",,,"FALSE","T")/100 -> -0.001898734177 | L9: =RTD("cqg.rtd", ,"ContractData",B9, "OPen",, "T") -> 23.62 | M9: =RTD("cqg.rtd", ,"ContractData", B9, "HIgh",, "T") -> 23.64 | N9: =RTD("cqg.rtd", ,"ContractData",B9, "LOw",, "T") -> 23.47 | O9: =RTD("cqg.rtd", ,"ContractData",B9, "T_CVol",, "T") -> 38548921 | Q9: =IFERROR(O9/RTD("cqg.rtd",,"StudyData",B9, "MA", "InputChoice=Vol,MAType=Sim,Period=21", "MA","D","-1","all",,,,"T"),"") -> 0.5515848811
B10: GDX | C10: =RTD("cqg.rtd", ,"ContractData",B10, "LongDescription",, "T") -> Market Vectors Gold Miners ETF | H10: =RTD("cqg.rtd", ,"ContractData",B10, "LastTradeToday",, "T") -> 22.71 | I10: =RTD("cqg.rtd", ,"ContractData",B10, "NetLastTradeToday",, "T") -> 0.07 | J10: =RTD("cqg.rtd", ,"ContractData",B10, "PerCentNetLastTrade",, "T")/100 -> 0.003091872792 | K10: =I10/RTD("cqg.rtd",,"StudyData",B10, "ATR", "MaType=Sim,Period=10", "ATR","D","-1","ALL",,,"FALSE","T")/100 -> 0.001223776224 | L10: =RTD("cqg.rtd", ,"ContractData",B10, "OPen",, "T") -> 22.57 | M10: =RTD("cqg.rtd", ,"ContractData", B10, "HIgh",, "T") -> 22.85 | N10: =RTD("cqg.rtd", ,"ContractData",B10, "LOw",, "T") -> 22.2 | O10: =RTD("cqg.rtd", ,"ContractData",B10, "T_CVol",, "T") -> 31417797 | Q10: =IFERROR(O10/RTD("cqg.rtd",,"StudyData",B10, "MA", "InputChoice=Vol,MAType=Sim,Period=21", "MA","D","-1","all",,,,"T"),"") -> 0.5336737864
B11: FXI | C11: =RTD("cqg.rtd", ,"ContractData",B11, "LongDescription",, "T") -> iShares China Large-Cap ETF | H11: =RTD("cqg.rtd", ,"ContractData",B11, "LastTradeToday",, "T") -> 39.64 | I11: =RTD("cqg.rtd", ,"ContractData",B11, "NetLastTradeToday",, "T") -> 0.06 | J11: =RTD("cqg.rtd", ,"ContractData",B11, "PerCentNetLastTrade",, "T")/100 -> 0.00151591713 | K11: =I11/RTD("cqg.rtd",,"StudyData",B11, "ATR", "MaType=Sim,Period=10", "ATR","D","-1","ALL",,,"FALSE","T")/100 -> 0.001492537313 | L11: =RTD("cqg.rtd", ,"ContractData",B11, "OPen",, "T") -> 39.58 | M11: =RTD("cqg.rtd", ,"ContractData", B11, "HIgh",, "T") -> 39.68 | N11: =RTD("cqg.rtd", ,"ContractData",B11, "LOw",, "T") -> 39.55 | O11: =RTD("cqg.rtd", ,"ContractData",B11, "T_CVol",, "T") -> 5238463 | Q11: =IFERROR(O11/RTD("cqg.rtd",,"StudyData",B11, "MA", "InputChoice=Vol,MAType=Sim,Period=21", "MA","D","-1","all",,,,"T"),"") -> 0.3175336974
B12: IWF | C12: =RTD("cqg.rtd", ,"ContractData",B12, "LongDescription",, "T") -> iShares Russell 1000 Growth ETF | H12: =RTD("cqg.rtd", ,"ContractData",B12, "LastTradeToday",, "T") -> 118.19 | I12: =RTD("cqg.rtd", ,"ContractData",B12, "NetLastTradeToday",, "T") -> 0.39 | J12: =RTD("cqg.rtd", ,"ContractData",B12, "PerCentNetLastTrade",, "T")/100 -> 0.003310696095 | K12: =I12/RTD("cqg.rtd",,"StudyData",B12, "ATR", "MaType=Sim,Period=10", "ATR","D","-1","ALL",,,"FALSE","T")/100 -> 0.004761904762 | L12: =RTD("cqg.rtd", ,"ContractData",B12, "OPen",, "T") -> 117.98 | M12: =RTD("cqg.rtd", ,"ContractData", B12, "HIgh",, "T") -> 118.23 | N12: =RTD("cqg.rtd", ,"ContractData",B12, "LOw",, "T") -> 117.8 | O12: =RTD("cqg.rtd", ,"ContractData",B12, "T_CVol",, "T") -> 470038 | Q12: =IFERROR(O12/RTD("cqg.rtd",,"StudyData",B12, "MA", "InputChoice=Vol,MAType=Sim,Period=21", "MA","D","-1","all",,,,"T"),"") -> 0.3449984529
B13: IWO | C13: =RTD("cqg.rtd", ,"ContractData",B13, "LongDescription",, "T") -> iShares Russell 2000 Growth ETF | H13: =RTD("cqg.rtd", ,"ContractData",B13, "LastTradeToday",, "T") -> 164 | I13: =RTD("cqg.rtd", ,"ContractData",B13, "NetLastTradeToday",, "T") -> 0.42 | J13: =RTD("cqg.rtd", ,"ContractData",B13, "PerCentNetLastTrade",, "T")/100 -> 0.002567551045 | K13: =I13/RTD("cqg.rtd",,"StudyData",B13, "ATR", "MaType=Sim,Period=10", "ATR","D","-1","ALL",,,"FALSE","T")/100 -> 0.002052785924 | L13: =RTD("cqg.rtd", ,"ContractData",B13, "OPen",, "T") -> 163.68 | M13: =RTD("cqg.rtd", ,"ContractData", B13, "HIgh",, "T") -> 164.43 | N13: =RTD("cqg.rtd", ,"ContractData",B13, "LOw",, "T") -> 163.32 | O13: =RTD("cqg.rtd", ,"ContractData",B13, "T_CVol",, "T") -> 348318 | Q13: =IFERROR(O13/RTD("cqg.rtd",,"StudyData",B13, "MA", "InputChoice=Vol,MAType=Sim,Period=21", "MA","D","-1","all",,,,"T"),"") -> 0.7099541999
B14: EP | C14: =RTD("cqg.rtd", ,"ContractData",B14, "LongDescription",, "T") -> E-Mini S&P 500, Jun 17 | H14: =RTD("cqg.rtd", ,"ContractData",B14, "LastTradeToday",, "T") -> 2400.5 | I14: =RTD("cqg.rtd", ,"ContractData",B14, "NetLastTradeToday",, "T") -> 2.5 | J14: =RTD("cqg.rtd", ,"ContractData",B14, "PerCentNetLastTrade",, "T")/100 -> 0.001042535446 | K14: =I14/RTD("cqg.rtd",,"StudyData",B14, "ATR", "MaType=Sim,Period=10", "ATR","D","-1","ALL",,,"FALSE","T")/100 -> 0.001336898396 | L14: =RTD("cqg.rtd", ,"ContractData",B14, "OPen",, "T") -> 2397 | M14: =RTD("cqg.rtd", ,"ContractData", B14, "HIgh",, "T") -> 2402 | N14: =RTD("cqg.rtd", ,"ContractData",B14, "LOw",, "T") -> 2394.75 | O14: =RTD("cqg.rtd", ,"ContractData",B14, "T_CVol",, "T") -> 649561 | Q14: =IFERROR(O14/RTD("cqg.rtd",,"StudyData",B14, "MA", "InputChoice=Vol,MAType=Sim,Period=21", "MA","D","-1","all",,,,"T"),"") -> 0.5011634114
B15: XLE | C15: =RTD("cqg.rtd", ,"ContractData",B15, "LongDescription",, "T") -> Energy Select Sector SPDR | H15: =RTD("cqg.rtd", ,"ContractData",B15, "LastTradeToday",, "T") -> 67.61 | I15: =RTD("cqg.rtd", ,"ContractData",B15, "NetLastTradeToday",, "T") -> -0.48 | J15: =RTD("cqg.rtd", ,"ContractData",B15, "PerCentNetLastTrade",, "T")/100 -> -0.007049493318 | K15: =I15/RTD("cqg.rtd",,"StudyData",B15, "ATR", "MaType=Sim,Period=10", "ATR","D","-1","ALL",,,"FALSE","T")/100 -> -0.005853658537 | L15: =RTD("cqg.rtd", ,"ContractData",B15, "OPen",, "T") -> 68.01 | M15: =RTD("cqg.rtd", ,"ContractData", B15, "HIgh",, "T") -> 68.22 | N15: =RTD("cqg.rtd", ,"ContractData",B15, "LOw",, "T") -> 67.5 | O15: =RTD("cqg.rtd", ,"ContractData",B15, "T_CVol",, "T") -> 8030765 | Q15: =IFERROR(O15/RTD("cqg.rtd",,"StudyData",B15, "MA", "InputChoice=Vol,MAType=Sim,Period=21", "MA","D","-1","all",,,,"T"),"") -> 0.5192834121
B16: USO | C16: =RTD("cqg.rtd", ,"ContractData",B16, "LongDescription",, "T") -> United States Oil Fund | H16: =RTD("cqg.rtd", ,"ContractData",B16, "LastTradeToday",, "T") -> 10.6 | I16: =RTD("cqg.rtd", ,"ContractData",B16, "NetLastTradeToday",, "T") -> -0.05 | J16: =RTD("cqg.rtd", ,"ContractData",B16, "PerCentNetLastTrade",, "T")/100 -> -0.004694835681 | K16: =I16/RTD("cqg.rtd",,"StudyData",B16, "ATR", "MaType=Sim,Period=10", "ATR","D","-1","ALL",,,"FALSE","T")/100 -> -0.002314814815 | L16: =RTD("cqg.rtd", ,"ContractData",B16, "OPen",, "T") -> 10.62 | M16: =RTD("cqg.rtd", ,"ContractData", B16, "HIgh",, "T") -> 10.7 | N16: =RTD("cqg.rtd", ,"ContractData",B16, "LOw",, "T") -> 10.54 | O16: =RTD("cqg.rtd", ,"ContractData",B16, "T_CVol",, "T") -> 22444185 | Q16: =IFERROR(O16/RTD("cqg.rtd",,"StudyData",B16, "MA", "InputChoice=Vol,MAType=Sim,Period=21", "MA","D","-1","all",,,,"T"),"") -> 0.7810730768
C17: Top 15 Description | H17: Last | I17: NC | J17: %NC | K17: NC/ATR | L17: Open | M17: High | N17: Low | O17: Volume | Q17: Ratio
A18: =TRIM(IWF!O1) -> S.US.INTU | B18: News | C18: =RTD("cqg.rtd", ,"ContractData",A18, "LongDescription",, "T")&" ("&RIGHT(A18,LEN(A18)-5)&")" -> Intuit Corp (INTU) | H18: =RTD("cqg.rtd", ,"ContractData",A18, "LastTradeToday",, "T") -> 138.18 | I18: =RTD("cqg.rtd", ,"ContractData",A18, "NetLastTradeToday",, "T") -> 9.03 | J18: =RTD("cqg.rtd", ,"ContractData",A18, "PerCentNetLastTrade",, "T")/100 -> 0.06991869919 | K18: =I18/RTD("cqg.rtd",,"StudyData",A18, "ATR", "MaType=Sim,Period=10", "ATR","D","-1","ALL",,,"FALSE","T")/100 -> 0.05693568726 | L18: =RTD("cqg.rtd", ,"ContractData",A18, "OPen",, "T") -> 139.71 | M18: =RTD("cqg.rtd", ,"ContractData", A18, "HIgh",, "T") -> 140.25 | N18: =RTD("cqg.rtd", ,"ContractData",A18, "LOw",, "T") -> 136.41 | O18: =RTD("cqg.rtd", ,"ContractData",A18, "T_CVol",, "T") -> 4085719 | Q18: =IFERROR(O18/RTD("cqg.rtd",,"StudyData",A18, "MA", "InputChoice=Vol,MAType=Sim,Period=21", "MA","D","-1","all",,,,"T"),"") -> 2.37267283 | R18: =IWF!Q1 -> https://finance.yahoo.com/quote/INTU
A19: =TRIM(IWF!O2) -> S.US.RAD | B19: News | C19: =RTD("cqg.rtd", ,"ContractData",A19, "LongDescription",, "T")&" ("&RIGHT(A19,LEN(A19)-5)&")" -> Rite Aid Corp (RAD) | H19: =RTD("cqg.rtd", ,"ContractData",A19, "LastTradeToday",, "T") -> 3.75 | I19: =RTD("cqg.rtd", ,"ContractData",A19, "NetLastTradeToday",, "T") -> 0.21 | J19: =RTD("cqg.rtd", ,"ContractData",A19, "PerCentNetLastTrade",, "T")/100 -> 0.0593220339 | K19: =I19/RTD("cqg.rtd",,"StudyData",A19, "ATR", "MaType=Sim,Period=10", "ATR","D","-1","ALL",,,"FALSE","T")/100 -> 0.00867768595 | L19: =RTD("cqg.rtd", ,"ContractData",A19, "OPen",, "T") -> 3.54 | M19: =RTD("cqg.rtd", ,"ContractData", A19, "HIgh",, "T") -> 3.77 | N19: =RTD("cqg.rtd", ,"ContractData",A19, "LOw",, "T") -> 3.54 | O19: =RTD("cqg.rtd", ,"ContractData",A19, "T_CVol",, "T") -> 13488559 | Q19: =IFERROR(O19/RTD("cqg.rtd",,"StudyData",A19, "MA", "InputChoice=Vol,MAType=Sim,Period=21", "MA","D","-1","all",,,,"T"),"") -> 0.8277321628 | R19: =IWF!Q2 -> https://finance.yahoo.com/quote/RAD
A20: =TRIM(IWF!O3) -> S.US.ATHN | B20: News | C20: =RTD("cqg.rtd", ,"ContractData",A20, "LongDescription",, "T")&" ("&RIGHT(A20,LEN(A20)-5)&")" -> Athenahelth Inc (ATHN) | H20: =RTD("cqg.rtd", ,"ContractData",A20, "LastTradeToday",, "T") -> 138 | I20: =RTD("cqg.rtd", ,"ContractData",A20, "NetLastTradeToday",, "T") -> 5.94 | J20: =RTD("cqg.rtd", ,"ContractData",A20, "PerCentNetLastTrade",, "T")/100 -> 0.04497955475 | K20: =I20/RTD("cqg.rtd",,"StudyData",A20, "ATR", "MaType=Sim,Period=10", "ATR","D","-1","ALL",,,"FALSE","T")/100 -> 0.01169291339 | L20: =RTD("cqg.rtd", ,"ContractData",A20, "OPen",, "T") -> 131.75 | M20: =RTD("cqg.rtd", ,"ContractData", A20, "HIgh",, "T") -> 138.42 | N20: =RTD("cqg.rtd", ,"ContractData",A20, "LOw",, "T") -> 131.68 | O20: =RTD("cqg.rtd", ,"ContractData",A20, "T_CVol",, "T") -> 629381 | Q20: =IFERROR(O20/RTD("cqg.rtd",,"StudyData",A20, "MA", "InputChoice=Vol,MAType=Sim,Period=21", "MA","D","-1","all",,,,"T"),"") -> 0.5097145603 | R20: =IWF!Q3 -> https://finance.yahoo.com/quote/ATHN
A21: =TRIM(IWF!O4) -> S.US.IONS | B21: News | C21: =RTD("cqg.rtd", ,"ContractData",A21, "LongDescription",, "T")&" ("&RIGHT(A21,LEN(A21)-5)&")" -> Ionis Pharmaceuticals, Inc. (IONS) | H21: =RTD("cqg.rtd", ,"ContractData",A21, "LastTradeToday",, "T") -> 47 | I21: =RTD("cqg.rtd", ,"ContractData",A21, "NetLastTradeToday",, "T") -> 1.86 | J21: =RTD("cqg.rtd", ,"ContractData",A21, "PerCentNetLastTrade",, "T")/100 -> 0.04120513957 | K21: =I21/RTD("cqg.rtd",,"StudyData",A21, "ATR", "MaType=Sim,Period=10", "ATR","D","-1","ALL",,,"FALSE","T")/100 -> 0.00670995671 | L21: =RTD("cqg.rtd", ,"ContractData",A21, "OPen",, "T") -> 45.35 | M21: =RTD("cqg.rtd", ,"ContractData", A21, "HIgh",, "T") -> 47.23 | N21: =RTD("cqg.rtd", ,"ContractData",A21, "LOw",, "T") -> 44.71 | O21: =RTD("cqg.rtd", ,"ContractData",A21, "T_CVol",, "T") -> 900883 | Q21: =IFERROR(O21/RTD("cqg.rtd",,"StudyData",A21, "MA", "InputChoice=Vol,MAType=Sim,Period=21", "MA","D","-1","all",,,,"T"),"") -> 0.4798777374 | R21: =IWF!Q4 -> https://finance.yahoo.com/quote/IONS
A22: =TRIM(IWF!O5) -> S.US.ICPT | B22: News | C22: =RTD("cqg.rtd", ,"ContractData",A22, "LongDescription",, "T")&" ("&RIGHT(A22,LEN(A22)-5)&")" -> Intercept Pharmaceuticals, Inc. (ICPT) | H22: =RTD("cqg.rtd", ,"ContractData",A22, "LastTradeToday",, "T") -> 117.42 | I22: =RTD("cqg.rtd", ,"ContractData",A22, "NetLastTradeToday",, "T") -> 4.43 | J22: =RTD("cqg.rtd", ,"ContractData",A22, "PerCentNetLastTrade",, "T")/100 -> 0.03920700947 | K22: =I22/RTD("cqg.rtd",,"StudyData",A22, "ATR", "MaType=Sim,Period=10", "ATR","D","-1","ALL",,,"FALSE","T")/100 -> 0.01240201568 | L22: =RTD("cqg.rtd", ,"ContractData",A22, "OPen",, "T") -> 113.41 | M22: =RTD("cqg.rtd", ,"ContractData", A22, "HIgh",, "T") -> 118.6 | N22: =RTD("cqg.rtd", ,"ContractData",A22, "LOw",, "T") -> 112.5 | O22: =RTD("cqg.rtd", ,"ContractData",A22, "T_CVol",, "T") -> 304784 | Q22: =IFERROR(O22/RTD("cqg.rtd",,"StudyData",A22, "MA", "InputChoice=Vol,MAType=Sim,Period=21", "MA","D","-1","all",,,,"T"),"") -> 0.8986630127 | R22: =IWF!Q5 -> https://finance.yahoo.com/quote/ICPT
A23: =TRIM(IWF!O6) -> S.US.NTNX | B23: News | C23: =RTD("cqg.rtd", ,"ContractData",A23, "LongDescription",, "T")&" ("&RIGHT(A23,LEN(A23)-5)&")" -> Nutanix, Inc. Class A (NTNX) | H23: =RTD("cqg.rtd", ,"ContractData",A23, "LastTradeToday",, "T") -> 17.66 | I23: =RTD("cqg.rtd", ,"ContractData",A23, "NetLastTradeToday",, "T") -> 0.64 | J23: =RTD("cqg.rtd", ,"ContractData",A23, "PerCentNetLastTrade",, "T")/100 -> 0.03760282021 | K23: =I23/RTD("cqg.rtd",,"StudyData",A23, "ATR", "MaType=Sim,Period=10", "ATR","D","-1","ALL",,,"FALSE","T")/100 -> 0.007158836689 | L23: =RTD("cqg.rtd", ,"ContractData",A23, "OPen",, "T") -> 17.15 | M23: =RTD("cqg.rtd", ,"ContractData", A23, "HIgh",, "T") -> 17.86 | N23: =RTD("cqg.rtd", ,"ContractData",A23, "LOw",, "T") -> 17.03 | O23: =RTD("cqg.rtd", ,"ContractData",A23, "T_CVol",, "T") -> 2201421 | Q23: =IFERROR(O23/RTD("cqg.rtd",,"StudyData",A23, "MA", "InputChoice=Vol,MAType=Sim,Period=21", "MA","D","-1","all",,,,"T"),"") -> 0.9192675868 | R23: =IWF!Q6 -> https://finance.yahoo.com/quote/NTNX
A24: =TRIM(IWF!O7) -> S.US.TCO | B24: News | C24: =RTD("cqg.rtd", ,"ContractData",A24, "LongDescription",, "T")&" ("&RIGHT(A24,LEN(A24)-5)&")" -> Taubman Centers Inc (TCO) | H24: =RTD("cqg.rtd", ,"ContractData",A24, "LastTradeToday",, "T") -> 63.27 | I24: =RTD("cqg.rtd", ,"ContractData",A24, "NetLastTradeToday",, "T") -> 2.25 | J24: =RTD("cqg.rtd", ,"ContractData",A24, "PerCentNetLastTrade",, "T")/100 -> 0.03687315634 | K24: =I24/RTD("cqg.rtd",,"StudyData",A24, "ATR", "MaType=Sim,Period=10", "ATR","D","-1","ALL",,,"FALSE","T")/100 -> 0.01682872102 | L24: =RTD("cqg.rtd", ,"ContractData",A24, "OPen",, "T") -> 61.4 | M24: =RTD("cqg.rtd", ,"ContractData", A24, "HIgh",, "T") -> 63.56 | N24: =RTD("cqg.rtd", ,"ContractData",A24, "LOw",, "T") -> 61.31 | O24: =RTD("cqg.rtd", ,"ContractData",A24, "T_CVol",, "T") -> 639695 | Q24: =IFERROR(O24/RTD("cqg.rtd",,"StudyData",A24, "MA", "InputChoice=Vol,MAType=Sim,Period=21", "MA","D","-1","all",,,,"T"),"") -> 1.31859911 | R24: =IWF!Q7 -> https://finance.yahoo.com/quote/TCO
A25: =TRIM(IWF!O8) -> S.US.MAT | B25: News | C25: =RTD("cqg.rtd", ,"ContractData",A25, "LongDescription",, "T")&" ("&RIGHT(A25,LEN(A25)-5)&")" -> Mattel Inc (MAT) | H25: =RTD("cqg.rtd", ,"ContractData",A25, "LastTradeToday",, "T") -> 22.49 | I25: =RTD("cqg.rtd", ,"ContractData",A25, "NetLastTradeToday",, "T") -> 0.74 | J25: =RTD("cqg.rtd", ,"ContractData",A25, "PerCentNetLastTrade",, "T")/100 -> 0.03402298851 | K25: =I25/RTD("cqg.rtd",,"StudyData",A25, "ATR", "MaType=Sim,Period=10", "ATR","D","-1","ALL",,,"FALSE","T")/100 -> 0.01554621849 | L25: =RTD("cqg.rtd", ,"ContractData",A25, "OPen",, "T") -> 21.91 | M25: =RTD("cqg.rtd", ,"ContractData", A25, "HIgh",, "T") -> 22.49 | N25: =RTD("cqg.rtd", ,"ContractData",A25, "LOw",, "T") -> 21.86 | O25: =RTD("cqg.rtd", ,"ContractData",A25, "T_CVol",, "T") -> 3888795 | Q25: =IFERROR(O25/RTD("cqg.rtd",,"StudyData",A25, "MA", "InputChoice=Vol,MAType=Sim,Period=21", "MA","D","-1","all",,,,"T"),"") -> 0.649514724 | R25: =IWF!Q8 -> https://finance.yahoo.com/quote/MAT
A26: =TRIM(IWF!O9) -> S.US.CHTR | B26: News | C26: =RTD("cqg.rtd", ,"ContractData",A26, "LongDescription",, "T")&" ("&RIGHT(A26,LEN(A26)-5)&")" -> Charter Communications, Inc. Class A (CHTR) | H26: =RTD("cqg.rtd", ,"ContractData",A26, "LastTradeToday",, "T") -> 329.49 | I26: =RTD("cqg.rtd", ,"ContractData",A26, "NetLastTradeToday",, "T") -> 10.7 | J26: =RTD("cqg.rtd", ,"ContractData",A26, "PerCentNetLastTrade",, "T")/100 -> 0.03356441545 | K26: =I26/RTD("cqg.rtd",,"StudyData",A26, "ATR", "MaType=Sim,Period=10", "ATR","D","-1","ALL",,,"FALSE","T")/100 -> 0.02231491137 | L26: =RTD("cqg.rtd", ,"ContractData",A26, "OPen",, "T") -> 320.2 | M26: =RTD("cqg.rtd", ,"ContractData", A26, "HIgh",, "T") -> 332.28 | N26: =RTD("cqg.rtd", ,"ContractData",A26, "LOw",, "T") -> 318.3 | O26: =RTD("cqg.rtd", ,"ContractData",A26, "T_CVol",, "T") -> 1223021 | Q26: =IFERROR(O26/RTD("cqg.rtd",,"StudyData",A26, "MA", "InputChoice=Vol,MAType=Sim,Period=21", "MA","D","-1","all",,,,"T"),"") -> 0.6765190341 | R26: =IWF!Q9 -> https://finance.yahoo.com/quote/CHTR
A27: =TRIM(IWF!O10) -> S.US.EV | B27: News | C27: =RTD("cqg.rtd", ,"ContractData",A27, "LongDescription",, "T")&" ("&RIGHT(A27,LEN(A27)-5)&")" -> Eaton Vance Corp (EV) | H27: =RTD("cqg.rtd", ,"ContractData",A27, "LastTradeToday",, "T") -> 46.6 | I27: =RTD("cqg.rtd", ,"ContractData",A27, "NetLastTradeToday",, "T") -> 1.42 | J27: =RTD("cqg.rtd", ,"ContractData",A27, "PerCentNetLastTrade",, "T")/100 -> 0.03142983621 | K27: =I27/RTD("cqg.rtd",,"StudyData",A27, "ATR", "MaType=Sim,Period=10", "ATR","D","-1","ALL",,,"FALSE","T")/100 -> 0.01742331288 | L27: =RTD("cqg.rtd", ,"ContractData",A27, "OPen",, "T") -> 45.18 | M27: =RTD("cqg.rtd", ,"ContractData", A27, "HIgh",, "T") -> 46.96 | N27: =RTD("cqg.rtd", ,"ContractData",A27, "LOw",, "T") -> 45.11 | O27: =RTD("cqg.rtd", ,"ContractData",A27, "T_CVol",, "T") -> 503627 | Q27: =IFERROR(O27/RTD("cqg.rtd",,"StudyData",A27, "MA", "InputChoice=Vol,MAType=Sim,Period=21", "MA","D","-1","all",,,,"T"),"") -> 0.8159474315 | R27: =IWF!Q10 -> https://finance.yahoo.com/quote/EV | S27: Bottom 15 Performing Companies
A28: =TRIM(IWF!O11) -> S.US.DPZ | B28: News | C28: =RTD("cqg.rtd", ,"ContractData",A28, "LongDescription",, "T")&" ("&RIGHT(A28,LEN(A28)-5)&")" -> Dominos Pizza, Inc. (DPZ) | H28: =RTD("cqg.rtd", ,"ContractData",A28, "LastTradeToday",, "T") -> 205.16 | I28: =RTD("cqg.rtd", ,"ContractData",A28, "NetLastTradeToday",, "T") -> 5.91 | J28: =RTD("cqg.rtd", ,"ContractData",A28, "PerCentNetLastTrade",, "T")/100 -> 0.02966122961 | K28: =I28/RTD("cqg.rtd",,"StudyData",A28, "ATR", "MaType=Sim,Period=10", "ATR","D","-1","ALL",,,"FALSE","T")/100 -> 0.01962151394 | L28: =RTD("cqg.rtd", ,"ContractData",A28, "OPen",, "T") -> 199.48 | M28: =RTD("cqg.rtd", ,"ContractData", A28, "HIgh",, "T") -> 205.31 | N28: =RTD("cqg.rtd", ,"ContractData",A28, "LOw",, "T") -> 199.48 | O28: =RTD("cqg.rtd", ,"ContractData",A28, "T_CVol",, "T") -> 554107 | Q28: =IFERROR(O28/RTD("cqg.rtd",,"StudyData",A28, "MA", "InputChoice=Vol,MAType=Sim,Period=21", "MA","D","-1","all",,,,"T"),"") -> 0.6749689292 | R28: =IWF!Q11 -> https://finance.yahoo.com/quote/DPZ
A29: =TRIM(IWF!O12) -> S.US.BIVV | B29: News | C29: =RTD("cqg.rtd", ,"ContractData",A29, "LongDescription",, "T")&" ("&RIGHT(A29,LEN(A29)-5)&")" -> Bioverativ Inc. (BIVV) | H29: =RTD("cqg.rtd", ,"ContractData",A29, "LastTradeToday",, "T") -> 54.03 | I29: =RTD("cqg.rtd", ,"ContractData",A29, "NetLastTradeToday",, "T") -> 1.53 | J29: =RTD("cqg.rtd", ,"ContractData",A29, "PerCentNetLastTrade",, "T")/100 -> 0.02914285714 | K29: =I29/RTD("cqg.rtd",,"StudyData",A29, "ATR", "MaType=Sim,Period=10", "ATR","D","-1","ALL",,,"FALSE","T")/100 -> 0.006957708049 | L29: =RTD("cqg.rtd", ,"ContractData",A29, "OPen",, "T") -> 53.35 | M29: =RTD("cqg.rtd", ,"ContractData", A29, "HIgh",, "T") -> 54.9 | N29: =RTD("cqg.rtd", ,"ContractData",A29, "LOw",, "T") -> 52.82 | O29: =RTD("cqg.rtd", ,"ContractData",A29, "T_CVol",, "T") -> 744993 | Q29: =IFERROR(O29/RTD("cqg.rtd",,"StudyData",A29, "MA", "InputChoice=Vol,MAType=Sim,Period=21", "MA","D","-1","all",,,,"T"),"") -> 0.6418927649 | R29: =IWF!Q12 -> https://finance.yahoo.com/quote/BIVV
A30: =TRIM(IWF!O13) -> S.US.GPK | B30: News | C30: =RTD("cqg.rtd", ,"ContractData",A30, "LongDescription",, "T")&" ("&RIGHT(A30,LEN(A30)-5)&")" -> Graphic Packaging Holding Company (GPK) | H30: =RTD("cqg.rtd", ,"ContractData",A30, "LastTradeToday",, "T") -> 13.45 | I30: =RTD("cqg.rtd", ,"ContractData",A30, "NetLastTradeToday",, "T") -> 0.38 | J30: =RTD("cqg.rtd", ,"ContractData",A30, "PerCentNetLastTrade",, "T")/100 -> 0.02907421576 | K30: =I30/RTD("cqg.rtd",,"StudyData",A30, "ATR", "MaType=Sim,Period=10", "ATR","D","-1","ALL",,,"FALSE","T")/100 -> 0.01391941392 | L30: =RTD("cqg.rtd", ,"ContractData",A30, "OPen",, "T") -> 13.08 | M30: =RTD("cqg.rtd", ,"ContractData", A30, "HIgh",, "T") -> 13.48 | N30: =RTD("cqg.rtd", ,"ContractData",A30, "LOw",, "T") -> 13.01 | O30: =RTD("cqg.rtd", ,"ContractData",A30, "T_CVol",, "T") -> 3285890 | Q30: =IFERROR(O30/RTD("cqg.rtd",,"StudyData",A30, "MA", "InputChoice=Vol,MAType=Sim,Period=21", "MA","D","-1","all",,,,"T"),"") -> 0.681337205 | R30: =IWF!Q13 -> https://finance.yahoo.com/quote/GPK
A31: =TRIM(IWF!O14) -> S.US.SIRI | B31: News | C31: =RTD("cqg.rtd", ,"ContractData",A31, "LongDescription",, "T")&" ("&RIGHT(A31,LEN(A31)-5)&")" -> Sirius XM Holdings Inc. (SIRI) | H31: =RTD("cqg.rtd", ,"ContractData",A31, "LastTradeToday",, "T") -> 5.11 | I31: =RTD("cqg.rtd", ,"ContractData",A31, "NetLastTradeToday",, "T") -> 0.14 | J31: =RTD("cqg.rtd", ,"ContractData",A31, "PerCentNetLastTrade",, "T")/100 -> 0.02816901408 | K31: =I31/RTD("cqg.rtd",,"StudyData",A31, "ATR", "MaType=Sim,Period=10", "ATR","D","-1","ALL",,,"FALSE","T")/100 -> 0.01555555556 | L31: =RTD("cqg.rtd", ,"ContractData",A31, "OPen",, "T") -> 5 | M31: =RTD("cqg.rtd", ,"ContractData", A31, "HIgh",, "T") -> 5.12 | N31: =RTD("cqg.rtd", ,"ContractData",A31, "LOw",, "T") -> 4.99 | O31: =RTD("cqg.rtd", ,"ContractData",A31, "T_CVol",, "T") -> 16334676 | Q31: =IFERROR(O31/RTD("cqg.rtd",,"StudyData",A31, "MA", "InputChoice=Vol,MAType=Sim,Period=21", "MA","D","-1","all",,,,"T"),"") -> 0.6141393137 | R31: =IWF!Q14 -> https://finance.yahoo.com/quote/SIRI
A32: =TRIM(IWF!O15) -> S.US.SPB | B32: News | C32: =RTD("cqg.rtd", ,"ContractData",A32, "LongDescription",, "T")&" ("&RIGHT(A32,LEN(A32)-5)&")" -> Spectrum Brands Inc (SPB) | H32: =RTD("cqg.rtd", ,"ContractData",A32, "LastTradeToday",, "T") -> 133.19 | I32: =RTD("cqg.rtd", ,"ContractData",A32, "NetLastTradeToday",, "T") -> 3.4 | J32: =RTD("cqg.rtd", ,"ContractData",A32, "PerCentNetLastTrade",, "T")/100 -> 0.02619616303 | K32: =I32/RTD("cqg.rtd",,"StudyData",A32, "ATR", "MaType=Sim,Period=10", "ATR","D","-1","ALL",,,"FALSE","T")/100 -> 0.01305683564 | L32: =RTD("cqg.rtd", ,"ContractData",A32, "OPen",, "T") -> 130.6 | M32: =RTD("cqg.rtd", ,"ContractData", A32, "HIgh",, "T") -> 133.4 | N32: =RTD("cqg.rtd", ,"ContractData",A32, "LOw",, "T") -> 129.79 | O32: =RTD("cqg.rtd", ,"ContractData",A32, "T_CVol",, "T") -> 265568 | Q32: =IFERROR(O32/RTD("cqg.rtd",,"StudyData",A32, "MA", "InputChoice=Vol,MAType=Sim,Period=21", "MA","D","-1","all",,,,"T"),"") -> 0.4841802038 | R32: =IWF!Q15 -> https://finance.yahoo.com/quote/SPB
C33: Bottom 15 Description | H33: Last | I33: NC | J33: %NC | K33: NC/ATR | L33: Open | M33: High | N33: Low | O33: Volume | Q33: Ratio
A34: =TRIM(IWF!O593) -> S.US.EXP | B34: News | C34: =RTD("cqg.rtd", ,"ContractData",A34, "LongDescription",, "T")&" ("&RIGHT(A34,LEN(A34)-5)&")" -> Eagle Materials Inc (EXP) | H34: =RTD("cqg.rtd", ,"ContractData",A34, "LastTradeToday",, "T") -> 96.33 | I34: =RTD("cqg.rtd", ,"ContractData",A34, "NetLastTradeToday",, "T") -> -2.53 | J34: =RTD("cqg.rtd", ,"ContractData",A34, "PerCentNetLastTrade",, "T")/100 -> -0.0255917459 | K34: =I34/RTD("cqg.rtd",,"StudyData",A34, "ATR", "MaType=Sim,Period=10", "ATR","D","-1","ALL",,,"FALSE","T")/100 -> -0.00873015873 | L34: =RTD("cqg.rtd", ,"ContractData",A34, "OPen",, "T") -> 98.65 | M34: =RTD("cqg.rtd", ,"ContractData", A34, "HIgh",, "T") -> 98.95 | N34: =RTD("cqg.rtd", ,"ContractData",A34, "LOw",, "T") -> 96.3 | O34: =RTD("cqg.rtd", ,"ContractData",A34, "T_CVol",, "T") -> 319823 | Q34: =IFERROR(O34/RTD("cqg.rtd",,"StudyData",A34, "MA", "InputChoice=Vol,MAType=Sim,Period=21", "MA","D","-1","all",,,,"T"),"") -> 0.5434170821 | R34: =IWF!Q593 -> https://finance.yahoo.com/quote/EXP
A35: =TRIM(IWF!O594) -> S.US.LKSD | B35: News | C35: =RTD("cqg.rtd", ,"ContractData",A35, "LongDescription",, "T")&" ("&RIGHT(A35,LEN(A35)-5)&")" -> LSC Communications, Inc. (LKSD) | H35: =RTD("cqg.rtd", ,"ContractData",A35, "LastTradeToday",, "T") -> 21.22 | I35: =RTD("cqg.rtd", ,"ContractData",A35, "NetLastTradeToday",, "T") -> -0.56 | J35: =RTD("cqg.rtd", ,"ContractData",A35, "PerCentNetLastTrade",, "T")/100 -> -0.02571166208 | K35: =I35/RTD("cqg.rtd",,"StudyData",A35, "ATR", "MaType=Sim,Period=10", "ATR","D","-1","ALL",,,"FALSE","T")/100 -> -0.007671232877 | L35: =RTD("cqg.rtd", ,"ContractData",A35, "OPen",, "T") -> 21.45 | M35: =RTD("cqg.rtd", ,"ContractData", A35, "HIgh",, "T") -> 21.9 | N35: =RTD("cqg.rtd", ,"ContractData",A35, "LOw",, "T") -> 21.13 | O35: =RTD("cqg.rtd", ,"ContractData",A35, "T_CVol",, "T") -> 103257 | Q35: =IFERROR(O35/RTD("cqg.rtd",,"StudyData",A35, "MA", "InputChoice=Vol,MAType=Sim,Period=21", "MA","D","-1","all",,,,"T"),"") -> 0.271976214 | R35: =IWF!Q594 -> https://finance.yahoo.com/quote/LKSD
A36: =TRIM(IWF!O595) -> S.US.LOW | B36: News | C36: =RTD("cqg.rtd", ,"ContractData",A36, "LongDescription",, "T")&" ("&RIGHT(A36,LEN(A36)-5)&")" -> Lowes Companies Inc (LOW) | H36: =RTD("cqg.rtd", ,"ContractData",A36, "LastTradeToday",, "T") -> 80.15 | I36: =RTD("cqg.rtd", ,"ContractData",A36, "NetLastTradeToday",, "T") -> -2.19 | J36: =RTD("cqg.rtd", ,"ContractData",A36, "PerCentNetLastTrade",, "T")/100 -> -0.02659703668 | K36: =I36/RTD("cqg.rtd",,"StudyData",A36, "ATR", "MaType=Sim,Period=10", "ATR","D","-1","ALL",,,"FALSE","T")/100 -> -0.01792144026 | L36: =RTD("cqg.rtd", ,"ContractData",A36, "OPen",, "T") -> 79.33 | M36: =RTD("cqg.rtd", ,"ContractData", A36, "HIgh",, "T") -> 80.26 | N36: =RTD("cqg.rtd", ,"ContractData",A36, "LOw",, "T") -> 78.4 | O36: =RTD("cqg.rtd", ,"ContractData",A36, "T_CVol",, "T") -> 12528439 | Q36: =IFERROR(O36/RTD("cqg.rtd",,"StudyData",A36, "MA", "InputChoice=Vol,MAType=Sim,Period=21", "MA","D","-1","all",,,,"T"),"") -> 2.433766455 | R36: =IWF!Q595 -> https://finance.yahoo.com/quote/LOW
A37: =TRIM(IWF!O596) -> S.US.COG | B37: News | C37: =RTD("cqg.rtd", ,"ContractData",A37, "LongDescription",, "T")&" ("&RIGHT(A37,LEN(A37)-5)&")" -> Cabot Oil/Gas Corp (COG) | H37: =RTD("cqg.rtd", ,"ContractData",A37, "LastTradeToday",, "T") -> 22.92 | I37: =RTD("cqg.rtd", ,"ContractData",A37, "NetLastTradeToday",, "T") -> -0.63 | J37: =RTD("cqg.rtd", ,"ContractData",A37, "PerCentNetLastTrade",, "T")/100 -> -0.02675159236 | K37: =I37/RTD("cqg.rtd",,"StudyData",A37, "ATR", "MaType=Sim,Period=10", "ATR","D","-1","ALL",,,"FALSE","T")/100 -> -0.009156976744 | L37: =RTD("cqg.rtd", ,"ContractData",A37, "OPen",, "T") -> 23.5 | M37: =RTD("cqg.rtd", ,"ContractData", A37, "HIgh",, "T") -> 23.56 | N37: =RTD("cqg.rtd", ,"ContractData",A37, "LOw",, "T") -> 22.9 | O37: =RTD("cqg.rtd", ,"ContractData",A37, "T_CVol",, "T") -> 2496927 | Q37: =IFERROR(O37/RTD("cqg.rtd",,"StudyData",A37, "MA", "InputChoice=Vol,MAType=Sim,Period=21", "MA","D","-1","all",,,,"T"),"") -> 0.3499249632 | R37: =IWF!Q596 -> https://finance.yahoo.com/quote/COG
A38: =TRIM(IWF!O597) -> S.US.ALXN | B38: News | C38: =RTD("cqg.rtd", ,"ContractData",A38, "LongDescription",, "T")&" ("&RIGHT(A38,LEN(A38)-5)&")" -> Alexion Pharmaceuticals (ALXN) | H38: =RTD("cqg.rtd", ,"ContractData",A38, "LastTradeToday",, "T") -> 101.8 | I38: =RTD("cqg.rtd", ,"ContractData",A38, "NetLastTradeToday",, "T") -> -2.84 | J38: =RTD("cqg.rtd", ,"ContractData",A38, "PerCentNetLastTrade",, "T")/100 -> -0.02714067278 | K38: =I38/RTD("cqg.rtd",,"StudyData",A38, "ATR", "MaType=Sim,Period=10", "ATR","D","-1","ALL",,,"FALSE","T")/100 -> -0.007282051282 | L38: =RTD("cqg.rtd", ,"ContractData",A38, "OPen",, "T") -> 104.5 | M38: =RTD("cqg.rtd", ,"ContractData", A38, "HIgh",, "T") -> 105 | N38: =RTD("cqg.rtd", ,"ContractData",A38, "LOw",, "T") -> 98.63 | O38: =RTD("cqg.rtd", ,"ContractData",A38, "T_CVol",, "T") -> 7769377 | Q38: =IFERROR(O38/RTD("cqg.rtd",,"StudyData",A38, "MA", "InputChoice=Vol,MAType=Sim,Period=21", "MA","D","-1","all",,,,"T"),"") -> 2.614742622 | R38: =IWF!Q597 -> https://finance.yahoo.com/quote/ALXN
A39: =TRIM(IWF!O598) -> S.US.SWN | B39: News | C39: =RTD("cqg.rtd", ,"ContractData",A39, "LongDescription",, "T")&" ("&RIGHT(A39,LEN(A39)-5)&")" -> SOUTHWESTERN ENERGY CO (SWN) | H39: =RTD("cqg.rtd", ,"ContractData",A39, "LastTradeToday",, "T") -> 6.8 | I39: =RTD("cqg.rtd", ,"ContractData",A39, "NetLastTradeToday",, "T") -> -0.19 | J39: =RTD("cqg.rtd", ,"ContractData",A39, "PerCentNetLastTrade",, "T")/100 -> -0.02718168813 | K39: =I39/RTD("cqg.rtd",,"StudyData",A39, "ATR", "MaType=Sim,Period=10", "ATR","D","-1","ALL",,,"FALSE","T")/100 -> -0.00608974359 | L39: =RTD("cqg.rtd", ,"ContractData",A39, "OPen",, "T") -> 7 | M39: =RTD("cqg.rtd", ,"ContractData", A39, "HIgh",, "T") -> 7 | N39: =RTD("cqg.rtd", ,"ContractData",A39, "LOw",, "T") -> 6.73 | O39: =RTD("cqg.rtd", ,"ContractData",A39, "T_CVol",, "T") -> 13467409 | Q39: =IFERROR(O39/RTD("cqg.rtd",,"StudyData",A39, "MA", "InputChoice=Vol,MAType=Sim,Period=21", "MA","D","-1","all",,,,"T"),"") -> 0.6216412867 | R39: =IWF!Q598 -> https://finance.yahoo.com/quote/SWN
A40: =TRIM(IWF!O599) -> S.US.AGIO | B40: News | C40: =RTD("cqg.rtd", ,"ContractData",A40, "LongDescription",, "T")&" ("&RIGHT(A40,LEN(A40)-5)&")" -> Agios Pharmaceuticals, Inc. (AGIO) | H40: =RTD("cqg.rtd", ,"ContractData",A40, "LastTradeToday",, "T") -> 47.05 | I40: =RTD("cqg.rtd", ,"ContractData",A40, "NetLastTradeToday",, "T") -> -1.51 | J40: =RTD("cqg.rtd", ,"ContractData",A40, "PerCentNetLastTrade",, "T")/100 -> -0.03109555189 | K40: =I40/RTD("cqg.rtd",,"StudyData",A40, "ATR", "MaType=Sim,Period=10", "ATR","D","-1","ALL",,,"FALSE","T")/100 -> -0.006533967979 | L40: =RTD("cqg.rtd", ,"ContractData",A40, "OPen",, "T") -> 48.77 | M40: =RTD("cqg.rtd", ,"ContractData", A40, "HIgh",, "T") -> 49.2 | N40: =RTD("cqg.rtd", ,"ContractData",A40, "LOw",, "T") -> 46.85 | O40: =RTD("cqg.rtd", ,"ContractData",A40, "T_CVol",, "T") -> 344950 | Q40: =IFERROR(O40/RTD("cqg.rtd",,"StudyData",A40, "MA", "InputChoice=Vol,MAType=Sim,Period=21", "MA","D","-1","all",,,,"T"),"") -> 0.5666360454 | R40: =IWF!Q599 -> https://finance.yahoo.com/quote/AGIO
A41: =TRIM(IWF!O600) -> S.US.HEI | B41: News | C41: =RTD("cqg.rtd", ,"ContractData",A41, "LongDescription",, "T")&" ("&RIGHT(A41,LEN(A41)-5)&")" -> HEICO CORP (HEI) | H41: =RTD("cqg.rtd", ,"ContractData",A41, "LastTradeToday",, "T") -> 72.04 | I41: =RTD("cqg.rtd", ,"ContractData",A41, "NetLastTradeToday",, "T") -> -2.73 | J41: =RTD("cqg.rtd", ,"ContractData",A41, "PerCentNetLastTrade",, "T")/100 -> -0.03651197004 | K41: =I41/RTD("cqg.rtd",,"StudyData",A41, "ATR", "MaType=Sim,Period=10", "ATR","D","-1","ALL",,,"FALSE","T")/100 -> -0.024375 | L41: =RTD("cqg.rtd", ,"ContractData",A41, "OPen",, "T") -> 73.95 | M41: =RTD("cqg.rtd", ,"ContractData", A41, "HIgh",, "T") -> 73.95 | N41: =RTD("cqg.rtd", ,"ContractData",A41, "LOw",, "T") -> 71.01 | O41: =RTD("cqg.rtd", ,"ContractData",A41, "T_CVol",, "T") -> 326449 | Q41: =IFERROR(O41/RTD("cqg.rtd",,"StudyData",A41, "MA", "InputChoice=Vol,MAType=Sim,Period=21", "MA","D","-1","all",,,,"T"),"") -> 2.108108931 | R41: =IWF!Q600 -> https://finance.yahoo.com/quote/HEI
A42: =TRIM(IWF!O601) -> S.US.XOG | B42: News | C42: =RTD("cqg.rtd", ,"ContractData",A42, "LongDescription",, "T")&" ("&RIGHT(A42,LEN(A42)-5)&")" -> Extraction Oil & Gas, Inc. (XOG) | H42: =RTD("cqg.rtd", ,"ContractData",A42, "LastTradeToday",, "T") -> 15.83 | I42: =RTD("cqg.rtd", ,"ContractData",A42, "NetLastTradeToday",, "T") -> -0.6 | J42: =RTD("cqg.rtd", ,"ContractData",A42, "PerCentNetLastTrade",, "T")/100 -> -0.0365185636 | K42: =I42/RTD("cqg.rtd",,"StudyData",A42, "ATR", "MaType=Sim,Period=10", "ATR","D","-1","ALL",,,"FALSE","T")/100 -> -0.008141112619 | L42: =RTD("cqg.rtd", ,"ContractData",A42, "OPen",, "T") -> 16.43 | M42: =RTD("cqg.rtd", ,"ContractData", A42, "HIgh",, "T") -> 16.46 | N42: =RTD("cqg.rtd", ,"ContractData",A42, "LOw",, "T") -> 15.78 | O42: =RTD("cqg.rtd", ,"ContractData",A42, "T_CVol",, "T") -> 685927 | Q42: =IFERROR(O42/RTD("cqg.rtd",,"StudyData",A42, "MA", "InputChoice=Vol,MAType=Sim,Period=21", "MA","D","-1","all",,,,"T"),"") -> 0.4580782909 | R42: =IWF!Q601 -> https://finance.yahoo.com/quote/XOG
A43: =TRIM(IWF!O602) -> S.US.ULTA | B43: News | C43: =RTD("cqg.rtd", ,"ContractData",A43, "LongDescription",, "T")&" ("&RIGHT(A43,LEN(A43)-5)&")" -> Ulta Salon Cosmetics & Fragrance Inc (ULTA) | H43: =RTD("cqg.rtd", ,"ContractData",A43, "LastTradeToday",, "T") -> 279.39 | I43: =RTD("cqg.rtd", ,"ContractData",A43, "NetLastTradeToday",, "T") -> -11.16 | J43: =RTD("cqg.rtd", ,"ContractData",A43, "PerCentNetLastTrade",, "T")/100 -> -0.03840991224 | K43: =I43/RTD("cqg.rtd",,"StudyData",A43, "ATR", "MaType=Sim,Period=10", "ATR","D","-1","ALL",,,"FALSE","T")/100 -> -0.02366914104 | L43: =RTD("cqg.rtd", ,"ContractData",A43, "OPen",, "T") -> 290.5 | M43: =RTD("cqg.rtd", ,"ContractData", A43, "HIgh",, "T") -> 290.98 | N43: =RTD("cqg.rtd", ,"ContractData",A43, "LOw",, "T") -> 277.68 | O43: =RTD("cqg.rtd", ,"ContractData",A43, "T_CVol",, "T") -> 1470702 | Q43: =IFERROR(O43/RTD("cqg.rtd",,"StudyData",A43, "MA", "InputChoice=Vol,MAType=Sim,Period=21", "MA","D","-1","all",,,,"T"),"") -> 2.573408111 | R43: =IWF!Q602 -> https://finance.yahoo.com/quote/ULTA
A44: =TRIM(IWF!O603) -> S.US.TROW | B44: News | C44: =RTD("cqg.rtd", ,"ContractData",A44, "LongDescription",, "T")&" ("&RIGHT(A44,LEN(A44)-5)&")" -> T Rowe Price Group Inc (TROW) | H44: =RTD("cqg.rtd", ,"ContractData",A44, "LastTradeToday",, "T") -> 67.99 | I44: =RTD("cqg.rtd", ,"ContractData",A44, "NetLastTradeToday",, "T") -> -3.07 | J44: =RTD("cqg.rtd", ,"ContractData",A44, "PerCentNetLastTrade",, "T")/100 -> -0.0432029271 | K44: =I44/RTD("cqg.rtd",,"StudyData",A44, "ATR", "MaType=Sim,Period=10", "ATR","D","-1","ALL",,,"FALSE","T")/100 -> -0.02685914261 | L44: =RTD("cqg.rtd", ,"ContractData",A44, "OPen",, "T") -> 69.07 | M44: =RTD("cqg.rtd", ,"ContractData", A44, "HIgh",, "T") -> 69.51 | N44: =RTD("cqg.rtd", ,"ContractData",A44, "LOw",, "T") -> 67.62 | O44: =RTD("cqg.rtd", ,"ContractData",A44, "T_CVol",, "T") -> 3794599 | Q44: =IFERROR(O44/RTD("cqg.rtd",,"StudyData",A44, "MA", "InputChoice=Vol,MAType=Sim,Period=21", "MA","D","-1","all",,,,"T"),"") -> 2.098191991 | R44: =IWF!Q603 -> https://finance.yahoo.com/quote/TROW
A45: =TRIM(IWF!O604) -> S.US.AAP | B45: News | C45: =RTD("cqg.rtd", ,"ContractData",A45, "LongDescription",, "T")&" ("&RIGHT(A45,LEN(A45)-5)&")" -> Advance Auto Parts Inc (AAP) | H45: =RTD("cqg.rtd", ,"ContractData",A45, "LastTradeToday",, "T") -> 133.74 | I45: =RTD("cqg.rtd", ,"ContractData",A45, "NetLastTradeToday",, "T") -> -6.92 | J45: =RTD("cqg.rtd", ,"ContractData",A45, "PerCentNetLastTrade",, "T")/100 -> -0.04919664439 | K45: =I45/RTD("cqg.rtd",,"StudyData",A45, "ATR", "MaType=Sim,Period=10", "ATR","D","-1","ALL",,,"FALSE","T")/100 -> -0.01905286344 | L45: =RTD("cqg.rtd", ,"ContractData",A45, "OPen",, "T") -> 131.65 | M45: =RTD("cqg.rtd", ,"ContractData", A45, "HIgh",, "T") -> 135.9 | N45: =RTD("cqg.rtd", ,"ContractData",A45, "LOw",, "T") -> 131.3 | O45: =RTD("cqg.rtd", ,"ContractData",A45, "T_CVol",, "T") -> 3815754 | Q45: =IFERROR(O45/RTD("cqg.rtd",,"StudyData",A45, "MA", "InputChoice=Vol,MAType=Sim,Period=21", "MA","D","-1","all",,,,"T"),"") -> 3.058282518 | R45: =IWF!Q604 -> https://finance.yahoo.com/quote/AAP
A46: =TRIM(IWF!O605) -> S.US.ALNY | B46: News | C46: =RTD("cqg.rtd", ,"ContractData",A46, "LongDescription",, "T")&" ("&RIGHT(A46,LEN(A46)-5)&")" -> Alnylam Pharmaceuticals, Inc. (ALNY) | H46: =RTD("cqg.rtd", ,"ContractData",A46, "LastTradeToday",, "T") -> 71.02 | I46: =RTD("cqg.rtd", ,"ContractData",A46, "NetLastTradeToday",, "T") -> -3.85 | J46: =RTD("cqg.rtd", ,"ContractData",A46, "PerCentNetLastTrade",, "T")/100 -> -0.05142246561 | K46: =I46/RTD("cqg.rtd",,"StudyData",A46, "ATR", "MaType=Sim,Period=10", "ATR","D","-1","ALL",,,"FALSE","T")/100 -> -0.009265944645 | L46: =RTD("cqg.rtd", ,"ContractData",A46, "OPen",, "T") -> 71.44 | M46: =RTD("cqg.rtd", ,"ContractData", A46, "HIgh",, "T") -> 71.48 | N46: =RTD("cqg.rtd", ,"ContractData",A46, "LOw",, "T") -> 67.34 | O46: =RTD("cqg.rtd", ,"ContractData",A46, "T_CVol",, "T") -> 3162400 | Q46: =IFERROR(O46/RTD("cqg.rtd",,"StudyData",A46, "MA", "InputChoice=Vol,MAType=Sim,Period=21", "MA","D","-1","all",,,,"T"),"") -> 2.739950289 | R46: =IWF!Q605 -> https://finance.yahoo.com/quote/ALNY
A47: =TRIM(IWF!O606) -> S.US.SIG | B47: News | C47: =RTD("cqg.rtd", ,"ContractData",A47, "LongDescription",, "T")&" ("&RIGHT(A47,LEN(A47)-5)&")" -> Signet Jewelers Limited (SIG) | H47: =RTD("cqg.rtd", ,"ContractData",A47, "LastTradeToday",, "T") -> 54.3 | I47: =RTD("cqg.rtd", ,"ContractData",A47, "NetLastTradeToday",, "T") -> -4.08 | J47: =RTD("cqg.rtd", ,"ContractData",A47, "PerCentNetLastTrade",, "T")/100 -> -0.06988694758 | K47: =I47/RTD("cqg.rtd",,"StudyData",A47, "ATR", "MaType=Sim,Period=10", "ATR","D","-1","ALL",,,"FALSE","T")/100 -> -0.02254143646 | L47: =RTD("cqg.rtd", ,"ContractData",A47, "OPen",, "T") -> 55.42 | M47: =RTD("cqg.rtd", ,"ContractData", A47, "HIgh",, "T") -> 55.96 | N47: =RTD("cqg.rtd", ,"ContractData",A47, "LOw",, "T") -> 52.86 | O47: =RTD("cqg.rtd", ,"ContractData",A47, "T_CVol",, "T") -> 2794111 | Q47: =IFERROR(O47/RTD("cqg.rtd",,"StudyData",A47, "MA", "InputChoice=Vol,MAType=Sim,Period=21", "MA","D","-1","all",,,,"T"),"") -> 2.637929614 | R47: =IWF!Q606 -> https://finance.yahoo.com/quote/SIG
A48: =TRIM(IWF!O607) -> S.US.NBIX | B48: News | C48: =RTD("cqg.rtd", ,"ContractData",A48, "LongDescription",, "T")&" ("&RIGHT(A48,LEN(A48)-5)&")" -> Neurocrine Biosciences Inc (NBIX) | H48: =RTD("cqg.rtd", ,"ContractData",A48, "LastTradeToday",, "T") -> 48.74 | I48: =RTD("cqg.rtd", ,"ContractData",A48, "NetLastTradeToday",, "T") -> -4.79 | J48: =RTD("cqg.rtd", ,"ContractData",A48, "PerCentNetLastTrade",, "T")/100 -> -0.08948253316 | K48: =I48/RTD("cqg.rtd",,"StudyData",A48, "ATR", "MaType=Sim,Period=10", "ATR","D","-1","ALL",,,"FALSE","T")/100 -> -0.0275921659 | L48: =RTD("cqg.rtd", ,"ContractData",A48, "OPen",, "T") -> 50.5 | M48: =RTD("cqg.rtd", ,"ContractData", A48, "HIgh",, "T") -> 50.74 | N48: =RTD("cqg.rtd", ,"ContractData",A48, "LOw",, "T") -> 48 | O48: =RTD("cqg.rtd", ,"ContractData",A48, "T_CVol",, "T") -> 4705026 | Q48: =IFERROR(O48/RTD("cqg.rtd",,"StudyData",A48, "MA", "InputChoice=Vol,MAType=Sim,Period=21", "MA","D","-1","all",,,,"T"),"") -> 4.29016109 | R48: =IWF!Q607 -> https://finance.yahoo.com/quote/NBIX
C49: CQG Inc., Copyright © 2017 | G49: Designed by Thom Hartle | J49: iShares is a registered trademark of BlackRock, Inc. S&P® is a registered trademark of Standard & Poor’s Financial Services LLC. Russell indexes are trademarks of the London Stock Exchange Group companies. | Z49: =Z52 -> 64% of the stocks in the ETF are higher today
Z51: =IWF!AB608 -> 0.6375617792 | AA51: of the stocks in the ETF are higher today
Z52: =IF(IWF!K610=1,"Not all stocks have opened.",TEXT(Display!Z51,"0%")&" "&Display!AA51) -> 64% of the stocks in the ETF are higher today

Sheet IWF (hidden)
C1: S.US.A | D1: =RTD("cqg.rtd", ,"ContractData",C1, "LongDescription",, "T") -> Agilent Technologies | E1: =RTD("cqg.rtd", ,"ContractData",C1, "Open",, "T") -> 58.5 | F1: =RTD("cqg.rtd", ,"ContractData",C1, "High",, "T") -> 59.27 | G1: =RTD("cqg.rtd", ,"ContractData",C1, "Low",, "T") -> 58.07 | H1: =RTD("cqg.rtd", ,"ContractData",C1, "LastTradeToday",, "T") -> 59.23 | I1: =RTD("cqg.rtd", ,"ContractData",C1, "NetLastTradeToday",, "T") -> 0.57 | J1: =IFERROR(RTD("cqg.rtd", ,"ContractData",C1, "PerCentNetLastTrade",, "T")/100,"") -> 0.009717013297 | K1: =RTD("cqg.rtd", ,"ContractData", C1, "T_CVol",, "T") -> 2044110 | L1: 1 | M1: =IFERROR(RANK($J1,$J$1:J$607)+COUNTIF($J$1:J1,J1)-1,"") -> 108 | N1: =C1 -> S.US.A | O1: =VLOOKUP($L1,$M$1:$N$607,2,FALSE) -> S.US.INTU | P1: =RTD("cqg.rtd", ,"ContractData",O1, "PerCentNetLastTrade",, "T")/100 -> 0.06991869919 | Q1: ="https://finance.yahoo.com/quote/"&RIGHT(O1,(LEN(O1)-5)) -> https://finance.yahoo.com/quote/INTU | S1: =IF(P1>=0,P1,NA()) -> 0.06991869919 | T1: =IF(P1>=0,NA(),-1*P1) ->  | V1: =RTD("cqg.rtd", ,"ContractData",O1, "LongDescription",, "T") -> Intuit Corp | Y1: =IFERROR(S1,P1) -> 0.06991869919 | AA1: =IF(S1="NA()",0,1) -> 1 | AB1: =IFERROR(AA1,0) -> 1 | AD1: =IFERROR(S1,"") -> 0.06991869919 | AE1: =IFERROR(T1,"") ->  | AF1: =IF(AE1="","",Y1) -> 
C2: S.US.AAP | D2: =RTD("cqg.rtd", ,"ContractData",C2, "LongDescription",, "T") -> Advance Auto Parts Inc | E2: =RTD("cqg.rtd", ,"ContractData",C2, "Open",, "T") -> 131.65 | F2: =RTD("cqg.rtd", ,"ContractData",C2, "High",, "T") -> 135.9 | G2: =RTD("cqg.rtd", ,"ContractData",C2, "Low",, "T") -> 131.3 | H2: =RTD("cqg.rtd", ,"ContractData",C2, "LastTradeToday",, "T") -> 133.74 | I2: =RTD("cqg.rtd", ,"ContractData",C2, "NetLastTradeToday",, "T") -> -6.92 | J2: =IFERROR(RTD("cqg.rtd", ,"ContractData",C2, "PerCentNetLastTrade",, "T")/100,"") -> -0.04919664439 | K2: =RTD("cqg.rtd", ,"ContractData", C2, "T_CVol",, "T") -> 3815754 | L2: =L1+1 -> 2 | M2: =IFERROR(RANK($J2,$J$1:J$607)+COUNTIF($J$1:J2,J2)-1,"") -> 604 | N2: =C2 -> S.US.AAP | O2: =VLOOKUP($L2,$M$1:$N$607,2,FALSE) -> S.US.RAD | P2: =RTD("cqg.rtd", ,"ContractData",O2, "PerCentNetLastTrade",, "T")/100 -> 0.0593220339 | Q2: ="https://finance.yahoo.com/quote/"&RIGHT(O2,(LEN(O2)-5)) -> https://finance.yahoo.com/quote/RAD | S2: =IF(P2>=0,P2,NA()) -> 0.0593220339 | T2: =IF(P2>=0,NA(),-1*P2) ->  | V2: =RTD("cqg.rtd", ,"ContractData",O2, "LongDescription",, "T") -> Rite Aid Corp | Y2: =IFERROR(S2,P2) -> 0.0593220339 | AA2: =IF(S2="NA()",0,1) -> 1 | AB2: =IFERROR(AA2,0) -> 1 | AD2: =IFERROR(S2,"") -> 0.0593220339 | AE2: =IFERROR(T2,"") ->  | AF2: =IF(AE2="","",Y2) -> 
C3: S.US.AAPL | D3: =RTD("cqg.rtd", ,"ContractData",C3, "LongDescription",, "T") -> Apple Inc | E3: =RTD("cqg.rtd", ,"ContractData",C3, "Open",, "T") -> 153.84 | F3: =RTD("cqg.rtd", ,"ContractData",C3, "High",, "T") -> 154.17 | G3: =RTD("cqg.rtd", ,"ContractData",C3, "Low",, "T") -> 152.67 | H3: =RTD("cqg.rtd", ,"ContractData",C3, "LastTradeToday",, "T") -> 153.24 | I3: =RTD("cqg.rtd", ,"ContractData",C3, "NetLastTradeToday",, "T") -> -0.56 | J3: =IFERROR(RTD("cqg.rtd", ,"ContractData",C3, "PerCentNetLastTrade",, "T")/100,"") -> -0.003641092328 | K3: =RTD("cqg.rtd", ,"ContractData", C3, "T_CVol",, "T") -> 13047951 | L3: =L2+1 -> 3 | M3: =IFERROR(RANK($J3,$J$1:J$607)+COUNTIF($J$1:J3,J3)-1,"") -> 464 | N3: S.US.AAPL | O3: S.US.ATHN | P3: =RTD("cqg.rtd", ,"ContractData",O3, "PerCentNetLastTrade",, "T")/100 -> 0.04497955475 | Q3: https://finance.yahoo.com/quote/ATHN | S3: 0.04497955475 | V3: =RTD("cqg.rtd", ,"ContractData",O3, "LongDescription",, "T") -> Athenahelth Inc | Y3: 0.04497955475 | AA3: 1 | AB3: 1 | AD3: 0.04497955475
C4: S.US.ABBV | D4: =RTD("cqg.rtd", ,"ContractData",C4, "LongDescription",, "T") -> AbbVie Inc. | E4: =RTD("cqg.rtd", ,"ContractData",C4, "Open",, "T") -> 65.79 | F4: =RTD("cqg.rtd", ,"ContractData",C4, "High",, "T") -> 66.07 | G4: =RTD("cqg.rtd", ,"ContractData",C4, "Low",, "T") -> 63.76 | H4: =RTD("cqg.rtd", ,"ContractData",C4, "LastTradeToday",, "T") -> 66 | I4: =RTD("cqg.rtd", ,"ContractData",C4, "NetLastTradeToday",, "T") -> 0.16 | J4: =IFERROR(RTD("cqg.rtd", ,"ContractData",C4, "PerCentNetLastTrade",, "T")/100,"") -> 0.002430133657 | K4: =RTD("cqg.rtd", ,"ContractData", C4, "T_CVol",, "T") -> 1671204 | L4: 4 | M4: =IFERROR(RANK($J4,$J$1:J$607)+COUNTIF($J$1:J4,J4)-1,"") -> 300 | N4: S.US.ABBV | O4: S.US.IONS | P4: =RTD("cqg.rtd", ,"ContractData",O4, "PerCentNetLastTrade",, "T")/100 -> 0.04120513957 | Q4: https://finance.yahoo.com/quote/IONS | S4: 0.04120513957 | V4: =RTD("cqg.rtd", ,"ContractData",O4, "LongDescription",, "T") -> Ionis Pharmaceuticals, Inc. | Y4: 0.04120513957 | AA4: 1 | AB4: 1 | AD4: 0.04120513957
C5: S.US.ABC | D5: =RTD("cqg.rtd", ,"ContractData",C5, "LongDescription",, "T") -> AmerisourceBergen Corp | E5: =RTD("cqg.rtd", ,"ContractData",C5, "Open",, "T") -> 89.38 | F5: =RTD("cqg.rtd", ,"ContractData",C5, "High",, "T") -> 90.32 | G5: =RTD("cqg.rtd", ,"ContractData",C5, "Low",, "T") -> 88.55 | H5: =RTD("cqg.rtd", ,"ContractData",C5, "LastTradeToday",, "T") -> 90.25 | I5: =RTD("cqg.rtd", ,"ContractData",C5, "NetLastTradeToday",, "T") -> 1.06 | J5: =IFERROR(RTD("cqg.rtd", ,"ContractData",C5, "PerCentNetLastTrade",, "T")/100,"") -> 0.01188474044 | K5: =RTD("cqg.rtd", ,"ContractData", C5, "T_CVol",, "T") -> 483365 | L5: 5 | M5: =IFERROR(RANK($J5,$J$1:J$607)+COUNTIF($J$1:J5,J5)-1,"") -> 79 | N5: S.US.ABC | O5: S.US.ICPT | P5: =RTD("cqg.rtd", ,"ContractData",O5, "PerCentNetLastTrade",, "T")/100 -> 0.03920700947 | Q5: https://finance.yahoo.com/quote/ICPT | S5: 0.03920700947 | V5: =RTD("cqg.rtd", ,"ContractData",O5, "LongDescription",, "T") -> Intercept Pharmaceuticals, Inc. | Y5: 0.03920700947 | AA5: 1 | AB5: 1 | AD5: 0.03920700947
C6: S.US.ABMD | D6: =RTD("cqg.rtd", ,"ContractData",C6, "LongDescription",, "T") -> ABIOMED Inc | E6: =RTD("cqg.rtd", ,"ContractData",C6, "Open",, "T") -> 135 | F6: =RTD("cqg.rtd", ,"ContractData",C6, "High",, "T") -> 135.44 | G6: =RTD("cqg.rtd", ,"ContractData",C6, "Low",, "T") -> 134.31 | H6: =RTD("cqg.rtd", ,"ContractData",C6, "LastTradeToday",, "T") -> 134.98 | I6: =RTD("cqg.rtd", ,"ContractData",C6, "NetLastTradeToday",, "T") -> 0.24 | J6: =IFERROR(RTD("cqg.rtd", ,"ContractData",C6, "PerCentNetLastTrade",, "T")/100,"") -> 0.001781208253 | K6: =RTD("cqg.rtd", ,"ContractData", C6, "T_CVol",, "T") -> 264931 | L6: 6 | M6: =IFERROR(RANK($J6,$J$1:J$607)+COUNTIF($J$1:J6,J6)-1,"") -> 328 | N6: S.US.ABMD | O6: S.US.NTNX | P6: =RTD("cqg.rtd", ,"ContractData",O6, "PerCentNetLastTrade",, "T")/100 -> 0.03760282021 | Q6: https://finance.yahoo.com/quote/NTNX | S6: 0.03760282021 | V6: =RTD("cqg.rtd", ,"ContractData",O6, "LongDescription",, "T") -> Nutanix, Inc. Class A | Y6: 0.03760282021 | AA6: 1 | AB6: 1 | AD6: 0.03760282021 | AH6: https://finance.yahoo.com/quote/LRCX
C7: S.US.ABT | D7: =RTD("cqg.rtd", ,"ContractData",C7, "LongDescription",, "T") -> Abbott Laboratories | E7: =RTD("cqg.rtd", ,"ContractData",C7, "Open",, "T") -> 43.79 | F7: =RTD("cqg.rtd", ,"ContractData",C7, "High",, "T") -> 43.79 | G7: =RTD("cqg.rtd", ,"ContractData",C7, "Low",, "T") -> 43.39 | H7: =RTD("cqg.rtd", ,"ContractData",C7, "LastTradeToday",, "T") -> 43.54 | I7: =RTD("cqg.rtd", ,"ContractData",C7, "NetLastTradeToday",, "T") -> -0.14 | J7: =IFERROR(RTD("cqg.rtd", ,"ContractData",C7, "PerCentNetLastTrade",, "T")/100,"") -> -0.003205128205 | K7: =RTD("cqg.rtd", ,"ContractData", C7, "T_CVol",, "T") -> 2758465 | L7: 7 | M7: =IFERROR(RANK($J7,$J$1:J$607)+COUNTIF($J$1:J7,J7)-1,"") -> 456 | N7: S.US.ABT | O7: S.US.TCO | P7: =RTD("cqg.rtd", ,"ContractData",O7, "PerCentNetLastTrade",, "T")/100 -> 0.03687315634 | Q7: https://finance.yahoo.com/quote/TCO | S7: 0.03687315634 | V7: =RTD("cqg.rtd", ,"ContractData",O7, "LongDescription",, "T") -> Taubman Centers Inc | Y7: 0.03687315634 | AA7: 1 | AB7: 1 | AD7: 0.03687315634
C8: S.US.ACAD | D8: =RTD("cqg.rtd", ,"ContractData",C8, "LongDescription",, "T") -> ACADIA Pharmaceuticals, Inc. | E8: =RTD("cqg.rtd", ,"ContractData",C8, "Open",, "T") -> 27.35 | F8: =RTD("cqg.rtd", ,"ContractData",C8, "High",, "T") -> 27.6 | G8: =RTD("cqg.rtd", ,"ContractData",C8, "Low",, "T") -> 26.93 | H8: =RTD("cqg.rtd", ,"ContractData",C8, "LastTradeToday",, "T") -> 27.51 | I8: =RTD("cqg.rtd", ,"ContractData",C8, "NetLastTradeToday",, "T") -> -0.04 | J8: =IFERROR(RTD("cqg.rtd", ,"ContractData",C8, "PerCentNetLastTrade",, "T")/100,"") -> -0.001451905626 | K8: =RTD("cqg.rtd", ,"ContractData", C8, "T_CVol",, "T") -> 1005005 | L8: 8 | M8: =IFERROR(RANK($J8,$J$1:J$607)+COUNTIF($J$1:J8,J8)-1,"") -> 425 | N8: S.US.ACAD | O8: S.US.MAT | P8: =RTD("cqg.rtd", ,"ContractData",O8, "PerCentNetLastTrade",, "T")/100 -> 0.03402298851 | Q8: https://finance.yahoo.com/quote/MAT | S8: 0.03402298851 | V8: =RTD("cqg.rtd", ,"ContractData",O8, "LongDescription",, "T") -> Mattel Inc | Y8: 0.03402298851 | AA8: 1 | AB8: 1 | AD8: 0.03402298851
C9: S.US.ACHC | D9: =RTD("cqg.rtd", ,"ContractData",C9, "LongDescription",, "T") -> Acadia Healthcare Company, Inc. | E9: =RTD("cqg.rtd", ,"ContractData",C9, "Open",, "T") -> 43.29 | F9: =RTD("cqg.rtd", ,"ContractData",C9, "High",, "T") -> 43.33 | G9: =RTD("cqg.rtd", ,"ContractData",C9, "Low",, "T") -> 42.05 | H9: =RTD("cqg.rtd", ,"ContractData",C9, "LastTradeToday",, "T") -> 42.78 | I9: =RTD("cqg.rtd", ,"ContractData",C9, "NetLastTradeToday",, "T") -> -0.38 | J9: =IFERROR(RTD("cqg.rtd", ,"ContractData",C9, "PerCentNetLastTrade",, "T")/100,"") -> -0.008804448563 | K9: =RTD("cqg.rtd", ,"ContractData", C9, "T_CVol",, "T") -> 701629 | L9: 9 | M9: =IFERROR(RANK($J9,$J$1:J$607)+COUNTIF($J$1:J9,J9)-1,"") -> 531 | N9: S.US.ACHC | O9: S.US.CHTR | P9: =RTD("cqg.rtd", ,"ContractData",O9, "PerCentNetLastTrade",, "T")/100 -> 0.03356441545 | Q9: https://finance.yahoo.com/quote/CHTR | S9: 0.03356441545 | V9: =RTD("cqg.rtd", ,"ContractData",O9, "LongDescription",, "T") -> Charter Communications, Inc. Class A | Y9: 0.03356441545 | AA9: 1 | AB9: 1 | AD9: 0.03356441545
C10: S.US.ACN | D10: =RTD("cqg.rtd", ,"ContractData",C10, "LongDescription",, "T") -> Accenture PLC Ireland | E10: =RTD("cqg.rtd", ,"ContractData",C10, "Open",, "T") -> 120.43 | F10: =RTD("cqg.rtd", ,"ContractData",C10, "High",, "T") -> 121.97 | G10: =RTD("cqg.rtd", ,"ContractData",C10, "Low",, "T") -> 120.3 | H10: =RTD("cqg.rtd", ,"ContractData",C10, "LastTradeToday",, "T") -> 121.9 | I10: =RTD("cqg.rtd", ,"ContractData",C10, "NetLastTradeToday",, "T") -> -0.25 | J10: =IFERROR(RTD("cqg.rtd", ,"ContractData",C10, "PerCentNetLastTrade",, "T")/100,"") -> -0.002046663938 | K10: =RTD("cqg.rtd", ,"ContractData", C10, "T_CVol",, "T") -> 1045834 | L10: 10 | M10: =IFERROR(RANK($J10,$J$1:J$607)+COUNTIF($J$1:J10,J10)-1,"") -> 432 | N10: S.US.ACN | O10: S.US.EV | P10: =RTD("cqg.rtd", ,"ContractData",O10, "PerCentNetLastTrade",, "T")/100 -> 0.03142983621 | Q10: https://finance.yahoo.com/quote/EV | S10: 0.03142983621 | V10: =RTD("cqg.rtd", ,"ContractData",O10, "LongDescription",, "T") -> Eaton Vance Corp | Y10: 0.03142983621 | AA10: 1 | AB10: 1 | AD10: 0.03142983621
C11: S.US.ADBE | D11: =RTD("cqg.rtd", ,"ContractData",C11, "LongDescription",, "T") -> Adobe Systems Inc | E11: =RTD("cqg.rtd", ,"ContractData",C11, "Open",, "T") -> 140.18 | F11: =RTD("cqg.rtd", ,"ContractData",C11, "High",, "T") -> 141.11 | G11: =RTD("cqg.rtd", ,"ContractData",C11, "Low",, "T") -> 139.81 | H11: =RTD("cqg.rtd", ,"ContractData",C11, "LastTradeToday",, "T") -> 140.98 | I11: =RTD("cqg.rtd", ,"ContractData",C11, "NetLastTradeToday",, "T") -> 1.46 | J11: =IFERROR(RTD("cqg.rtd", ,"ContractData",C11, "PerCentNetLastTrade",, "T")/100,"") -> 0.01046444954 | K11: =RTD("cqg.rtd", ,"ContractData", C11, "T_CVol",, "T") -> 1099037 | L11: 11 | M11: =IFERROR(RANK($J11,$J$1:J$607)+COUNTIF($J$1:J11,J11)-1,"") -> 100 | N11: S.US.ADBE | O11: S.US.DPZ | P11: =RTD("cqg.rtd", ,"ContractData",O11, "PerCentNetLastTrade",, "T")/100 -> 0.02966122961 | Q11: https://finance.yahoo.com/quote/DPZ | S11: 0.02966122961 | V11: =RTD("cqg.rtd", ,"ContractData",O11, "LongDescription",, "T") -> Dominos Pizza, Inc. | Y11: 0.02966122961 | AA11: 1 | AB11: 1 | AD11: 0.02966122961
C12: S.US.ADI | D12: =RTD("cqg.rtd", ,"ContractData",C12, "LongDescription",, "T") -> Analog Devices Inc | E12: =RTD("cqg.rtd", ,"ContractData",C12, "Open",, "T") -> 82.46 | F12: =RTD("cqg.rtd", ,"ContractData",C12, "High",, "T") -> 82.58 | G12: =RTD("cqg.rtd", ,"ContractData",C12, "Low",, "T") -> 81.67 | H12: =RTD("cqg.rtd", ,"ContractData",C12, "LastTradeToday",, "T") -> 81.92 | I12: =RTD("cqg.rtd", ,"ContractData",C12, "NetLastTradeToday",, "T") -> -0.04 | J12: =IFERROR(RTD("cqg.rtd", ,"ContractData",C12, "PerCentNetLastTrade",, "T")/100,"") -> -0.0004880429478 | K12: =RTD("cqg.rtd", ,"ContractData", C12, "T_CVol",, "T") -> 1101990 | L12: 12 | M12: =IFERROR(RANK($J12,$J$1:J$607)+COUNTIF($J$1:J12,J12)-1,"") -> 400 | N12: S.US.ADI | O12: S.US.BIVV | P12: =RTD("cqg.rtd", ,"ContractData",O12, "PerCentNetLastTrade",, "T")/100 -> 0.02914285714 | Q12: https://finance.yahoo.com/quote/BIVV | S12: 0.02914285714 | V12: =RTD("cqg.rtd", ,"ContractData",O12, "LongDescription",, "T") -> Bioverativ Inc. | Y12: 0.02914285714 | AA12: 1 | AB12: 1 | AD12: 0.02914285714
C13: S.US.ADNT | D13: =RTD("cqg.rtd", ,"ContractData",C13, "LongDescription",, "T") -> Adient PLC | E13: =RTD("cqg.rtd", ,"ContractData",C13, "Open",, "T") -> 68.48 | F13: =RTD("cqg.rtd", ,"ContractData",C13, "High",, "T") -> 68.58 | G13: =RTD("cqg.rtd", ,"ContractData",C13, "Low",, "T") -> 67.5 | H13: =RTD("cqg.rtd", ,"ContractData",C13, "LastTradeToday",, "T") -> 67.58 | I13: =RTD("cqg.rtd", ,"ContractData",C13, "NetLastTradeToday",, "T") -> -0.97 | J13: =IFERROR(RTD("cqg.rtd", ,"ContractData",C13, "PerCentNetLastTrade",, "T")/100,"") -> -0.01415025529 | K13: =RTD("cqg.rtd", ,"ContractData", C13, "T_CVol",, "T") -> 313842 | L13: 13 | M13: =IFERROR(RANK($J13,$J$1:J$607)+COUNTIF($J$1:J13,J13)-1,"") -> 570 | N13: S.US.ADNT | O13: S.US.GPK | P13: =RTD("cqg.rtd", ,"ContractData",O13, "PerCentNetLastTrade",, "T")/100 -> 0.02907421576 | Q13: https://finance.yahoo.com/quote/GPK | S13: 0.02907421576 | V13: =RTD("cqg.rtd", ,"ContractData",O13, "LongDescription",, "T") -> Graphic Packaging Holding Company | Y13: 0.02907421576 | AA13: 1 | AB13: 1 | AD13: 0.02907421576
C14: S.US.ADP | D14: =RTD("cqg.rtd", ,"ContractData",C14, "LongDescription",, "T") -> Auto Data Processing Inc | E14: =RTD("cqg.rtd", ,"ContractData",C14, "Open",, "T") -> 99.49 | F14: =RTD("cqg.rtd", ,"ContractData",C14, "High",, "T") -> 99.98 | G14: =RTD("cqg.rtd", ,"ContractData",C14, "Low",, "T") -> 99.43 | H14: =RTD("cqg.rtd", ,"ContractData",C14, "LastTradeToday",, "T") -> 99.9 | I14: =RTD("cqg.rtd", ,"ContractData",C14, "NetLastTradeToday",, "T") -> 0.37 | J14: =IFERROR(RTD("cqg.rtd", ,"ContractData",C14, "PerCentNetLastTrade",, "T")/100,"") -> 0.003717472119 | K14: =RTD("cqg.rtd", ,"ContractData", C14, "T_CVol",, "T") -> 1273669 | L14: 14 | M14: =IFERROR(RANK($J14,$J$1:J$607)+COUNTIF($J$1:J14,J14)-1,"") -> 249 | N14: S.US.ADP | O14: S.US.SIRI | P14: =RTD("cqg.rtd", ,"ContractData",O14, "PerCentNetLastTrade",, "T")/100 -> 0.02816901408 | Q14: https://finance.yahoo.com/quote/SIRI | S14: 0.02816901408 | V14: =RTD("cqg.rtd", ,"ContractData",O14, "LongDescription",, "T") -> Sirius XM Holdings Inc. | Y14: 0.02816901408 | AA14: 1 | AB14: 1 | AD14: 0.02816901408
C15: S.US.ADS | D15: =RTD("cqg.rtd", ,"ContractData",C15, "LongDescription",, "T") -> Alliance Data Systems Corp | E15: =RTD("cqg.rtd", ,"ContractData",C15, "Open",, "T") -> 236.21 | F15: =RTD("cqg.rtd", ,"ContractData",C15, "High",, "T") -> 238.43 | G15: =RTD("cqg.rtd", ,"ContractData",C15, "Low",, "T") -> 234.01 | H15: =RTD("cqg.rtd", ,"ContractData",C15, "LastTradeToday",, "T") -> 237.81 | I15: =RTD("cqg.rtd", ,"ContractData",C15, "NetLastTradeToday",, "T") -> 1.6 | J15: =IFERROR(RTD("cqg.rtd", ,"ContractData",C15, "PerCentNetLastTrade",, "T")/100,"") -> 0.006773633631 | K15: =RTD("cqg.rtd", ,"ContractData", C15, "T_CVol",, "T") -> 227427 | L15: 15 | M15: =IFERROR(RANK($J15,$J$1:J$607)+COUNTIF($J$1:J15,J15)-1,"") -> 176 | N15: S.US.ADS | O15: S.US.SPB | P15: =RTD("cqg.rtd", ,"ContractData",O15, "PerCentNetLastTrade",, "T")/100 -> 0.02619616303 | Q15: https://finance.yahoo.com/quote/SPB | S15: 0.02619616303 | V15: =RTD("cqg.rtd", ,"ContractData",O15, "LongDescription",, "T") -> Spectrum Brands Inc | Y15: 0.02619616303 | AA15: 1 | AB15: 1 | AD15: 0.02619616303
C16: S.US.ADSK | D16: =RTD("cqg.rtd", ,"ContractData",C16, "LongDescription",, "T") -> Autodesk Inc | E16: =RTD("cqg.rtd", ,"ContractData",C16, "Open",, "T") -> 113.86 | F16: =RTD("cqg.rtd", ,"ContractData",C16, "High",, "T") -> 114.06 | G16: =RTD("cqg.rtd", ,"ContractData",C16, "Low",, "T") -> 111.95 | H16: =RTD("cqg.rtd", ,"ContractData",C16, "LastTradeToday",, "T") -> 112.11 | I16: =RTD("cqg.rtd", ,"ContractData",C16, "NetLastTradeToday",, "T") -> -0.86 | J16: =IFERROR(RTD("cqg.rtd", ,"ContractData",C16, "PerCentNetLastTrade",, "T")/100,"") -> -0.007612640524 | K16: =RTD("cqg.rtd", ,"ContractData", C16, "T_CVol",, "T") -> 1990814 | L16: 16 | M16: =IFERROR(RANK($J16,$J$1:J$607)+COUNTIF($J$1:J16,J16)-1,"") -> 519 | N16: S.US.ADSK | O16: S.US.AZO | P16: =RTD("cqg.rtd", ,"ContractData",O16, "PerCentNetLastTrade",, "T")/100 -> 0.02602339181 | Q16: https://finance.yahoo.com/quote/AZO | S16: 0.02602339181 | V16: =RTD("cqg.rtd", ,"ContractData",O16, "LongDescription",, "T") -> Autozone Inc | Y16: 0.02602339181 | AA16: 1 | AB16: 1 | AD16: 0.02602339181
C17: S.US.AET | D17: =RTD("cqg.rtd", ,"ContractData",C17, "LongDescription",, "T") -> Aetna Inc | E17: =RTD("cqg.rtd", ,"ContractData",C17, "Open",, "T") -> 141.88 | F17: =RTD("cqg.rtd", ,"ContractData",C17, "High",, "T") -> 144.39 | G17: =RTD("cqg.rtd", ,"ContractData",C17, "Low",, "T") -> 141.6 | H17: =RTD("cqg.rtd", ,"ContractData",C17, "LastTradeToday",, "T") -> 144.31 | I17: =RTD("cqg.rtd", ,"ContractData",C17, "NetLastTradeToday",, "T") -> 2.42 | J17: =IFERROR(RTD("cqg.rtd", ,"ContractData",C17, "PerCentNetLastTrade",, "T")/100,"") -> 0.0170554655 | K17: =RTD("cqg.rtd", ,"ContractData", C17, "T_CVol",, "T") -> 947168 | L17: 17 | M17: =IFERROR(RANK($J17,$J$1:J$607)+COUNTIF($J$1:J17,J17)-1,"") -> 41 | N17: S.US.AET | O17: S.US.HAS | P17: =RTD("cqg.rtd", ,"ContractData",O17, "PerCentNetLastTrade",, "T")/100 -> 0.0256486433 | Q17: https://finance.yahoo.com/quote/HAS | S17: 0.0256486433 | V17: =RTD("cqg.rtd", ,"ContractData",O17, "LongDescription",, "T") -> Hasbro Inc | Y17: 0.0256486433 | AA17: 1 | AB17: 1 | AD17: 0.0256486433
C18: S.US.AFSI | D18: =RTD("cqg.rtd", ,"ContractData",C18, "LongDescription",, "T") -> AmTrust Financial Services | E18: =RTD("cqg.rtd", ,"ContractData",C18, "Open",, "T") -> 12.2 | F18: =RTD("cqg.rtd", ,"ContractData",C18, "High",, "T") -> 12.46 | G18: =RTD("cqg.rtd", ,"ContractData",C18, "Low",, "T") -> 12.19 | H18: =RTD("cqg.rtd", ,"ContractData",C18, "LastTradeToday",, "T") -> 12.38 | I18: =RTD("cqg.rtd", ,"ContractData",C18, "NetLastTradeToday",, "T") -> 0.2 | J18: =IFERROR(RTD("cqg.rtd", ,"ContractData",C18, "PerCentNetLastTrade",, "T")/100,"") -> 0.01642036125 | K18: =RTD("cqg.rtd", ,"ContractData", C18, "T_CVol",, "T") -> 601751 | L18: 18 | M18: =IFERROR(RANK($J18,$J$1:J$607)+COUNTIF($J$1:J18,J18)-1,"") -> 47 | N18: S.US.AFSI | O18: S.US.LW | P18: =RTD("cqg.rtd", ,"ContractData",O18, "PerCentNetLastTrade",, "T")/100 -> 0.02487562189 | Q18: https://finance.yahoo.com/quote/LW | S18: 0.02487562189 | V18: =RTD("cqg.rtd", ,"ContractData",O18, "LongDescription",, "T") -> Lamb Weston Holdings, Inc. | Y18: 0.02487562189 | AA18: 1 | AB18: 1 | AD18: 0.02487562189
C19: S.US.AGIO | D19: =RTD("cqg.rtd", ,"ContractData",C19, "LongDescription",, "T") -> Agios Pharmaceuticals, Inc. | E19: =RTD("cqg.rtd", ,"ContractData",C19, "Open",, "T") -> 48.77 | F19: =RTD("cqg.rtd", ,"ContractData",C19, "High",, "T") -> 49.2 | G19: =RTD("cqg.rtd", ,"ContractData",C19, "Low",, "T") -> 46.85 | H19: =RTD("cqg.rtd", ,"ContractData",C19, "LastTradeToday",, "T") -> 47.05 | I19: =RTD("cqg.rtd", ,"ContractData",C19, "NetLastTradeToday",, "T") -> -1.51 | J19: =IFERROR(RTD("cqg.rtd", ,"ContractData",C19, "PerCentNetLastTrade",, "T")/100,"") -> -0.03109555189 | K19: =RTD("cqg.rtd", ,"ContractData", C19, "T_CVol",, "T") -> 344950 | L19: 19 | M19: =IFERROR(RANK($J19,$J$1:J$607)+COUNTIF($J$1:J19,J19)-1,"") -> 599 | N19: S.US.AGIO | O19: S.US.HLF | P19: =RTD("cqg.rtd", ,"ContractData",O19, "PerCentNetLastTrade",, "T")/100 -> 0.02404751557 | Q19: https://finance.yahoo.com/quote/HLF | S19: 0.02404751557 | V19: =RTD("cqg.rtd", ,"ContractData",O19, "LongDescription",, "T") -> Herbal Life LTD | Y19: 0.02404751557 | AA19: 1 | AB19: 1 | AD19: 0.02404751557
C20: S.US.AGN | D20: =RTD("cqg.rtd", ,"ContractData",C20, "LongDescription",, "T") -> Allergan plc | E20: =RTD("cqg.rtd", ,"ContractData",C20, "Open",, "T") -> 221.37 | F20: =RTD("cqg.rtd", ,"ContractData",C20, "High",, "T") -> 225.35 | G20: =RTD("cqg.rtd", ,"ContractData",C20, "Low",, "T") -> 221.26 | H20: =RTD("cqg.rtd", ,"ContractData",C20, "LastTradeToday",, "T") -> 224.69 | I20: =RTD("cqg.rtd", ,"ContractData",C20, "NetLastTradeToday",, "T") -> 4.03 | J20: =IFERROR(RTD("cqg.rtd", ,"ContractData",C20, "PerCentNetLastTrade",, "T")/100,"") -> 0.01826339164 | K20: =RTD("cqg.rtd", ,"ContractData", C20, "T_CVol",, "T") -> 1667787 | L20: 20 | M20: =IFERROR(RANK($J20,$J$1:J$607)+COUNTIF($J$1:J20,J20)-1,"") -> 33 | N20: S.US.AGN | O20: S.US.WU | P20: =RTD("cqg.rtd", ,"ContractData",O20, "PerCentNetLastTrade",, "T")/100 -> 0.02337938363 | Q20: https://finance.yahoo.com/quote/WU | S20: 0.02337938363 | V20: =RTD("cqg.rtd", ,"ContractData",O20, "LongDescription",, "T") -> The Western Union Company | Y20: 0.02337938363 | AA20: 1 | AB20: 1 | AD20: 0.02337938363
C21: S.US.AJG | D21: =RTD("cqg.rtd", ,"ContractData",C21, "LongDescription",, "T") -> Arthur J Gallagher Co | E21: =RTD("cqg.rtd", ,"ContractData",C21, "Open",, "T") -> 56.72 | F21: =RTD("cqg.rtd", ,"ContractData",C21, "High",, "T") -> 56.74 | G21: =RTD("cqg.rtd", ,"ContractData",C21, "Low",, "T") -> 56.52 | H21: =RTD("cqg.rtd", ,"ContractData",C21, "LastTradeToday",, "T") -> 56.66 | I21: =RTD("cqg.rtd", ,"ContractData",C21, "NetLastTradeToday",, "T") -> -0.03 | J21: =IFERROR(RTD("cqg.rtd", ,"ContractData",C21, "PerCentNetLastTrade",, "T")/100,"") -> -0.0005291938614 | K21: =RTD("cqg.rtd", ,"ContractData", C21, "T_CVol",, "T") -> 203591 | L21: 21 | M21: =IFERROR(RANK($J21,$J$1:J$607)+COUNTIF($J$1:J21,J21)-1,"") -> 402 | N21: S.US.AJG | O21: S.US.EA | P21: =RTD("cqg.rtd", ,"ContractData",O21, "PerCentNetLastTrade",, "T")/100 -> 0.02311714522 | Q21: https://finance.yahoo.com/quote/EA | S21: 0.02311714522 | V21: =RTD("cqg.rtd", ,"ContractData",O21, "LongDescription",, "T") -> Electronic Arts | Y21: 0.02311714522 | AA21: 1 | AB21: 1 | AD21: 0.02311714522
C22: S.US.AKAM | D22: =RTD("cqg.rtd", ,"ContractData",C22, "LongDescription",, "T") -> Akamai Tech Inc | E22: =RTD("cqg.rtd", ,"ContractData",C22, "Open",, "T") -> 47.54 | F22: =RTD("cqg.rtd", ,"ContractData",C22, "High",, "T") -> 47.92 | G22: =RTD("cqg.rtd", ,"ContractData",C22, "Low",, "T") -> 47.16 | H22: =RTD("cqg.rtd", ,"ContractData",C22, "LastTradeToday",, "T") -> 47.77 | I22: =RTD("cqg.rtd", ,"ContractData",C22, "NetLastTradeToday",, "T") -> 0.36 | J22: =IFERROR(RTD("cqg.rtd", ,"ContractData",C22, "PerCentNetLastTrade",, "T")/100,"") -> 0.00759333474 | K22: =RTD("cqg.rtd", ,"ContractData", C22, "T_CVol",, "T") -> 1214194 | L22: 22 | M22: =IFERROR(RANK($J22,$J$1:J$607)+COUNTIF($J$1:J22,J22)-1,"") -> 150 | N22: S.US.AKAM | O22: S.US.REG | P22: =RTD("cqg.rtd", ,"ContractData",O22, "PerCentNetLastTrade",, "T")/100 -> 0.02123107307 | Q22: https://finance.yahoo.com/quote/REG | S22: 0.02123107307 | V22: =RTD("cqg.rtd", ,"ContractData",O22, "LongDescription",, "T") -> Regency Realty Corp | Y22: 0.02123107307 | AA22: 1 | AB22: 1 | AD22: 0.02123107307
C23: S.US.AKRX | D23: =RTD("cqg.rtd", ,"ContractData",C23, "LongDescription",, "T") -> Akorn Inc | E23: =RTD("cqg.rtd", ,"ContractData",C23, "Open",, "T") -> 33.16 | F23: =RTD("cqg.rtd", ,"ContractData",C23, "High",, "T") -> 33.23 | G23: =RTD("cqg.rtd", ,"ContractData",C23, "Low",, "T") -> 33.12 | H23: =RTD("cqg.rtd", ,"ContractData",C23, "LastTradeToday",, "T") -> 33.16 | I23: =RTD("cqg.rtd", ,"ContractData",C23, "NetLastTradeToday",, "T") -> -0.02 | J23: =IFERROR(RTD("cqg.rtd", ,"ContractData",C23, "PerCentNetLastTrade",, "T")/100,"") -> -0.0006027727547 | K23: =RTD("cqg.rtd", ,"ContractData", C23, "T_CVol",, "T") -> 2068907 | L23: 23 | M23: =IFERROR(RANK($J23,$J$1:J$607)+COUNTIF($J$1:J23,J23)-1,"") -> 407 | N23: S.US.AKRX | O23: S.US.DATA | P23: =RTD("cqg.rtd", ,"ContractData",O23, "PerCentNetLastTrade",, "T")/100 -> 0.0209232813 | Q23: https://finance.yahoo.com/quote/DATA | S23: 0.0209232813 | V23: =RTD("cqg.rtd", ,"ContractData",O23, "LongDescription",, "T") -> Tableau Software Inc | Y23: 0.0209232813 | AA23: 1 | AB23: 1 | AD23: 0.0209232813 | AE23: =IFERROR(T23,"") -> 
C24: S.US.AL | D24: =RTD("cqg.rtd", ,"ContractData",C24, "LongDescription",, "T") -> Air Lease Corporation | E24: =RTD("cqg.rtd", ,"ContractData",C24, "Open",, "T") -> 38.5 | F24: =RTD("cqg.rtd", ,"ContractData",C24, "High",, "T") -> 38.77 | G24: =RTD("cqg.rtd", ,"ContractData",C24, "Low",, "T") -> 37.81 | H24: =RTD("cqg.rtd", ,"ContractData",C24, "LastTradeToday",, "T") -> 37.91 | I24: =RTD("cqg.rtd", ,"ContractData",C24, "NetLastTradeToday",, "T") -> -0.6 | J24: =IFERROR(RTD("cqg.rtd", ,"ContractData",C24, "PerCentNetLastTrade",, "T")/100,"") -> -0.01558036874 | K24: =RTD("cqg.rtd", ,"ContractData", C24, "T_CVol",, "T") -> 347352 | L24: 24 | M24: =IFERROR(RANK($J24,$J$1:J$607)+COUNTIF($J$1:J24,J24)-1,"") -> 574 | N24: S.US.AL | O24: S.US.JUNO | P24: =RTD("cqg.rtd", ,"ContractData",O24, "PerCentNetLastTrade",, "T")/100 -> 0.02056451613 | Q24: https://finance.yahoo.com/quote/JUNO | S24: 0.02056451613 | V24: =RTD("cqg.rtd", ,"ContractData",O24, "LongDescription",, "T") -> Juno Therapeutics, Inc. | Y24: 0.02056451613 | AA24: 1 | AB24: 1 | AD24: 0.02056451613
C25: S.US.ALGN | D25: =RTD("cqg.rtd", ,"ContractData",C25, "LongDescription",, "T") -> Align Technology Inc | E25: =RTD("cqg.rtd", ,"ContractData",C25, "Open",, "T") -> 138.78 | F25: =RTD("cqg.rtd", ,"ContractData",C25, "High",, "T") -> 139.26 | G25: =RTD("cqg.rtd", ,"ContractData",C25, "Low",, "T") -> 137.78 | H25: =RTD("cqg.rtd", ,"ContractData",C25, "LastTradeToday",, "T") -> 138.2 | I25: =RTD("cqg.rtd", ,"ContractData",C25, "NetLastTradeToday",, "T") -> -0.02 | J25: =IFERROR(RTD("cqg.rtd", ,"ContractData",C25, "PerCentNetLastTrade",, "T")/100,"") -> -0.0001446968601 | K25: =RTD("cqg.rtd", ,"ContractData", C25, "T_CVol",, "T") -> 645621 | L25: 25 | M25: =IFERROR(RANK($J25,$J$1:J$607)+COUNTIF($J$1:J25,J25)-1,"") -> 390 | N25: S.US.ALGN | O25: S.US.TWLO | P25: =RTD("cqg.rtd", ,"ContractData",O25, "PerCentNetLastTrade",, "T")/100 -> 0.02034428795 | Q25: https://finance.yahoo.com/quote/TWLO | S25: 0.02034428795 | V25: =RTD("cqg.rtd", ,"ContractData",O25, "LongDescription",, "T") -> Twilio Inc. | Y25: 0.02034428795 | AA25: 1 | AB25: 1 | AD25: =IFERROR(S25,"") -> 0.02034428795 | AE25: =IFERROR(T25,"") -> 
C26: S.US.ALK | D26: =RTD("cqg.rtd", ,"ContractData",C26, "LongDescription",, "T") -> Alaska Air Group Inc | E26: =RTD("cqg.rtd", ,"ContractData",C26, "Open",, "T") -> 85.85 | F26: =RTD("cqg.rtd", ,"ContractData",C26, "High",, "T") -> 86.53 | G26: =RTD("cqg.rtd", ,"ContractData",C26, "Low",, "T") -> 84.56 | H26: =RTD("cqg.rtd", ,"ContractData",C26, "LastTradeToday",, "T") -> 84.63 | I26: =RTD("cqg.rtd", ,"ContractData",C26, "NetLastTradeToday",, "T") -> -1.15 | J26: =IFERROR(RTD("cqg.rtd", ,"ContractData",C26, "PerCentNetLastTrade",, "T")/100,"") -> -0.01340638844 | K26: =RTD("cqg.rtd", ,"ContractData", C26, "T_CVol",, "T") -> 693654 | L26: 26 | M26: =IFERROR(RANK($J26,$J$1:J$607)+COUNTIF($J$1:J26,J26)-1,"") -> 566 | N26: S.US.ALK | O26: S.US.GDDY | P26: =RTD("cqg.rtd", ,"ContractData",O26, "PerCentNetLastTrade",, "T")/100 -> 0.02023192697 | Q26: https://finance.yahoo.com/quote/GDDY | S26: 0.02023192697 | V26: =RTD("cqg.rtd", ,"ContractData",O26, "LongDescription",, "T") -> GoDaddy Inc. | Y26: 0.02023192697 | AA26: 1 | AB26: 1
C27: S.US.ALKS | D27: =RTD("cqg.rtd", ,"ContractData",C27, "LongDescription",, "T") -> Alkermes plc | E27: =RTD("cqg.rtd", ,"ContractData",C27, "Open",, "T") -> 57.72 | F27: =RTD("cqg.rtd", ,"ContractData",C27, "High",, "T") -> 58.22 | G27: =RTD("cqg.rtd", ,"ContractData",C27, "Low",, "T") -> 57.12 | H27: =RTD("cqg.rtd", ,"ContractData",C27, "LastTradeToday",, "T") -> 58.21 | I27: =RTD("cqg.rtd", ,"ContractData",C27, "NetLastTradeToday",, "T") -> 0.5 | J27: =IFERROR(RTD("cqg.rtd", ,"ContractData",C27, "PerCentNetLastTrade",, "T")/100,"") -> 0.008664009704 | K27: =RTD("cqg.rtd", ,"ContractData", C27, "T_CVol",, "T") -> 576155 | L27: 27 | M27: =IFERROR(RANK($J27,$J$1:J$607)+COUNTIF($J$1:J27,J27)-1,"") -> 128 | N27: S.US.ALKS | O27: S.US.PTC | P27: =RTD("cqg.rtd", ,"ContractData",O27, "PerCentNetLastTrade",, "T")/100 -> 0.01949910555 | Q27: https://finance.yahoo.com/quote/PTC | S27: 0.01949910555 | V27: =RTD("cqg.rtd", ,"ContractData",O27, "LongDescription",, "T") -> PTC Inc | Y27: 0.01949910555 | AA27: 1 | AB27: 1
C28: S.US.ALLE | D28: =RTD("cqg.rtd", ,"ContractData",C28, "LongDescription",, "T") -> Allegion plc | E28: =RTD("cqg.rtd", ,"ContractData",C28, "Open",, "T") -> 79 | F28: =RTD("cqg.rtd", ,"ContractData",C28, "High",, "T") -> 79.24 | G28: =RTD("cqg.rtd", ,"ContractData",C28, "Low",, "T") -> 78.65 | H28: =RTD("cqg.rtd", ,"ContractData",C28, "LastTradeToday",, "T") -> 79.15 | I28: =RTD("cqg.rtd", ,"ContractData",C28, "NetLastTradeToday",, "T") -> 0.25 | J28: =IFERROR(RTD("cqg.rtd", ,"ContractData",C28, "PerCentNetLastTrade",, "T")/100,"") -> 0.003168567807 | K28: =RTD("cqg.rtd", ,"ContractData", C28, "T_CVol",, "T") -> 371865 | L28: 28 | M28: =IFERROR(RANK($J28,$J$1:J$607)+COUNTIF($J$1:J28,J28)-1,"") -> 272 | N28: S.US.ALLE | O28: S.US.SKT | P28: =RTD("cqg.rtd", ,"ContractData",O28, "PerCentNetLastTrade",, "T")/100 -> 0.01923076923 | Q28: https://finance.yahoo.com/quote/SKT | S28: 0.01923076923 | V28: =RTD("cqg.rtd", ,"ContractData",O28, "LongDescription",, "T") -> Tanger Factory Outlet Centers, Inc. | Y28: 0.01923076923 | AA28: 1 | AB28: 1
C29: S.US.ALNY | D29: =RTD("cqg.rtd", ,"ContractData",C29, "LongDescription",, "T") -> Alnylam Pharmaceuticals, Inc. | E29: =RTD("cqg.rtd", ,"ContractData",C29, "Open",, "T") -> 71.44 | F29: =RTD("cqg.rtd", ,"ContractData",C29, "High",, "T") -> 71.48 | G29: =RTD("cqg.rtd", ,"ContractData",C29, "Low",, "T") -> 67.34 | H29: =RTD("cqg.rtd", ,"ContractData",C29, "LastTradeToday",, "T") -> 71.02 | I29: =RTD("cqg.rtd", ,"ContractData",C29, "NetLastTradeToday",, "T") -> -3.85 | J29: =IFERROR(RTD("cqg.rtd", ,"ContractData",C29, "PerCentNetLastTrade",, "T")/100,"") -> -0.05142246561 | K29: =RTD("cqg.rtd", ,"ContractData", C29, "T_CVol",, "T") -> 3162400 | L29: 29 | M29: =IFERROR(RANK($J29,$J$1:J$607)+COUNTIF($J$1:J29,J29)-1,"") -> 605 | N29: S.US.ALNY | O29: S.US.MKTX | P29: =RTD("cqg.rtd", ,"ContractData",O29, "PerCentNetLastTrade",, "T")/100 -> 0.01909574468 | Q29: https://finance.yahoo.com/quote/MKTX | S29: 0.01909574468 | V29: =RTD("cqg.rtd", ,"ContractData",O29, "LongDescription",, "T") -> MarketAxcess Inc | Y29: 0.01909574468 | AA29: 1 | AB29: 1
C30: S.US.ALR | D30: =RTD("cqg.rtd", ,"ContractData",C30, "LongDescription",, "T") -> Alere Inc | E30: =RTD("cqg.rtd", ,"ContractData",C30, "Open",, "T") -> 48.91 | F30: =RTD("cqg.rtd", ,"ContractData",C30, "High",, "T") -> 48.91 | G30: =RTD("cqg.rtd", ,"ContractData",C30, "Low",, "T") -> 48.7 | H30: =RTD("cqg.rtd", ,"ContractData",C30, "LastTradeToday",, "T") -> 48.8 | I30: =RTD("cqg.rtd", ,"ContractData",C30, "NetLastTradeToday",, "T") -> -0.05 | J30: =IFERROR(RTD("cqg.rtd", ,"ContractData",C30, "PerCentNetLastTrade",, "T")/100,"") -> -0.001023541453 | K30: =RTD("cqg.rtd", ,"ContractData", C30, "T_CVol",, "T") -> 380254 | L30: 30 | M30: =IFERROR(RANK($J30,$J$1:J$607)+COUNTIF($J$1:J30,J30)-1,"") -> 416 | N30: S.US.ALR | O30: S.US.BIIB | P30: =RTD("cqg.rtd", ,"ContractData",O30, "PerCentNetLastTrade",, "T")/100 -> 0.01898428053 | Q30: https://finance.yahoo.com/quote/BIIB | S30: 0.01898428053 | V30: =RTD("cqg.rtd", ,"ContractData",O30, "LongDescription",, "T") -> Biogen Inc. | Y30: 0.01898428053 | AA30: 1 | AB30: 1
C31: S.US.ALXN | D31: =RTD("cqg.rtd", ,"ContractData",C31, "LongDescription",, "T") -> Alexion Pharmaceuticals | E31: =RTD("cqg.rtd", ,"ContractData",C31, "Open",, "T") -> 104.5 | F31: =RTD("cqg.rtd", ,"ContractData",C31, "High",, "T") -> 105 | G31: =RTD("cqg.rtd", ,"ContractData",C31, "Low",, "T") -> 98.63 | H31: =RTD("cqg.rtd", ,"ContractData",C31, "LastTradeToday",, "T") -> 101.8 | I31: =RTD("cqg.rtd", ,"ContractData",C31, "NetLastTradeToday",, "T") -> -2.84 | J31: =IFERROR(RTD("cqg.rtd", ,"ContractData",C31, "PerCentNetLastTrade",, "T")/100,"") -> -0.02714067278 | K31: =RTD("cqg.rtd", ,"ContractData", C31, "T_CVol",, "T") -> 7769377 | L31: 31 | M31: =IFERROR(RANK($J31,$J$1:J$607)+COUNTIF($J$1:J31,J31)-1,"") -> 597 | N31: S.US.ALXN | O31: S.US.LVNTA | P31: =RTD("cqg.rtd", ,"ContractData",O31, "PerCentNetLastTrade",, "T")/100 -> 0.01853296918 | Q31: https://finance.yahoo.com/quote/LVNTA | S31: 0.01853296918 | V31: =RTD("cqg.rtd", ,"ContractData",O31, "LongDescription",, "T") -> Liberty Interactive Corporation Series A | Y31: 0.01853296918 | AA31: 1 | AB31: 1
C32: S.US.AMAT | D32: =RTD("cqg.rtd", ,"ContractData",C32, "LongDescription",, "T") -> Applied Materials Inc | E32: =RTD("cqg.rtd", ,"ContractData",C32, "Open",, "T") -> 45 | F32: =RTD("cqg.rtd", ,"ContractData",C32, "High",, "T") -> 45.13 | G32: =RTD("cqg.rtd", ,"ContractData",C32, "Low",, "T") -> 44.47 | H32: =RTD("cqg.rtd", ,"ContractData",C32, "LastTradeToday",, "T") -> 44.61 | I32: =RTD("cqg.rtd", ,"ContractData",C32, "NetLastTradeToday",, "T") -> -0.3 | J32: =IFERROR(RTD("cqg.rtd", ,"ContractData",C32, "PerCentNetLastTrade",, "T")/100,"") -> -0.00668002672 | K32: =RTD("cqg.rtd", ,"ContractData", C32, "T_CVol",, "T") -> 4931247 | L32: 32 | M32: =IFERROR(RANK($J32,$J$1:J$607)+COUNTIF($J$1:J32,J32)-1,"") -> 505 | N32: S.US.AMAT | O32: S.US.ESS | P32: =RTD("cqg.rtd", ,"ContractData",O32, "PerCentNetLastTrade",, "T")/100 -> 0.01829873378 | Q32: https://finance.yahoo.com/quote/ESS | S32: 0.01829873378 | V32: =RTD("cqg.rtd", ,"ContractData",O32, "LongDescription",, "T") -> Essex Property Trust Inc | Y32: 0.01829873378 | AA32: 1 | AB32: 1
C33: S.US.AMCX | D33: =RTD("cqg.rtd", ,"ContractData",C33, "LongDescription",, "T") -> AMC Networks Inc. Class A | E33: =RTD("cqg.rtd", ,"ContractData",C33, "Open",, "T") -> 52.68 | F33: =RTD("cqg.rtd", ,"ContractData",C33, "High",, "T") -> 52.78 | G33: =RTD("cqg.rtd", ,"ContractData",C33, "Low",, "T") -> 52.27 | H33: =RTD("cqg.rtd", ,"ContractData",C33, "LastTradeToday",, "T") -> 52.4 | I33: =RTD("cqg.rtd", ,"ContractData",C33, "NetLastTradeToday",, "T") -> -0.32 | J33: =IFERROR(RTD("cqg.rtd", ,"ContractData",C33, "PerCentNetLastTrade",, "T")/100,"") -> -0.006069802731 | K33: =RTD("cqg.rtd", ,"ContractData", C33, "T_CVol",, "T") -> 306674 | L33: 33 | M33: =IFERROR(RANK($J33,$J$1:J$607)+COUNTIF($J$1:J33,J33)-1,"") -> 497 | N33: S.US.AMCX | O33: S.US.AGN | P33: =RTD("cqg.rtd", ,"ContractData",O33, "PerCentNetLastTrade",, "T")/100 -> 0.01826339164 | Q33: https://finance.yahoo.com/quote/AGN | S33: 0.01826339164 | V33: =RTD("cqg.rtd", ,"ContractData",O33, "LongDescription",, "T") -> Allergan plc | Y33: 0.01826339164 | AA33: 1 | AB33: 1
C34: S.US.AME | D34: =RTD("cqg.rtd", ,"ContractData",C34, "LongDescription",, "T") -> Ametek Inc New | E34: =RTD("cqg.rtd", ,"ContractData",C34, "Open",, "T") -> 60.83 | F34: =RTD("cqg.rtd", ,"ContractData",C34, "High",, "T") -> 61.3 | G34: =RTD("cqg.rtd", ,"ContractData",C34, "Low",, "T") -> 60.63 | H34: =RTD("cqg.rtd", ,"ContractData",C34, "LastTradeToday",, "T") -> 60.86 | I34: =RTD("cqg.rtd", ,"ContractData",C34, "NetLastTradeToday",, "T") -> 0.3 | J34: =IFERROR(RTD("cqg.rtd", ,"ContractData",C34, "PerCentNetLastTrade",, "T")/100,"") -> 0.004953764861 | K34: =RTD("cqg.rtd", ,"ContractData", C34, "T_CVol",, "T") -> 656851 | L34: 34 | M34: =IFERROR(RANK($J34,$J$1:J$607)+COUNTIF($J$1:J34,J34)-1,"") -> 216 | N34: S.US.AME | O34: S.US.ZG | P34: =RTD("cqg.rtd", ,"ContractData",O34, "PerCentNetLastTrade",, "T")/100 -> 0.01795708955 | Q34: https://finance.yahoo.com/quote/ZG | S34: 0.01795708955 | V34: =RTD("cqg.rtd", ,"ContractData",O34, "LongDescription",, "T") -> Zillow Group, Inc. Class A | Y34: 0.01795708955 | AA34: 1 | AB34: 1
C35: S.US.AMG | D35: =RTD("cqg.rtd", ,"ContractData",C35, "LongDescription",, "T") -> Affiliated Managers Grp Inc | E35: =RTD("cqg.rtd", ,"ContractData",C35, "Open",, "T") -> 152.68 | F35: =RTD("cqg.rtd", ,"ContractData",C35, "High",, "T") -> 153.1 | G35: =RTD("cqg.rtd", ,"ContractData",C35, "Low",, "T") -> 151.39 | H35: =RTD("cqg.rtd", ,"ContractData",C35, "LastTradeToday",, "T") -> 152.06 | I35: =RTD("cqg.rtd", ,"ContractData",C35, "NetLastTradeToday",, "T") -> -0.6 | J35: =IFERROR(RTD("cqg.rtd", ,"ContractData",C35, "PerCentNetLastTrade",, "T")/100,"") -> -0.003930302633 | K35: =RTD("cqg.rtd", ,"ContractData", C35, "T_CVol",, "T") -> 191547 | L35: 35 | M35: =IFERROR(RANK($J35,$J$1:J$607)+COUNTIF($J$1:J35,J35)-1,"") -> 467 | N35: S.US.AMG | O35: S.US.IT | P35: =RTD("cqg.rtd", ,"ContractData",O35, "PerCentNetLastTrade",, "T")/100 -> 0.01786500044 | Q35: https://finance.yahoo.com/quote/IT | S35: 0.01786500044 | V35: =RTD("cqg.rtd", ,"ContractData",O35, "LongDescription",, "T") -> Gartner Group | Y35: 0.01786500044 | AA35: 1 | AB35: 1
C36: S.US.AMGN | D36: =RTD("cqg.rtd", ,"ContractData",C36, "LongDescription",, "T") -> Amgen Inc | E36: =RTD("cqg.rtd", ,"ContractData",C36, "Open",, "T") -> 154.77 | F36: =RTD("cqg.rtd", ,"ContractData",C36, "High",, "T") -> 154.77 | G36: =RTD("cqg.rtd", ,"ContractData",C36, "Low",, "T") -> 153.79 | H36: =RTD("cqg.rtd", ,"ContractData",C36, "LastTradeToday",, "T") -> 154.55 | I36: =RTD("cqg.rtd", ,"ContractData",C36, "NetLastTradeToday",, "T") -> 0.48 | J36: =IFERROR(RTD("cqg.rtd", ,"ContractData",C36, "PerCentNetLastTrade",, "T")/100,"") -> 0.003115466996 | K36: =RTD("cqg.rtd", ,"ContractData", C36, "T_CVol",, "T") -> 1878238 | L36: 36 | M36: =IFERROR(RANK($J36,$J$1:J$607)+COUNTIF($J$1:J36,J36)-1,"") -> 275 | N36: S.US.AMGN | O36: S.US.PX | P36: =RTD("cqg.rtd", ,"ContractData",O36, "PerCentNetLastTrade",, "T")/100 -> 0.01785027314 | Q36: https://finance.yahoo.com/quote/PX | S36: 0.01785027314 | V36: =RTD("cqg.rtd", ,"ContractData",O36, "LongDescription",, "T") -> Praxair Inc | Y36: 0.01785027314 | AA36: 1 | AB36: 1
C37: S.US.AMP | D37: =RTD("cqg.rtd", ,"ContractData",C37, "LongDescription",, "T") -> Ameriprise Financial Inc | E37: =RTD("cqg.rtd", ,"ContractData",C37, "Open",, "T") -> 123 | F37: =RTD("cqg.rtd", ,"ContractData",C37, "High",, "T") -> 123.64 | G37: =RTD("cqg.rtd", ,"ContractData",C37, "Low",, "T") -> 121.06 | H37: =RTD("cqg.rtd", ,"ContractData",C37, "LastTradeToday",, "T") -> 121.41 | I37: =RTD("cqg.rtd", ,"ContractData",C37, "NetLastTradeToday",, "T") -> -1.57 | J37: =IFERROR(RTD("cqg.rtd", ,"ContractData",C37, "PerCentNetLastTrade",, "T")/100,"") -> -0.01276630346 | K37: =RTD("cqg.rtd", ,"ContractData", C37, "T_CVol",, "T") -> 600253 | L37: 37 | M37: =IFERROR(RANK($J37,$J$1:J$607)+COUNTIF($J$1:J37,J37)-1,"") -> 564 | N37: S.US.AMP | O37: S.US.ANTM | P37: =RTD("cqg.rtd", ,"ContractData",O37, "PerCentNetLastTrade",, "T")/100 -> 0.01783805076 | Q37: https://finance.yahoo.com/quote/ANTM | S37: 0.01783805076 | V37: =RTD("cqg.rtd", ,"ContractData",O37, "LongDescription",, "T") -> Anthem, Inc. | Y37: 0.01783805076 | AA37: 1 | AB37: 1
C38: S.US.AMT | D38: =RTD("cqg.rtd", ,"ContractData",C38, "LongDescription",, "T") -> American Tower Corp ClA | E38: =RTD("cqg.rtd", ,"ContractData",C38, "Open",, "T") -> 128.66 | F38: =RTD("cqg.rtd", ,"ContractData",C38, "High",, "T") -> 129.72 | G38: =RTD("cqg.rtd", ,"ContractData",C38, "Low",, "T") -> 128.66 | H38: =RTD("cqg.rtd", ,"ContractData",C38, "LastTradeToday",, "T") -> 129.57 | I38: =RTD("cqg.rtd", ,"ContractData",C38, "NetLastTradeToday",, "T") -> 0.84 | J38: =IFERROR(RTD("cqg.rtd", ,"ContractData",C38, "PerCentNetLastTrade",, "T")/100,"") -> 0.006525285481 | K38: =RTD("cqg.rtd", ,"ContractData", C38, "T_CVol",, "T") -> 743143 | L38: 38 | M38: =IFERROR(RANK($J38,$J$1:J$607)+COUNTIF($J$1:J38,J38)-1,"") -> 181 | N38: S.US.AMT | O38: S.US.Z | P38: =RTD("cqg.rtd", ,"ContractData",O38, "PerCentNetLastTrade",, "T")/100 -> 0.01759324419 | Q38: https://finance.yahoo.com/quote/Z | S38: 0.01759324419 | V38: =RTD("cqg.rtd", ,"ContractData",O38, "LongDescription",, "T") -> Zillow Group, Inc. Class A | Y38: 0.01759324419 | AA38: 1 | AB38: 1
C39: S.US.AMTD | D39: =RTD("cqg.rtd", ,"ContractData",C39, "LongDescription",, "T") -> TD Ameritrade Holding Corp | E39: =RTD("cqg.rtd", ,"ContractData",C39, "Open",, "T") -> 37.47 | F39: =RTD("cqg.rtd", ,"ContractData",C39, "High",, "T") -> 37.58 | G39: =RTD("cqg.rtd", ,"ContractData",C39, "Low",, "T") -> 37.14 | H39: =RTD("cqg.rtd", ,"ContractData",C39, "LastTradeToday",, "T") -> 37.25 | I39: =RTD("cqg.rtd", ,"ContractData",C39, "NetLastTradeToday",, "T") -> -0.18 | J39: =IFERROR(RTD("cqg.rtd", ,"ContractData",C39, "PerCentNetLastTrade",, "T")/100,"") -> -0.004808976757 | K39: =RTD("cqg.rtd", ,"ContractData", C39, "T_CVol",, "T") -> 1052895 | L39: 39 | M39: =IFERROR(RANK($J39,$J$1:J$607)+COUNTIF($J$1:J39,J39)-1,"") -> 477 | N39: S.US.AMTD | O39: S.US.PPC | P39: =RTD("cqg.rtd", ,"ContractData",O39, "PerCentNetLastTrade",, "T")/100 -> 0.01749146758 | Q39: https://finance.yahoo.com/quote/PPC | S39: 0.01749146758 | V39: =RTD("cqg.rtd", ,"ContractData",O39, "LongDescription",, "T") -> Pilgrim's Pride Corporation | Y39: 0.01749146758 | AA39: 1 | AB39: 1
C40: S.US.AMZN | D40: =RTD("cqg.rtd", ,"ContractData",C40, "LongDescription",, "T") -> Amazon.com Inc | E40: =RTD("cqg.rtd", ,"ContractData",C40, "Open",, "T") -> 976 | F40: =RTD("cqg.rtd", ,"ContractData",C40, "High",, "T") -> 977.08 | G40: =RTD("cqg.rtd", ,"ContractData",C40, "Low",, "T") -> 970.23 | H40: =RTD("cqg.rtd", ,"ContractData",C40, "LastTradeToday",, "T") -> 976.66 | I40: =RTD("cqg.rtd", ,"ContractData",C40, "NetLastTradeToday",, "T") -> 5.12 | J40: =IFERROR(RTD("cqg.rtd", ,"ContractData",C40, "PerCentNetLastTrade",, "T")/100,"") -> 0.005269983737 | K40: =RTD("cqg.rtd", ,"ContractData", C40, "T_CVol",, "T") -> 1384105 | L40: 40 | M40: =IFERROR(RANK($J40,$J$1:J$607)+COUNTIF($J$1:J40,J40)-1,"") -> 207 | N40: S.US.AMZN | O40: S.US.CTAS | P40: =RTD("cqg.rtd", ,"ContractData",O40, "PerCentNetLastTrade",, "T")/100 -> 0.01707655854 | Q40: https://finance.yahoo.com/quote/CTAS | S40: 0.01707655854 | V40: =RTD("cqg.rtd", ,"ContractData",O40, "LongDescription",, "T") -> Cintas Corp | Y40: 0.01707655854 | AA40: 1 | AB40: 1
C41: S.US.AN | D41: =RTD("cqg.rtd", ,"ContractData",C41, "LongDescription",, "T") -> AutoNation Inc | E41: =RTD("cqg.rtd", ,"ContractData",C41, "Open",, "T") -> 38.99 | F41: =RTD("cqg.rtd", ,"ContractData",C41, "High",, "T") -> 39.56 | G41: =RTD("cqg.rtd", ,"ContractData",C41, "Low",, "T") -> 38.79 | H41: =RTD("cqg.rtd", ,"ContractData",C41, "LastTradeToday",, "T") -> 39.47 | I41: =RTD("cqg.rtd", ,"ContractData",C41, "NetLastTradeToday",, "T") -> 0.48 | J41: =IFERROR(RTD("cqg.rtd", ,"ContractData",C41, "PerCentNetLastTrade",, "T")/100,"") -> 0.01231084894 | K41: =RTD("cqg.rtd", ,"ContractData", C41, "T_CVol",, "T") -> 459295 | L41: 41 | M41: =IFERROR(RANK($J41,$J$1:J$607)+COUNTIF($J$1:J41,J41)-1,"") -> 76 | N41: S.US.AN | O41: S.US.AET | P41: =RTD("cqg.rtd", ,"ContractData",O41, "PerCentNetLastTrade",, "T")/100 -> 0.0170554655 | Q41: https://finance.yahoo.com/quote/AET | S41: 0.0170554655 | V41: =RTD("cqg.rtd", ,"ContractData",O41, "LongDescription",, "T") -> Aetna Inc | Y41: 0.0170554655 | AA41: 1 | AB41: 1
C42: S.US.ANET | D42: =RTD("cqg.rtd", ,"ContractData",C42, "LongDescription",, "T") -> Arista Networks, Inc. | E42: =RTD("cqg.rtd", ,"ContractData",C42, "Open",, "T") -> 143.59 | F42: =RTD("cqg.rtd", ,"ContractData",C42, "High",, "T") -> 144.33 | G42: =RTD("cqg.rtd", ,"ContractData",C42, "Low",, "T") -> 143.21 | H42: =RTD("cqg.rtd", ,"ContractData",C42, "LastTradeToday",, "T") -> 143.85 | I42: =RTD("cqg.rtd", ,"ContractData",C42, "NetLastTradeToday",, "T") -> 0.65 | J42: =IFERROR(RTD("cqg.rtd", ,"ContractData",C42, "PerCentNetLastTrade",, "T")/100,"") -> 0.004539106145 | K42: =RTD("cqg.rtd", ,"ContractData", C42, "T_CVol",, "T") -> 186056 | L42: 42 | M42: =IFERROR(RANK($J42,$J$1:J$607)+COUNTIF($J$1:J42,J42)-1,"") -> 227 | N42: S.US.ANET | O42: S.US.FRT | P42: =RTD("cqg.rtd", ,"ContractData",O42, "PerCentNetLastTrade",, "T")/100 -> 0.01686421128 | Q42: https://finance.yahoo.com/quote/FRT | S42: 0.01686421128 | V42: =RTD("cqg.rtd", ,"ContractData",O42, "LongDescription",, "T") -> Federal Realty Invstmt Trst | Y42: 0.01686421128 | AA42: 1 | AB42: 1
C43: S.US.ANSS | D43: =RTD("cqg.rtd", ,"ContractData",C43, "LongDescription",, "T") -> ANSYS Inc | E43: =RTD("cqg.rtd", ,"ContractData",C43, "Open",, "T") -> 125.08 | F43: =RTD("cqg.rtd", ,"ContractData",C43, "High",, "T") -> 125.65 | G43: =RTD("cqg.rtd", ,"ContractData",C43, "Low",, "T") -> 123.89 | H43: =RTD("cqg.rtd", ,"ContractData",C43, "LastTradeToday",, "T") -> 124.03 | I43: =RTD("cqg.rtd", ,"ContractData",C43, "NetLastTradeToday",, "T") -> -0.63 | J43: =IFERROR(RTD("cqg.rtd", ,"ContractData",C43, "PerCentNetLastTrade",, "T")/100,"") -> -0.00505374619 | K43: =RTD("cqg.rtd", ,"ContractData", C43, "T_CVol",, "T") -> 846877 | L43: 43 | M43: =IFERROR(RANK($J43,$J$1:J$607)+COUNTIF($J$1:J43,J43)-1,"") -> 482 | N43: S.US.ANSS | O43: S.US.DNKN | P43: =RTD("cqg.rtd", ,"ContractData",O43, "PerCentNetLastTrade",, "T")/100 -> 0.01669359181 | Q43: https://finance.yahoo.com/quote/DNKN | S43: 0.01669359181 | V43: =RTD("cqg.rtd", ,"ContractData",O43, "LongDescription",, "T") -> Dunkin' Brands Group, Inc. | Y43: 0.01669359181 | AA43: 1 | AB43: 1
C44: S.US.ANTM | D44: =RTD("cqg.rtd", ,"ContractData",C44, "LongDescription",, "T") -> Anthem, Inc. | E44: =RTD("cqg.rtd", ,"ContractData",C44, "Open",, "T") -> 178.23 | F44: =RTD("cqg.rtd", ,"ContractData",C44, "High",, "T") -> 181.2 | G44: =RTD("cqg.rtd", ,"ContractData",C44, "Low",, "T") -> 177.21 | H44: =RTD("cqg.rtd", ,"ContractData",C44, "LastTradeToday",, "T") -> 180.88 | I44: =RTD("cqg.rtd", ,"ContractData",C44, "NetLastTradeToday",, "T") -> 3.17 | J44: =IFERROR(RTD("cqg.rtd", ,"ContractData",C44, "PerCentNetLastTrade",, "T")/100,"") -> 0.01783805076 | K44: =RTD("cqg.rtd", ,"ContractData", C44, "T_CVol",, "T") -> 587113 | L44: 44 | M44: =IFERROR(RANK($J44,$J$1:J$607)+COUNTIF($J$1:J44,J44)-1,"") -> 37 | N44: S.US.ANTM | O44: S.US.YUM | P44: =RTD("cqg.rtd", ,"ContractData",O44, "PerCentNetLastTrade",, "T")/100 -> 0.01663846588 | Q44: https://finance.yahoo.com/quote/YUM | S44: 0.01663846588 | V44: =RTD("cqg.rtd", ,"ContractData",O44, "LongDescription",, "T") -> Yum Brands Inc | Y44: 0.01663846588 | AA44: 1 | AB44: 1
C45: S.US.AON | D45: =RTD("cqg.rtd", ,"ContractData",C45, "LongDescription",, "T") -> AON Corporation | E45: =RTD("cqg.rtd", ,"ContractData",C45, "Open",, "T") -> 128.96 | F45: =RTD("cqg.rtd", ,"ContractData",C45, "High",, "T") -> 129.13 | G45: =RTD("cqg.rtd", ,"ContractData",C45, "Low",, "T") -> 128.62 | H45: =RTD("cqg.rtd", ,"ContractData",C45, "LastTradeToday",, "T") -> 128.99 | I45: =RTD("cqg.rtd", ,"ContractData",C45, "NetLastTradeToday",, "T") -> 0.43 | J45: =IFERROR(RTD("cqg.rtd", ,"ContractData",C45, "PerCentNetLastTrade",, "T")/100,"") -> 0.003344741755 | K45: =RTD("cqg.rtd", ,"ContractData", C45, "T_CVol",, "T") -> 376457 | L45: 45 | M45: =IFERROR(RANK($J45,$J$1:J$607)+COUNTIF($J$1:J45,J45)-1,"") -> 262 | N45: S.US.AON | O45: S.US.TSLA | P45: =RTD("cqg.rtd", ,"ContractData",O45, "PerCentNetLastTrade",, "T")/100 -> 0.01658658593 | Q45: https://finance.yahoo.com/quote/TSLA | S45: 0.01658658593 | V45: =RTD("cqg.rtd", ,"ContractData",O45, "LongDescription",, "T") -> Tesla, Inc. | Y45: 0.01658658593 | AA45: 1 | AB45: 1 | AD45: =IFERROR(S45,"") -> 0.01658658593 | AE45: =IFERROR(T45,"") ->  | AF45: =IF(AE45="","",Y45) -> 
C46: S.US.AOS | D46: =RTD("cqg.rtd", ,"ContractData",C46, "LongDescription",, "T") -> AO Smith Corp | E46: =RTD("cqg.rtd", ,"ContractData",C46, "Open",, "T") -> 54.13 | F46: =RTD("cqg.rtd", ,"ContractData",C46, "High",, "T") -> 54.45 | G46: =RTD("cqg.rtd", ,"ContractData",C46, "Low",, "T") -> 54.07 | H46: =RTD("cqg.rtd", ,"ContractData",C46, "LastTradeToday",, "T") -> 54.2 | I46: =RTD("cqg.rtd", ,"ContractData",C46, "NetLastTradeToday",, "T") -> 0.07 | J46: =IFERROR(RTD("cqg.rtd", ,"ContractData",C46, "PerCentNetLastTrade",, "T")/100,"") -> 0.001293183078 | K46: =RTD("cqg.rtd", ,"ContractData", C46, "T_CVol",, "T") -> 231216 | L46: 46 | M46: =IFERROR(RANK($J46,$J$1:J$607)+COUNTIF($J$1:J46,J46)-1,"") -> 344 | N46: S.US.AOS | O46: S.US.DPS | P46: =RTD("cqg.rtd", ,"ContractData",O46, "PerCentNetLastTrade",, "T")/100 -> 0.01643090316 | Q46: https://finance.yahoo.com/quote/DPS | S46: 0.01643090316 | V46: =RTD("cqg.rtd", ,"ContractData",O46, "LongDescription",, "T") -> Dr Pepper Snapple Group, Inc | Y46: 0.01643090316 | AA46: 1 | AB46: 1 | AD46: =IFERROR(S46,"") -> 0.01643090316 | AE46: =IFERROR(T46,"") ->  | AF46: =IF(AE46="","",Y46) -> 
C47: S.US.APA | D47: =RTD("cqg.rtd", ,"ContractData",C47, "LongDescription",, "T") -> Apache Corporation | E47: =RTD("cqg.rtd", ,"ContractData",C47, "Open",, "T") -> 49.77 | F47: =RTD("cqg.rtd", ,"ContractData",C47, "High",, "T") -> 50.55 | G47: =RTD("cqg.rtd", ,"ContractData",C47, "Low",, "T") -> 49.61 | H47: =RTD("cqg.rtd", ,"ContractData",C47, "LastTradeToday",, "T") -> 49.91 | I47: =RTD("cqg.rtd", ,"ContractData",C47, "NetLastTradeToday",, "T") -> -0.09 | J47: =IFERROR(RTD("cqg.rtd", ,"ContractData",C47, "PerCentNetLastTrade",, "T")/100,"") -> -0.0018 | K47: =RTD("cqg.rtd", ,"ContractData", C47, "T_CVol",, "T") -> 1352805 | L47: 47 | M47: =IFERROR(RANK($J47,$J$1:J$607)+COUNTIF($J$1:J47,J47)-1,"") -> 428 | N47: S.US.APA | O47: S.US.AFSI | P47: =RTD("cqg.rtd", ,"ContractData",O47, "PerCentNetLastTrade",, "T")/100 -> 0.01642036125 | Q47: https://finance.yahoo.com/quote/AFSI | S47: 0.01642036125 | V47: =RTD("cqg.rtd", ,"ContractData",O47, "LongDescription",, "T") -> AmTrust Financial Services | Y47: 0.01642036125 | AA47: 1 | AB47: 1 | AD47: 0.01642036125
C48: S.US.APAM | D48: =RTD("cqg.rtd", ,"ContractData",C48, "LongDescription",, "T") -> Artisan Partners Asset Management Inc | E48: =RTD("cqg.rtd", ,"ContractData",C48, "Open",, "T") -> 27.65 | F48: =RTD("cqg.rtd", ,"ContractData",C48, "High",, "T") -> 28 | G48: =RTD("cqg.rtd", ,"ContractData",C48, "Low",, "T") -> 27.6 | H48: =RTD("cqg.rtd", ,"ContractData",C48, "LastTradeToday",, "T") -> 27.75 | I48: =RTD("cqg.rtd", ,"ContractData",C48, "NetLastTradeToday",, "T") -> 0.15 | J48: =IFERROR(RTD("cqg.rtd", ,"ContractData",C48, "PerCentNetLastTrade",, "T")/100,"") -> 0.005434782609 | K48: =RTD("cqg.rtd", ,"ContractData", C48, "T_CVol",, "T") -> 110164 | L48: 48 | M48: =IFERROR(RANK($J48,$J$1:J$607)+COUNTIF($J$1:J48,J48)-1,"") -> 201 | N48: S.US.APAM | O48: S.US.ZBRA | P48: =RTD("cqg.rtd", ,"ContractData",O48, "PerCentNetLastTrade",, "T")/100 -> 0.01622995698 | Q48: https://finance.yahoo.com/quote/ZBRA | S48: 0.01622995698 | V48: =RTD("cqg.rtd", ,"ContractData",O48, "LongDescription",, "T") -> Zebra Technologies Corp | Y48: 0.01622995698 | AA48: 1 | AB48: 1 | AD48: 0.01622995698
C49: S.US.APD | D49: =RTD("cqg.rtd", ,"ContractData",C49, "LongDescription",, "T") -> Air Products & Chems Inc | E49: =RTD("cqg.rtd", ,"ContractData",C49, "Open",, "T") -> 143.28 | F49: =RTD("cqg.rtd", ,"ContractData",C49, "High",, "T") -> 144.92 | G49: =RTD("cqg.rtd", ,"ContractData",C49, "Low",, "T") -> 142.88 | H49: =RTD("cqg.rtd", ,"ContractData",C49, "LastTradeToday",, "T") -> 144.23 | I49: =RTD("cqg.rtd", ,"ContractData",C49, "NetLastTradeToday",, "T") -> 1.4 | J49: =IFERROR(RTD("cqg.rtd", ,"ContractData",C49, "PerCentNetLastTrade",, "T")/100,"") -> 0.009801862354 | K49: =RTD("cqg.rtd", ,"ContractData", C49, "T_CVol",, "T") -> 434191 | L49: 49 | M49: =IFERROR(RANK($J49,$J$1:J$607)+COUNTIF($J$1:J49,J49)-1,"") -> 107 | N49: S.US.APD | O49: S.US.VSM | P49: =RTD("cqg.rtd", ,"ContractData",O49, "PerCentNetLastTrade",, "T")/100 -> 0.01618646811 | Q49: https://finance.yahoo.com/quote/VSM | S49: 0.01618646811 | V49: =RTD("cqg.rtd", ,"ContractData",O49, "LongDescription",, "T") -> Versum Materials Inc. | Y49: 0.01618646811 | AA49: 1 | AB49: 1 | AD49: 0.01618646811
C50: S.US.APH | D50: =RTD("cqg.rtd", ,"ContractData",C50, "LongDescription",, "T") -> Amphenol | E50: =RTD("cqg.rtd", ,"ContractData",C50, "Open",, "T") -> 73.58 | F50: =RTD("cqg.rtd", ,"ContractData",C50, "High",, "T") -> 74.18 | G50: =RTD("cqg.rtd", ,"ContractData",C50, "Low",, "T") -> 73.4 | H50: =RTD("cqg.rtd", ,"ContractData",C50, "LastTradeToday",, "T") -> 73.96 | I50: =RTD("cqg.rtd", ,"ContractData",C50, "NetLastTradeToday",, "T") -> 0.59 | J50: =IFERROR(RTD("cqg.rtd", ,"ContractData",C50, "PerCentNetLastTrade",, "T")/100,"") -> 0.008041433829 | K50: =RTD("cqg.rtd", ,"ContractData", C50, "T_CVol",, "T") -> 427359 | L50: 50 | M50: =IFERROR(RANK($J50,$J$1:J$607)+COUNTIF($J$1:J50,J50)-1,"") -> 138 | N50: S.US.APH | O50: S.US.INCY | P50: =RTD("cqg.rtd", ,"ContractData",O50, "PerCentNetLastTrade",, "T")/100 -> 0.0160840188 | Q50: https://finance.yahoo.com/quote/INCY | S50: 0.0160840188 | V50: =RTD("cqg.rtd", ,"ContractData",O50, "LongDescription",, "T") -> Incyte Corporation | Y50: 0.0160840188 | AA50: 1 | AB50: 1 | AD50: 0.0160840188
C51: S.US.AQB | D51: =RTD("cqg.rtd", ,"ContractData",C51, "LongDescription",, "T") -> AquaBounty Technologies, Inc. | E51: =RTD("cqg.rtd", ,"ContractData",C51, "Open",, "T") -> 7.99 | F51: =RTD("cqg.rtd", ,"ContractData",C51, "High",, "T") -> 8 | G51: =RTD("cqg.rtd", ,"ContractData",C51, "Low",, "T") -> 7.9 | H51: =RTD("cqg.rtd", ,"ContractData",C51, "LastTradeToday",, "T") -> 7.9 | I51: =RTD("cqg.rtd", ,"ContractData",C51, "NetLastTradeToday",, "T") -> -0.03 | J51: =IFERROR(RTD("cqg.rtd", ,"ContractData",C51, "PerCentNetLastTrade",, "T")/100,"") -> -0.003783102144 | K51: =RTD("cqg.rtd", ,"ContractData", C51, "T_CVol",, "T") -> 8621 | L51: 51 | M51: =IFERROR(RANK($J51,$J$1:J$607)+COUNTIF($J$1:J51,J51)-1,"") -> 465 | N51: S.US.AQB | O51: S.US.MANH | P51: =RTD("cqg.rtd", ,"ContractData",O51, "PerCentNetLastTrade",, "T")/100 -> 0.01589347079 | Q51: https://finance.yahoo.com/quote/MANH | S51: 0.01589347079 | V51: =RTD("cqg.rtd", ,"ContractData",O51, "LongDescription",, "T") -> Manhattan Assoc | Y51: 0.01589347079 | AA51: 1 | AB51: 1 | AD51: 0.01589347079
C52: S.US.ARE | D52: =RTD("cqg.rtd", ,"ContractData",C52, "LongDescription",, "T") -> Alexandria Real Estate Equities Inc | E52: =RTD("cqg.rtd", ,"ContractData",C52, "Open",, "T") -> 118.56 | F52: =RTD("cqg.rtd", ,"ContractData",C52, "High",, "T") -> 119.1 | G52: =RTD("cqg.rtd", ,"ContractData",C52, "Low",, "T") -> 118.31 | H52: =RTD("cqg.rtd", ,"ContractData",C52, "LastTradeToday",, "T") -> 118.6 | I52: =RTD("cqg.rtd", ,"ContractData",C52, "NetLastTradeToday",, "T") -> -0.01 | J52: =IFERROR(RTD("cqg.rtd", ,"ContractData",C52, "PerCentNetLastTrade",, "T")/100,"") -> -8.430992328e-05 | K52: =RTD("cqg.rtd", ,"ContractData", C52, "T_CVol",, "T") -> 210707 | L52: 52 | M52: =IFERROR(RANK($J52,$J$1:J$607)+COUNTIF($J$1:J52,J52)-1,"") -> 389 | N52: S.US.ARE | O52: S.US.PYPL | P52: =RTD("cqg.rtd", ,"ContractData",O52, "PerCentNetLastTrade",, "T")/100 -> 0.01555954518 | Q52: https://finance.yahoo.com/quote/PYPL | S52: 0.01555954518 | V52: =RTD("cqg.rtd", ,"ContractData",O52, "LongDescription",, "T") -> PayPal Holdings, Inc. | Y52: 0.01555954518 | AA52: 1 | AB52: 1 | AD52: 0.01555954518
C53: S.US.ARMK | D53: =RTD("cqg.rtd", ,"ContractData",C53, "LongDescription",, "T") -> Aramark | E53: =RTD("cqg.rtd", ,"ContractData",C53, "Open",, "T") -> 36.7 | F53: =RTD("cqg.rtd", ,"ContractData",C53, "High",, "T") -> 37.12 | G53: =RTD("cqg.rtd", ,"ContractData",C53, "Low",, "T") -> 36.62 | H53: =RTD("cqg.rtd", ,"ContractData",C53, "LastTradeToday",, "T") -> 37.07 | I53: =RTD("cqg.rtd", ,"ContractData",C53, "NetLastTradeToday",, "T") -> 0.35 | J53: =IFERROR(RTD("cqg.rtd", ,"ContractData",C53, "PerCentNetLastTrade",, "T")/100,"") -> 0.009531590414 | K53: =RTD("cqg.rtd", ,"ContractData", C53, "T_CVol",, "T") -> 299653 | L53: 53 | M53: =IFERROR(RANK($J53,$J$1:J$607)+COUNTIF($J$1:J53,J53)-1,"") -> 114 | N53: S.US.ARMK | O53: S.US.MCK | P53: =RTD("cqg.rtd", ,"ContractData",O53, "PerCentNetLastTrade",, "T")/100 -> 0.01547169811 | Q53: https://finance.yahoo.com/quote/MCK | S53: 0.01547169811 | V53: =RTD("cqg.rtd", ,"ContractData",O53, "LongDescription",, "T") -> McKesson Corporation | Y53: 0.01547169811 | AA53: 1 | AB53: 1 | AD53: 0.01547169811
C54: S.US.ARRS | D54: =RTD("cqg.rtd", ,"ContractData",C54, "LongDescription",, "T") -> ARRIS International plc | E54: =RTD("cqg.rtd", ,"ContractData",C54, "Open",, "T") -> 27.41 | F54: =RTD("cqg.rtd", ,"ContractData",C54, "High",, "T") -> 27.6 | G54: =RTD("cqg.rtd", ,"ContractData",C54, "Low",, "T") -> 27.26 | H54: =RTD("cqg.rtd", ,"ContractData",C54, "LastTradeToday",, "T") -> 27.55 | I54: =RTD("cqg.rtd", ,"ContractData",C54, "NetLastTradeToday",, "T") -> 0.16 | J54: =IFERROR(RTD("cqg.rtd", ,"ContractData",C54, "PerCentNetLastTrade",, "T")/100,"") -> 0.00584154801 | K54: =RTD("cqg.rtd", ,"ContractData", C54, "T_CVol",, "T") -> 459608 | L54: 54 | M54: =IFERROR(RANK($J54,$J$1:J$607)+COUNTIF($J$1:J54,J54)-1,"") -> 197 | N54: S.US.ARRS | O54: S.US.FLT | P54: =RTD("cqg.rtd", ,"ContractData",O54, "PerCentNetLastTrade",, "T")/100 -> 0.01544458336 | Q54: https://finance.yahoo.com/quote/FLT | S54: 0.01544458336 | V54: =RTD("cqg.rtd", ,"ContractData",O54, "LongDescription",, "T") -> Fleetcor Technologies, Inc. | Y54: 0.01544458336 | AA54: 1 | AB54: 1 | AD54: 0.01544458336
C55: S.US.ASIX | D55: =RTD("cqg.rtd", ,"ContractData",C55, "LongDescription",, "T") -> AdvanSix Inc | E55: =RTD("cqg.rtd", ,"ContractData",C55, "Open",, "T") -> 30.34 | F55: =RTD("cqg.rtd", ,"ContractData",C55, "High",, "T") -> 30.88 | G55: =RTD("cqg.rtd", ,"ContractData",C55, "Low",, "T") -> 30.06 | H55: =RTD("cqg.rtd", ,"ContractData",C55, "LastTradeToday",, "T") -> 30.2 | I55: =RTD("cqg.rtd", ,"ContractData",C55, "NetLastTradeToday",, "T") -> -0.1 | J55: =IFERROR(RTD("cqg.rtd", ,"ContractData",C55, "PerCentNetLastTrade",, "T")/100,"") -> -0.003300330033 | K55: =RTD("cqg.rtd", ,"ContractData", C55, "T_CVol",, "T") -> 127638 | L55: 55 | M55: =IFERROR(RANK($J55,$J$1:J$607)+COUNTIF($J$1:J55,J55)-1,"") -> 459 | N55: S.US.ASIX | O55: S.US.CLNS | P55: =RTD("cqg.rtd", ,"ContractData",O55, "PerCentNetLastTrade",, "T")/100 -> 0.01515151515 | Q55: https://finance.yahoo.com/quote/CLNS | S55: 0.01515151515 | V55: =RTD("cqg.rtd", ,"ContractData",O55, "LongDescription",, "T") -> Colony NorthStar, Inc. | Y55: 0.01515151515 | AA55: 1 | AB55: 1 | AD55: 0.01515151515
C56: S.US.ATHN | D56: =RTD("cqg.rtd", ,"ContractData",C56, "LongDescription",, "T") -> Athenahelth Inc | E56: =RTD("cqg.rtd", ,"ContractData",C56, "Open",, "T") -> 131.75 | F56: =RTD("cqg.rtd", ,"ContractData",C56, "High",, "T") -> 138.42 | G56: =RTD("cqg.rtd", ,"ContractData",C56, "Low",, "T") -> 131.68 | H56: =RTD("cqg.rtd", ,"ContractData",C56, "LastTradeToday",, "T") -> 138 | I56: =RTD("cqg.rtd", ,"ContractData",C56, "NetLastTradeToday",, "T") -> 5.94 | J56: =IFERROR(RTD("cqg.rtd", ,"ContractData",C56, "PerCentNetLastTrade",, "T")/100,"") -> 0.04497955475 | K56: =RTD("cqg.rtd", ,"ContractData", C56, "T_CVol",, "T") -> 629381 | L56: 56 | M56: =IFERROR(RANK($J56,$J$1:J$607)+COUNTIF($J$1:J56,J56)-1,"") -> 3 | N56: S.US.ATHN | O56: S.US.XON | P56: =RTD("cqg.rtd", ,"ContractData",O56, "PerCentNetLastTrade",, "T")/100 -> 0.01482773659 | Q56: https://finance.yahoo.com/quote/XON | S56: 0.01482773659 | V56: =RTD("cqg.rtd", ,"ContractData",O56, "LongDescription",, "T") -> Intrexon Corporation | Y56: 0.01482773659 | AA56: 1 | AB56: 1 | AD56: 0.01482773659
C57: S.US.ATR | D57: =RTD("cqg.rtd", ,"ContractData",C57, "LongDescription",, "T") -> AptarGroup Inc | E57: =RTD("cqg.rtd", ,"ContractData",C57, "Open",, "T") -> 83.19 | F57: =RTD("cqg.rtd", ,"ContractData",C57, "High",, "T") -> 83.52 | G57: =RTD("cqg.rtd", ,"ContractData",C57, "Low",, "T") -> 82.8 | H57: =RTD("cqg.rtd", ,"ContractData",C57, "LastTradeToday",, "T") -> 83.39 | I57: =RTD("cqg.rtd", ,"ContractData",C57, "NetLastTradeToday",, "T") -> 0.2 | J57: =IFERROR(RTD("cqg.rtd", ,"ContractData",C57, "PerCentNetLastTrade",, "T")/100,"") -> 0.002404135112 | K57: =RTD("cqg.rtd", ,"ContractData", C57, "T_CVol",, "T") -> 76002 | L57: 57 | M57: =IFERROR(RANK($J57,$J$1:J$607)+COUNTIF($J$1:J57,J57)-1,"") -> 302 | N57: S.US.ATR | O57: S.US.ZTS | P57: =RTD("cqg.rtd", ,"ContractData",O57, "PerCentNetLastTrade",, "T")/100 -> 0.01448803516 | Q57: https://finance.yahoo.com/quote/ZTS | S57: 0.01448803516 | V57: =RTD("cqg.rtd", ,"ContractData",O57, "LongDescription",, "T") -> Zoetis Inc | Y57: 0.01448803516 | AA57: 1 | AB57: 1 | AD57: 0.01448803516
C58: S.US.ATVI | D58: =RTD("cqg.rtd", ,"ContractData",C58, "LongDescription",, "T") -> Activision Blizzard Inc | E58: =RTD("cqg.rtd", ,"ContractData",C58, "Open",, "T") -> 57.94 | F58: =RTD("cqg.rtd", ,"ContractData",C58, "High",, "T") -> 58.16 | G58: =RTD("cqg.rtd", ,"ContractData",C58, "Low",, "T") -> 56.88 | H58: =RTD("cqg.rtd", ,"ContractData",C58, "LastTradeToday",, "T") -> 58.07 | I58: =RTD("cqg.rtd", ,"ContractData",C58, "NetLastTradeToday",, "T") -> 0.27 | J58: =IFERROR(RTD("cqg.rtd", ,"ContractData",C58, "PerCentNetLastTrade",, "T")/100,"") -> 0.004671280277 | K58: =RTD("cqg.rtd", ,"ContractData", C58, "T_CVol",, "T") -> 5359115 | L58: 58 | M58: =IFERROR(RANK($J58,$J$1:J$607)+COUNTIF($J$1:J58,J58)-1,"") -> 225 | N58: S.US.ATVI | O58: S.US.ENR | P58: =RTD("cqg.rtd", ,"ContractData",O58, "PerCentNetLastTrade",, "T")/100 -> 0.01442487823 | Q58: https://finance.yahoo.com/quote/ENR | S58: 0.01442487823 | V58: =RTD("cqg.rtd", ,"ContractData",O58, "LongDescription",, "T") -> Energizer Holdings, Inc. | Y58: 0.01442487823 | AA58: 1 | AB58: 1 | AD58: 0.01442487823
C59: S.US.AVGO | D59: =RTD("cqg.rtd", ,"ContractData",C59, "LongDescription",, "T") -> Broadcom Limited | E59: =RTD("cqg.rtd", ,"ContractData",C59, "Open",, "T") -> 238.46 | F59: =RTD("cqg.rtd", ,"ContractData",C59, "High",, "T") -> 239.04 | G59: =RTD("cqg.rtd", ,"ContractData",C59, "Low",, "T") -> 236.97 | H59: =RTD("cqg.rtd", ,"ContractData",C59, "LastTradeToday",, "T") -> 238.92 | I59: =RTD("cqg.rtd", ,"ContractData",C59, "NetLastTradeToday",, "T") -> 2.38 | J59: =IFERROR(RTD("cqg.rtd", ,"ContractData",C59, "PerCentNetLastTrade",, "T")/100,"") -> 0.01006172318 | K59: =RTD("cqg.rtd", ,"ContractData", C59, "T_CVol",, "T") -> 903485 | L59: 59 | M59: =IFERROR(RANK($J59,$J$1:J$607)+COUNTIF($J$1:J59,J59)-1,"") -> 103 | N59: S.US.AVGO | O59: S.US.WEN | P59: =RTD("cqg.rtd", ,"ContractData",O59, "PerCentNetLastTrade",, "T")/100 -> 0.01422387137 | Q59: https://finance.yahoo.com/quote/WEN | S59: 0.01422387137 | V59: =RTD("cqg.rtd", ,"ContractData",O59, "LongDescription",, "T") -> The Wendy's Company | Y59: 0.01422387137 | AA59: 1 | AB59: 1 | AD59: 0.01422387137
C60: S.US.AVY | D60: =RTD("cqg.rtd", ,"ContractData",C60, "LongDescription",, "T") -> Avery Dennison Corp | E60: =RTD("cqg.rtd", ,"ContractData",C60, "Open",, "T") -> 82.92 | F60: =RTD("cqg.rtd", ,"ContractData",C60, "High",, "T") -> 83.25 | G60: =RTD("cqg.rtd", ,"ContractData",C60, "Low",, "T") -> 82.77 | H60: =RTD("cqg.rtd", ,"ContractData",C60, "LastTradeToday",, "T") -> 82.99 | I60: =RTD("cqg.rtd", ,"ContractData",C60, "NetLastTradeToday",, "T") -> 0.19 | J60: =IFERROR(RTD("cqg.rtd", ,"ContractData",C60, "PerCentNetLastTrade",, "T")/100,"") -> 0.00229468599 | K60: =RTD("cqg.rtd", ,"ContractData", C60, "T_CVol",, "T") -> 144832 | L60: 60 | M60: =IFERROR(RANK($J60,$J$1:J$607)+COUNTIF($J$1:J60,J60)-1,"") -> 308 | N60: S.US.AVY | O60: S.US.MCD | P60: =RTD("cqg.rtd", ,"ContractData",O60, "PerCentNetLastTrade",, "T")/100 -> 0.01420646733 | Q60: https://finance.yahoo.com/quote/MCD | S60: 0.01420646733 | V60: =RTD("cqg.rtd", ,"ContractData",O60, "LongDescription",, "T") -> McDonald's Corporation | Y60: 0.01420646733 | AA60: 1 | AB60: 1 | AD60: 0.01420646733
C61: S.US.AXTA | D61: =RTD("cqg.rtd", ,"ContractData",C61, "LongDescription",, "T") -> Axalta Coating Systems Ltd. | E61: =RTD("cqg.rtd", ,"ContractData",C61, "Open",, "T") -> 31.48 | F61: =RTD("cqg.rtd", ,"ContractData",C61, "High",, "T") -> 31.65 | G61: =RTD("cqg.rtd", ,"ContractData",C61, "Low",, "T") -> 31.36 | H61: =RTD("cqg.rtd", ,"ContractData",C61, "LastTradeToday",, "T") -> 31.37 | I61: =RTD("cqg.rtd", ,"ContractData",C61, "NetLastTradeToday",, "T") -> -0.06 | J61: =IFERROR(RTD("cqg.rtd", ,"ContractData",C61, "PerCentNetLastTrade",, "T")/100,"") -> -0.001909004136 | K61: =RTD("cqg.rtd", ,"ContractData", C61, "T_CVol",, "T") -> 258245 | L61: 61 | M61: =IFERROR(RANK($J61,$J$1:J$607)+COUNTIF($J$1:J61,J61)-1,"") -> 430 | N61: S.US.AXTA | O61: S.US.NVDA | P61: =RTD("cqg.rtd", ,"ContractData",O61, "PerCentNetLastTrade",, "T")/100 -> 0.01408450704 | Q61: https://finance.yahoo.com/quote/NVDA | S61: 0.01408450704 | V61: =RTD("cqg.rtd", ,"ContractData",O61, "LongDescription",, "T") -> NVIDIA Corp | Y61: 0.01408450704 | AA61: 1 | AB61: 1 | AD61: 0.01408450704
C62: S.US.AYI | D62: =RTD("cqg.rtd", ,"ContractData",C62, "LongDescription",, "T") -> Acuity Brands Inc | E62: =RTD("cqg.rtd", ,"ContractData",C62, "Open",, "T") -> 169.88 | F62: =RTD("cqg.rtd", ,"ContractData",C62, "High",, "T") -> 170.2 | G62: =RTD("cqg.rtd", ,"ContractData",C62, "Low",, "T") -> 167.61 | H62: =RTD("cqg.rtd", ,"ContractData",C62, "LastTradeToday",, "T") -> 167.65 | I62: =RTD("cqg.rtd", ,"ContractData",C62, "NetLastTradeToday",, "T") -> -2.08 | J62: =IFERROR(RTD("cqg.rtd", ,"ContractData",C62, "PerCentNetLastTrade",, "T")/100,"") -> -0.01225475756 | K62: =RTD("cqg.rtd", ,"ContractData", C62, "T_CVol",, "T") -> 401014 | L62: 62 | M62: =IFERROR(RANK($J62,$J$1:J$607)+COUNTIF($J$1:J62,J62)-1,"") -> 562 | N62: S.US.AYI | O62: S.US.SBNY | P62: =RTD("cqg.rtd", ,"ContractData",O62, "PerCentNetLastTrade",, "T")/100 -> 0.0140625 | Q62: https://finance.yahoo.com/quote/SBNY | S62: 0.0140625 | V62: =RTD("cqg.rtd", ,"ContractData",O62, "LongDescription",, "T") -> Signature Bank | Y62: 0.0140625 | AA62: 1 | AB62: 1 | AD62: 0.0140625
C63: S.US.AZO | D63: =RTD("cqg.rtd", ,"ContractData",C63, "LongDescription",, "T") -> Autozone Inc | E63: =RTD("cqg.rtd", ,"ContractData",C63, "Open",, "T") -> 581.18 | F63: =RTD("cqg.rtd", ,"ContractData",C63, "High",, "T") -> 598.75 | G63: =RTD("cqg.rtd", ,"ContractData",C63, "Low",, "T") -> 573.8 | H63: =RTD("cqg.rtd", ,"ContractData",C63, "LastTradeToday",, "T") -> 596.53 | I63: =RTD("cqg.rtd", ,"ContractData",C63, "NetLastTradeToday",, "T") -> 15.13 | J63: =IFERROR(RTD("cqg.rtd", ,"ContractData",C63, "PerCentNetLastTrade",, "T")/100,"") -> 0.02602339181 | K63: =RTD("cqg.rtd", ,"ContractData", C63, "T_CVol",, "T") -> 794312 | L63: 63 | M63: =IFERROR(RANK($J63,$J$1:J$607)+COUNTIF($J$1:J63,J63)-1,"") -> 16 | N63: S.US.AZO | O63: S.US.GWRE | P63: =RTD("cqg.rtd", ,"ContractData",O63, "PerCentNetLastTrade",, "T")/100 -> 0.01397832574 | Q63: ="https://finance.yahoo.com/quote/"&RIGHT(O63,(LEN(O63)-5)) -> https://finance.yahoo.com/quote/GWRE | S63: 0.01397832574 | V63: =RTD("cqg.rtd", ,"ContractData",O63, "LongDescription",, "T") -> Guidewire Software, Inc. | Y63: 0.01397832574 | AA63: 1 | AB63: 1 | AD63: 0.01397832574
C64: S.US.BA | D64: =RTD("cqg.rtd", ,"ContractData",C64, "LongDescription",, "T") -> Boeing Company | E64: =RTD("cqg.rtd", ,"ContractData",C64, "Open",, "T") -> 183.46 | F64: =RTD("cqg.rtd", ,"ContractData",C64, "High",, "T") -> 185.22 | G64: =RTD("cqg.rtd", ,"ContractData",C64, "Low",, "T") -> 183.46 | H64: =RTD("cqg.rtd", ,"ContractData",C64, "LastTradeToday",, "T") -> 184.8 | I64: =RTD("cqg.rtd", ,"ContractData",C64, "NetLastTradeToday",, "T") -> 1.31 | J64: =IFERROR(RTD("cqg.rtd", ,"ContractData",C64, "PerCentNetLastTrade",, "T")/100,"") -> 0.007139353643 | K64: =RTD("cqg.rtd", ,"ContractData", C64, "T_CVol",, "T") -> 1231783 | L64: 64 | M64: =IFERROR(RANK($J64,$J$1:J$607)+COUNTIF($J$1:J64,J64)-1,"") -> 164 | N64: S.US.BA | O64: S.US.CCO | P64: =RTD("cqg.rtd", ,"ContractData",O64, "PerCentNetLastTrade",, "T")/100 -> 0.01369863014 | Q64: https://finance.yahoo.com/quote/CCO | S64: 0.01369863014 | V64: =RTD("cqg.rtd", ,"ContractData",O64, "LongDescription",, "T") -> Clear Channel Outdoor Hldgs | Y64: 0.01369863014 | AA64: 1 | AB64: 1 | AD64: 0.01369863014
C65: S.US.BAH | D65: =RTD("cqg.rtd", ,"ContractData",C65, "LongDescription",, "T") -> Booz Allen Hamilton Holding Corporation | E65: =RTD("cqg.rtd", ,"ContractData",C65, "Open",, "T") -> 38.5 | F65: =RTD("cqg.rtd", ,"ContractData",C65, "High",, "T") -> 38.69 | G65: =RTD("cqg.rtd", ,"ContractData",C65, "Low",, "T") -> 38.17 | H65: =RTD("cqg.rtd", ,"ContractData",C65, "LastTradeToday",, "T") -> 38.46 | I65: =RTD("cqg.rtd", ,"ContractData",C65, "NetLastTradeToday",, "T") -> 0.13 | J65: =IFERROR(RTD("cqg.rtd", ,"ContractData",C65, "PerCentNetLastTrade",, "T")/100,"") -> 0.00339159927 | K65: =RTD("cqg.rtd", ,"ContractData", C65, "T_CVol",, "T") -> 715494 | L65: 65 | M65: =IFERROR(RANK($J65,$J$1:J$607)+COUNTIF($J$1:J65,J65)-1,"") -> 259 | N65: S.US.BAH | O65: S.US.VREX | P65: =RTD("cqg.rtd", ,"ContractData",O65, "PerCentNetLastTrade",, "T")/100 -> 0.01363636364 | Q65: https://finance.yahoo.com/quote/VREX | S65: 0.01363636364 | V65: =RTD("cqg.rtd", ,"ContractData",O65, "LongDescription",, "T") -> Varex Imaging Corporation | Y65: 0.01363636364 | AA65: 1 | AB65: 1 | AD65: 0.01363636364
C66: S.US.BAX | D66: =RTD("cqg.rtd", ,"ContractData",C66, "LongDescription",, "T") -> Baxter International Inc | E66: =RTD("cqg.rtd", ,"ContractData",C66, "Open",, "T") -> 58.02 | F66: =RTD("cqg.rtd", ,"ContractData",C66, "High",, "T") -> 58.39 | G66: =RTD("cqg.rtd", ,"ContractData",C66, "Low",, "T") -> 57.85 | H66: =RTD("cqg.rtd", ,"ContractData",C66, "LastTradeToday",, "T") -> 58.3 | I66: =RTD("cqg.rtd", ,"ContractData",C66, "NetLastTradeToday",, "T") -> 0.38 | J66: =IFERROR(RTD("cqg.rtd", ,"ContractData",C66, "PerCentNetLastTrade",, "T")/100,"") -> 0.006560773481 | K66: =RTD("cqg.rtd", ,"ContractData", C66, "T_CVol",, "T") -> 1029596 | L66: 66 | M66: =IFERROR(RANK($J66,$J$1:J$607)+COUNTIF($J$1:J66,J66)-1,"") -> 180 | N66: =C66 -> S.US.BAX | O66: =VLOOKUP($L66,$M$1:$N$607,2,FALSE) -> S.US.PKG | P66: =RTD("cqg.rtd", ,"ContractData",O66, "PerCentNetLastTrade",, "T")/100 -> 0.0136 | Q66: ="https://finance.yahoo.com/quote/"&RIGHT(O66,(LEN(O66)-5)) -> https://finance.yahoo.com/quote/PKG | S66: =IF(P66>=0,P66,NA()) -> 0.0136 | T66: =IF(P66>=0,NA(),-1*P66) ->  | V66: =RTD("cqg.rtd", ,"ContractData",O66, "LongDescription",, "T") -> Packaging Corp of America | Y66: =IFERROR(S66,P66) -> 0.0136 | AA66: =IF(S66="NA()",0,1) -> 1 | AB66: =IFERROR(AA66,0) -> 1 | AD66: 0.0136
C67: S.US.BBBY | D67: =RTD("cqg.rtd", ,"ContractData",C67, "LongDescription",, "T") -> Bed Bath & Beyond Inc | E67: =RTD("cqg.rtd", ,"ContractData",C67, "Open",, "T") -> 34.61 | F67: =RTD("cqg.rtd", ,"ContractData",C67, "High",, "T") -> 34.85 | G67: =RTD("cqg.rtd", ,"ContractData",C67, "Low",, "T") -> 34.36 | H67: =RTD("cqg.rtd", ,"ContractData",C67, "LastTradeToday",, "T") -> 34.76 | I67: =RTD("cqg.rtd", ,"ContractData",C67, "NetLastTradeToday",, "T") -> 0.06 | J67: =IFERROR(RTD("cqg.rtd", ,"ContractData",C67, "PerCentNetLastTrade",, "T")/100,"") -> 0.001729106628 | K67: =RTD("cqg.rtd", ,"ContractData", C67, "T_CVol",, "T") -> 938559 | L67: =L66+1 -> 67 | M67: =IFERROR(RANK($J67,$J$1:J$607)+COUNTIF($J$1:J67,J67)-1,"") -> 331 | N67: S.US.BBBY | O67: S.US.SGEN | P67: =RTD("cqg.rtd", ,"ContractData",O67, "PerCentNetLastTrade",, "T")/100 -> 0.01334933253 | Q67: https://finance.yahoo.com/quote/SGEN | S67: 0.01334933253 | V67: =RTD("cqg.rtd", ,"ContractData",O67, "LongDescription",, "T") -> Seattle Genetics Inc | Y67: 0.01334933253 | AA67: 1 | AB67: 1 | AD67: 0.01334933253
C68: S.US.BC | D68: =RTD("cqg.rtd", ,"ContractData",C68, "LongDescription",, "T") -> Brunswick Corporation | E68: =RTD("cqg.rtd", ,"ContractData",C68, "Open",, "T") -> 54.42 | F68: =RTD("cqg.rtd", ,"ContractData",C68, "High",, "T") -> 54.77 | G68: =RTD("cqg.rtd", ,"ContractData",C68, "Low",, "T") -> 54.2 | H68: =RTD("cqg.rtd", ,"ContractData",C68, "LastTradeToday",, "T") -> 54.48 | I68: =RTD("cqg.rtd", ,"ContractData",C68, "NetLastTradeToday",, "T") -> 0.17 | J68: =IFERROR(RTD("cqg.rtd", ,"ContractData",C68, "PerCentNetLastTrade",, "T")/100,"") -> 0.003130178604 | K68: =RTD("cqg.rtd", ,"ContractData", C68, "T_CVol",, "T") -> 237110 | L68: 68 | M68: =IFERROR(RANK($J68,$J$1:J$607)+COUNTIF($J$1:J68,J68)-1,"") -> 274 | N68: S.US.BC | O68: S.US.JBLU | P68: =RTD("cqg.rtd", ,"ContractData",O68, "PerCentNetLastTrade",, "T")/100 -> 0.01313405797 | Q68: https://finance.yahoo.com/quote/JBLU | S68: 0.01313405797 | V68: =RTD("cqg.rtd", ,"ContractData",O68, "LongDescription",, "T") -> JetBlue Airways Corporation | Y68: 0.01313405797 | AA68: 1 | AB68: 1 | AD68: 0.01313405797
C69: S.US.BCR | D69: =RTD("cqg.rtd", ,"ContractData",C69, "LongDescription",, "T") -> Bard (CR) Inc | E69: =RTD("cqg.rtd", ,"ContractData",C69, "Open",, "T") -> 308.32 | F69: =RTD("cqg.rtd", ,"ContractData",C69, "High",, "T") -> 308.74 | G69: =RTD("cqg.rtd", ,"ContractData",C69, "Low",, "T") -> 307.86 | H69: =RTD("cqg.rtd", ,"ContractData",C69, "LastTradeToday",, "T") -> 308.58 | I69: =RTD("cqg.rtd", ,"ContractData",C69, "NetLastTradeToday",, "T") -> 0.24 | J69: =IFERROR(RTD("cqg.rtd", ,"ContractData",C69, "PerCentNetLastTrade",, "T")/100,"") -> 0.0007783615489 | K69: =RTD("cqg.rtd", ,"ContractData", C69, "T_CVol",, "T") -> 259161 | L69: 69 | M69: =IFERROR(RANK($J69,$J$1:J$607)+COUNTIF($J$1:J69,J69)-1,"") -> 357 | N69: S.US.BCR | O69: S.US.CSRA | P69: =RTD("cqg.rtd", ,"ContractData",O69, "PerCentNetLastTrade",, "T")/100 -> 0.01298701299 | Q69: https://finance.yahoo.com/quote/CSRA | S69: 0.01298701299 | V69: =RTD("cqg.rtd", ,"ContractData",O69, "LongDescription",, "T") -> CSRA Inc. | Y69: 0.01298701299 | AA69: 1 | AB69: 1 | AD69: 0.01298701299
C70: S.US.BDX | D70: =RTD("cqg.rtd", ,"ContractData",C70, "LongDescription",, "T") -> Becton Dickinson & Co | E70: =RTD("cqg.rtd", ,"ContractData",C70, "Open",, "T") -> 186.56 | F70: =RTD("cqg.rtd", ,"ContractData",C70, "High",, "T") -> 187.25 | G70: =RTD("cqg.rtd", ,"ContractData",C70, "Low",, "T") -> 185.71 | H70: =RTD("cqg.rtd", ,"ContractData",C70, "LastTradeToday",, "T") -> 186.97 | I70: =RTD("cqg.rtd", ,"ContractData",C70, "NetLastTradeToday",, "T") -> 0.35 | J70: =IFERROR(RTD("cqg.rtd", ,"ContractData",C70, "PerCentNetLastTrade",, "T")/100,"") -> 0.001875468867 | K70: =RTD("cqg.rtd", ,"ContractData", C70, "T_CVol",, "T") -> 630857 | L70: 70 | M70: =IFERROR(RANK($J70,$J$1:J$607)+COUNTIF($J$1:J70,J70)-1,"") -> 324 | N70: S.US.BDX | O70: S.US.K | P70: =RTD("cqg.rtd", ,"ContractData",O70, "PerCentNetLastTrade",, "T")/100 -> 0.01284736769 | Q70: https://finance.yahoo.com/quote/K | S70: 0.01284736769 | V70: =RTD("cqg.rtd", ,"ContractData",O70, "LongDescription",, "T") -> Kellogg Company | Y70: 0.01284736769 | AA70: 1 | AB70: 1 | AD70: 0.01284736769
C71: S.US.BERY | D71: =RTD("cqg.rtd", ,"ContractData",C71, "LongDescription",, "T") -> Berry Plastics Group, Inc. | E71: =RTD("cqg.rtd", ,"ContractData",C71, "Open",, "T") -> 56.56 | F71: =RTD("cqg.rtd", ,"ContractData",C71, "High",, "T") -> 57.05 | G71: =RTD("cqg.rtd", ,"ContractData",C71, "Low",, "T") -> 56.02 | H71: =RTD("cqg.rtd", ,"ContractData",C71, "LastTradeToday",, "T") -> 56.92 | I71: =RTD("cqg.rtd", ,"ContractData",C71, "NetLastTradeToday",, "T") -> 0.53 | J71: =IFERROR(RTD("cqg.rtd", ,"ContractData",C71, "PerCentNetLastTrade",, "T")/100,"") -> 0.00939882958 | K71: =RTD("cqg.rtd", ,"ContractData", C71, "T_CVol",, "T") -> 271469 | L71: 71 | M71: =IFERROR(RANK($J71,$J$1:J$607)+COUNTIF($J$1:J71,J71)-1,"") -> 116 | N71: S.US.BERY | O71: S.US.BUFF | P71: =RTD("cqg.rtd", ,"ContractData",O71, "PerCentNetLastTrade",, "T")/100 -> 0.01284246575 | Q71: https://finance.yahoo.com/quote/BUFF | S71: 0.01284246575 | V71: =RTD("cqg.rtd", ,"ContractData",O71, "LongDescription",, "T") -> Blue Buffalo Pet Products, Inc. | Y71: 0.01284246575 | AA71: 1 | AB71: 1 | AD71: 0.01284246575
C72: S.US.BFA | D72: =RTD("cqg.rtd", ,"ContractData",C72, "LongDescription",, "T") -> Brown-Forman Corporation ClsA | E72: =RTD("cqg.rtd", ,"ContractData",C72, "Open",, "T") -> 54.3 | F72: =RTD("cqg.rtd", ,"ContractData",C72, "High",, "T") -> 54.85 | G72: =RTD("cqg.rtd", ,"ContractData",C72, "Low",, "T") -> 53.94 | H72: =RTD("cqg.rtd", ,"ContractData",C72, "LastTradeToday",, "T") -> 54.85 | I72: =RTD("cqg.rtd", ,"ContractData",C72, "NetLastTradeToday",, "T") -> 0.54 | J72: =IFERROR(RTD("cqg.rtd", ,"ContractData",C72, "PerCentNetLastTrade",, "T")/100,"") -> 0.009942920273 | K72: =RTD("cqg.rtd", ,"ContractData", C72, "T_CVol",, "T") -> 19291 | L72: 72 | M72: =IFERROR(RANK($J72,$J$1:J$607)+COUNTIF($J$1:J72,J72)-1,"") -> 105 | N72: S.US.BFA | O72: S.US.CNC | P72: =RTD("cqg.rtd", ,"ContractData",O72, "PerCentNetLastTrade",, "T")/100 -> 0.01283957292 | Q72: https://finance.yahoo.com/quote/CNC | S72: 0.01283957292 | V72: =RTD("cqg.rtd", ,"ContractData",O72, "LongDescription",, "T") -> Cenetene Corporation | Y72: 0.01283957292 | AA72: 1 | AB72: 1 | AD72: 0.01283957292
C73: S.US.BFB | D73: =RTD("cqg.rtd", ,"ContractData",C73, "LongDescription",, "T") -> Brown-Forman Corporation ClsB | E73: =RTD("cqg.rtd", ,"ContractData",C73, "Open",, "T") -> 53 | F73: =RTD("cqg.rtd", ,"ContractData",C73, "High",, "T") -> 54.07 | G73: =RTD("cqg.rtd", ,"ContractData",C73, "Low",, "T") -> 52.55 | H73: =RTD("cqg.rtd", ,"ContractData",C73, "LastTradeToday",, "T") -> 53.98 | I73: =RTD("cqg.rtd", ,"ContractData",C73, "NetLastTradeToday",, "T") -> 0.6 | J73: =IFERROR(RTD("cqg.rtd", ,"ContractData",C73, "PerCentNetLastTrade",, "T")/100,"") -> 0.01124016486 | K73: =RTD("cqg.rtd", ,"ContractData", C73, "T_CVol",, "T") -> 1584350 | L73: 73 | M73: =IFERROR(RANK($J73,$J$1:J$607)+COUNTIF($J$1:J73,J73)-1,"") -> 88 | N73: S.US.BFB | O73: S.US.WSM | P73: =RTD("cqg.rtd", ,"ContractData",O73, "PerCentNetLastTrade",, "T")/100 -> 0.01263501121 | Q73: https://finance.yahoo.com/quote/WSM | S73: 0.01263501121 | V73: =RTD("cqg.rtd", ,"ContractData",O73, "LongDescription",, "T") -> Williams-Sonoma Inc | Y73: 0.01263501121 | AA73: 1 | AB73: 1 | AD73: 0.01263501121
C74: S.US.BIIB | D74: =RTD("cqg.rtd", ,"ContractData",C74, "LongDescription",, "T") -> Biogen Inc. | E74: =RTD("cqg.rtd", ,"ContractData",C74, "Open",, "T") -> 249.3 | F74: =RTD("cqg.rtd", ,"ContractData",C74, "High",, "T") -> 254.36 | G74: =RTD("cqg.rtd", ,"ContractData",C74, "Low",, "T") -> 246.12 | H74: =RTD("cqg.rtd", ,"ContractData",C74, "LastTradeToday",, "T") -> 252.81 | I74: =RTD("cqg.rtd", ,"ContractData",C74, "NetLastTradeToday",, "T") -> 4.71 | J74: =IFERROR(RTD("cqg.rtd", ,"ContractData",C74, "PerCentNetLastTrade",, "T")/100,"") -> 0.01898428053 | K74: =RTD("cqg.rtd", ,"ContractData", C74, "T_CVol",, "T") -> 1593283 | L74: 74 | M74: =IFERROR(RANK($J74,$J$1:J$607)+COUNTIF($J$1:J74,J74)-1,"") -> 30 | N74: S.US.BIIB | O74: S.US.ULTI | P74: =RTD("cqg.rtd", ,"ContractData",O74, "PerCentNetLastTrade",, "T")/100 -> 0.01250231524 | Q74: https://finance.yahoo.com/quote/ULTI | S74: 0.01250231524 | V74: =RTD("cqg.rtd", ,"ContractData",O74, "LongDescription",, "T") -> The Ultimate Software Grp | Y74: 0.01250231524 | AA74: 1 | AB74: 1 | AD74: 0.01250231524
C75: S.US.BIVV | D75: =RTD("cqg.rtd", ,"ContractData",C75, "LongDescription",, "T") -> Bioverativ Inc. | E75: =RTD("cqg.rtd", ,"ContractData",C75, "Open",, "T") -> 53.35 | F75: =RTD("cqg.rtd", ,"ContractData",C75, "High",, "T") -> 54.9 | G75: =RTD("cqg.rtd", ,"ContractData",C75, "Low",, "T") -> 52.82 | H75: =RTD("cqg.rtd", ,"ContractData",C75, "LastTradeToday",, "T") -> 54.03 | I75: =RTD("cqg.rtd", ,"ContractData",C75, "NetLastTradeToday",, "T") -> 1.53 | J75: =IFERROR(RTD("cqg.rtd", ,"ContractData",C75, "PerCentNetLastTrade",, "T")/100,"") -> 0.02914285714 | K75: =RTD("cqg.rtd", ,"ContractData", C75, "T_CVol",, "T") -> 744993 | L75: 75 | M75: =IFERROR(RANK($J75,$J$1:J$607)+COUNTIF($J$1:J75,J75)-1,"") -> 12 | N75: S.US.BIVV | O75: S.US.CONE | P75: =RTD("cqg.rtd", ,"ContractData",O75, "PerCentNetLastTrade",, "T")/100 -> 0.01236337574 | Q75: https://finance.yahoo.com/quote/CONE | S75: 0.01236337574 | V75: =RTD("cqg.rtd", ,"ContractData",O75, "LongDescription",, "T") -> CyrusOne Inc | Y75: 0.01236337574 | AA75: 1 | AB75: 1 | AD75: 0.01236337574
C76: S.US.BKFS | D76: =RTD("cqg.rtd", ,"ContractData",C76, "LongDescription",, "T") -> Black Knight Financial Services, Inc. | E76: =RTD("cqg.rtd", ,"ContractData",C76, "Open",, "T") -> 39.1 | F76: =RTD("cqg.rtd", ,"ContractData",C76, "High",, "T") -> 39.25 | G76: =RTD("cqg.rtd", ,"ContractData",C76, "Low",, "T") -> 39 | H76: =RTD("cqg.rtd", ,"ContractData",C76, "LastTradeToday",, "T") -> 39.12 | I76: =RTD("cqg.rtd", ,"ContractData",C76, "NetLastTradeToday",, "T") -> 0.12 | J76: =IFERROR(RTD("cqg.rtd", ,"ContractData",C76, "PerCentNetLastTrade",, "T")/100,"") -> 0.003076923077 | K76: =RTD("cqg.rtd", ,"ContractData", C76, "T_CVol",, "T") -> 75260 | L76: 76 | M76: =IFERROR(RANK($J76,$J$1:J$607)+COUNTIF($J$1:J76,J76)-1,"") -> 277 | N76: S.US.BKFS | O76: S.US.AN | P76: =RTD("cqg.rtd", ,"ContractData",O76, "PerCentNetLastTrade",, "T")/100 -> 0.01231084894 | Q76: https://finance.yahoo.com/quote/AN | S76: 0.01231084894 | V76: =RTD("cqg.rtd", ,"ContractData",O76, "LongDescription",, "T") -> AutoNation Inc | Y76: 0.01231084894 | AA76: 1 | AB76: 1 | AD76: 0.01231084894
C77: S.US.BLL | D77: =RTD("cqg.rtd", ,"ContractData",C77, "LongDescription",, "T") -> Ball Corp | E77: =RTD("cqg.rtd", ,"ContractData",C77, "Open",, "T") -> 40.08 | F77: =RTD("cqg.rtd", ,"ContractData",C77, "High",, "T") -> 40.38 | G77: =RTD("cqg.rtd", ,"ContractData",C77, "Low",, "T") -> 40.08 | H77: =RTD("cqg.rtd", ,"ContractData",C77, "LastTradeToday",, "T") -> 40.27 | I77: =RTD("cqg.rtd", ,"ContractData",C77, "NetLastTradeToday",, "T") -> 0.14 | J77: =IFERROR(RTD("cqg.rtd", ,"ContractData",C77, "PerCentNetLastTrade",, "T")/100,"") -> 0.003488661849 | K77: =RTD("cqg.rtd", ,"ContractData", C77, "T_CVol",, "T") -> 529960 | L77: 77 | M77: =IFERROR(RANK($J77,$J$1:J$607)+COUNTIF($J$1:J77,J77)-1,"") -> 255 | N77: S.US.BLL | O77: S.US.CRL | P77: =RTD("cqg.rtd", ,"ContractData",O77, "PerCentNetLastTrade",, "T")/100 -> 0.01213860075 | Q77: https://finance.yahoo.com/quote/CRL | S77: 0.01213860075 | V77: =RTD("cqg.rtd", ,"ContractData",O77, "LongDescription",, "T") -> Charles River Labs Hldgs Inc | Y77: 0.01213860075 | AA77: 1 | AB77: 1 | AD77: 0.01213860075
C78: S.US.BMRN | D78: =RTD("cqg.rtd", ,"ContractData",C78, "LongDescription",, "T") -> BioMarin Pharmaceutical Inc | E78: =RTD("cqg.rtd", ,"ContractData",C78, "Open",, "T") -> 88.38 | F78: =RTD("cqg.rtd", ,"ContractData",C78, "High",, "T") -> 88.54 | G78: =RTD("cqg.rtd", ,"ContractData",C78, "Low",, "T") -> 87.15 | H78: =RTD("cqg.rtd", ,"ContractData",C78, "LastTradeToday",, "T") -> 87.92 | I78: =RTD("cqg.rtd", ,"ContractData",C78, "NetLastTradeToday",, "T") -> -0.44 | J78: =IFERROR(RTD("cqg.rtd", ,"ContractData",C78, "PerCentNetLastTrade",, "T")/100,"") -> -0.004979628791 | K78: =RTD("cqg.rtd", ,"ContractData", C78, "T_CVol",, "T") -> 901130 | L78: 78 | M78: =IFERROR(RANK($J78,$J$1:J$607)+COUNTIF($J$1:J78,J78)-1,"") -> 480 | N78: S.US.BMRN | O78: S.US.UHAL | P78: =RTD("cqg.rtd", ,"ContractData",O78, "PerCentNetLastTrade",, "T")/100 -> 0.01195116285 | Q78: https://finance.yahoo.com/quote/UHAL | S78: 0.01195116285 | V78: =RTD("cqg.rtd", ,"ContractData",O78, "LongDescription",, "T") -> Amerco | Y78: 0.01195116285 | AA78: 1 | AB78: 1 | AD78: 0.01195116285
C79: S.US.BMS | D79: =RTD("cqg.rtd", ,"ContractData",C79, "LongDescription",, "T") -> Bemis Inc | E79: =RTD("cqg.rtd", ,"ContractData",C79, "Open",, "T") -> 44.1 | F79: =RTD("cqg.rtd", ,"ContractData",C79, "High",, "T") -> 44.49 | G79: =RTD("cqg.rtd", ,"ContractData",C79, "Low",, "T") -> 43.94 | H79: =RTD("cqg.rtd", ,"ContractData",C79, "LastTradeToday",, "T") -> 44.38 | I79: =RTD("cqg.rtd", ,"ContractData",C79, "NetLastTradeToday",, "T") -> 0.2 | J79: =IFERROR(RTD("cqg.rtd", ,"ContractData",C79, "PerCentNetLastTrade",, "T")/100,"") -> 0.004526935265 | K79: =RTD("cqg.rtd", ,"ContractData", C79, "T_CVol",, "T") -> 329999 | L79: 79 | M79: =IFERROR(RANK($J79,$J$1:J$607)+COUNTIF($J$1:J79,J79)-1,"") -> 228 | N79: S.US.BMS | O79: S.US.ABC | P79: =RTD("cqg.rtd", ,"ContractData",O79, "PerCentNetLastTrade",, "T")/100 -> 0.01188474044 | Q79: https://finance.yahoo.com/quote/ABC | S79: 0.01188474044 | V79: =RTD("cqg.rtd", ,"ContractData",O79, "LongDescription",, "T") -> AmerisourceBergen Corp | Y79: 0.01188474044 | AA79: 1 | AB79: 1 | AD79: 0.01188474044
C80: S.US.BMY | D80: =RTD("cqg.rtd", ,"ContractData",C80, "LongDescription",, "T") -> Bristol-Myers Squibb Co | E80: =RTD("cqg.rtd", ,"ContractData",C80, "Open",, "T") -> 54.45 | F80: =RTD("cqg.rtd", ,"ContractData",C80, "High",, "T") -> 54.45 | G80: =RTD("cqg.rtd", ,"ContractData",C80, "Low",, "T") -> 53.47 | H80: =RTD("cqg.rtd", ,"ContractData",C80, "LastTradeToday",, "T") -> 53.68 | I80: =RTD("cqg.rtd", ,"ContractData",C80, "NetLastTradeToday",, "T") -> -0.53 | J80: =IFERROR(RTD("cqg.rtd", ,"ContractData",C80, "PerCentNetLastTrade",, "T")/100,"") -> -0.009776793949 | K80: =RTD("cqg.rtd", ,"ContractData", C80, "T_CVol",, "T") -> 3553615 | L80: 80 | M80: =IFERROR(RANK($J80,$J$1:J$607)+COUNTIF($J$1:J80,J80)-1,"") -> 542 | N80: S.US.BMY | O80: S.US.ON | P80: =RTD("cqg.rtd", ,"ContractData",O80, "PerCentNetLastTrade",, "T")/100 -> 0.01177240026 | Q80: https://finance.yahoo.com/quote/ON | S80: 0.01177240026 | V80: =RTD("cqg.rtd", ,"ContractData",O80, "LongDescription",, "T") -> ON Semiconductor Corp | Y80: 0.01177240026 | AA80: 1 | AB80: 1 | AD80: 0.01177240026
C81: S.US.BR | D81: =RTD("cqg.rtd", ,"ContractData",C81, "LongDescription",, "T") -> Broadridge Financial Solutions | E81: =RTD("cqg.rtd", ,"ContractData",C81, "Open",, "T") -> 73.9 | F81: =RTD("cqg.rtd", ,"ContractData",C81, "High",, "T") -> 74.89 | G81: =RTD("cqg.rtd", ,"ContractData",C81, "Low",, "T") -> 73.9 | H81: =RTD("cqg.rtd", ,"ContractData",C81, "LastTradeToday",, "T") -> 74.89 | I81: =RTD("cqg.rtd", ,"ContractData",C81, "NetLastTradeToday",, "T") -> 0.78 | J81: =IFERROR(RTD("cqg.rtd", ,"ContractData",C81, "PerCentNetLastTrade",, "T")/100,"") -> 0.01052489543 | K81: =RTD("cqg.rtd", ,"ContractData", C81, "T_CVol",, "T") -> 195332 | L81: 81 | M81: =IFERROR(RANK($J81,$J$1:J$607)+COUNTIF($J$1:J81,J81)-1,"") -> 99 | N81: S.US.BR | O81: S.US.V | P81: =RTD("cqg.rtd", ,"ContractData",O81, "PerCentNetLastTrade",, "T")/100 -> 0.01171958236 | Q81: https://finance.yahoo.com/quote/V | S81: 0.01171958236 | V81: =RTD("cqg.rtd", ,"ContractData",O81, "LongDescription",, "T") -> Visa Inc. | Y81: 0.01171958236 | AA81: 1 | AB81: 1 | AD81: 0.01171958236
C82: S.US.BRKR | D82: =RTD("cqg.rtd", ,"ContractData",C82, "LongDescription",, "T") -> Bruker Corp | E82: =RTD("cqg.rtd", ,"ContractData",C82, "Open",, "T") -> 26.9 | F82: =RTD("cqg.rtd", ,"ContractData",C82, "High",, "T") -> 27.17 | G82: =RTD("cqg.rtd", ,"ContractData",C82, "Low",, "T") -> 26.82 | H82: =RTD("cqg.rtd", ,"ContractData",C82, "LastTradeToday",, "T") -> 27.06 | I82: =RTD("cqg.rtd", ,"ContractData",C82, "NetLastTradeToday",, "T") -> 0.14 | J82: =IFERROR(RTD("cqg.rtd", ,"ContractData",C82, "PerCentNetLastTrade",, "T")/100,"") -> 0.005200594354 | K82: =RTD("cqg.rtd", ,"ContractData", C82, "T_CVol",, "T") -> 416731 | L82: 82 | M82: =IFERROR(RANK($J82,$J$1:J$607)+COUNTIF($J$1:J82,J82)-1,"") -> 209 | N82: S.US.BRKR | O82: S.US.EQIX | P82: =RTD("cqg.rtd", ,"ContractData",O82, "PerCentNetLastTrade",, "T")/100 -> 0.01170288442 | Q82: https://finance.yahoo.com/quote/EQIX | S82: 0.01170288442 | V82: =RTD("cqg.rtd", ,"ContractData",O82, "LongDescription",, "T") -> Equinix Inc | Y82: 0.01170288442 | AA82: 1 | AB82: 1 | AD82: 0.01170288442
C83: S.US.BRO | D83: =RTD("cqg.rtd", ,"ContractData",C83, "LongDescription",, "T") -> BROWN AND BROWN INC | E83: =RTD("cqg.rtd", ,"ContractData",C83, "Open",, "T") -> 42.5 | F83: =RTD("cqg.rtd", ,"ContractData",C83, "High",, "T") -> 42.67 | G83: =RTD("cqg.rtd", ,"ContractData",C83, "Low",, "T") -> 42.39 | H83: =RTD("cqg.rtd", ,"ContractData",C83, "LastTradeToday",, "T") -> 42.53 | I83: =RTD("cqg.rtd", ,"ContractData",C83, "NetLastTradeToday",, "T") -> 0.06 | J83: =IFERROR(RTD("cqg.rtd", ,"ContractData",C83, "PerCentNetLastTrade",, "T")/100,"") -> 0.00141276195 | K83: =RTD("cqg.rtd", ,"ContractData", C83, "T_CVol",, "T") -> 128564 | L83: 83 | M83: =IFERROR(RANK($J83,$J$1:J$607)+COUNTIF($J$1:J83,J83)-1,"") -> 341 | N83: S.US.BRO | O83: S.US.SPG | P83: =RTD("cqg.rtd", ,"ContractData",O83, "PerCentNetLastTrade",, "T")/100 -> 0.01170111288 | Q83: https://finance.yahoo.com/quote/SPG | S83: 0.01170111288 | V83: =RTD("cqg.rtd", ,"ContractData",O83, "LongDescription",, "T") -> Simon Property Grp | Y83: 0.01170111288 | AA83: 1 | AB83: 1 | AD83: 0.01170111288
C84: S.US.BSX | D84: =RTD("cqg.rtd", ,"ContractData",C84, "LongDescription",, "T") -> Boston Scientific Corp | E84: =RTD("cqg.rtd", ,"ContractData",C84, "Open",, "T") -> 26.75 | F84: =RTD("cqg.rtd", ,"ContractData",C84, "High",, "T") -> 27.01 | G84: =RTD("cqg.rtd", ,"ContractData",C84, "Low",, "T") -> 26.69 | H84: =RTD("cqg.rtd", ,"ContractData",C84, "LastTradeToday",, "T") -> 26.98 | I84: =RTD("cqg.rtd", ,"ContractData",C84, "NetLastTradeToday",, "T") -> 0.31 | J84: =IFERROR(RTD("cqg.rtd", ,"ContractData",C84, "PerCentNetLastTrade",, "T")/100,"") -> 0.01162354706 | K84: =RTD("cqg.rtd", ,"ContractData", C84, "T_CVol",, "T") -> 2758718 | L84: 84 | M84: =IFERROR(RANK($J84,$J$1:J$607)+COUNTIF($J$1:J84,J84)-1,"") -> 86 | N84: S.US.BSX | O84: S.US.VRTX | P84: =RTD("cqg.rtd", ,"ContractData",O84, "PerCentNetLastTrade",, "T")/100 -> 0.0116648083 | Q84: https://finance.yahoo.com/quote/VRTX | S84: 0.0116648083 | V84: =RTD("cqg.rtd", ,"ContractData",O84, "LongDescription",, "T") -> Vertex Pharmaceuticals Incorporated | Y84: 0.0116648083 | AA84: 1 | AB84: 1 | AD84: 0.0116648083
C85: S.US.BUFF | D85: =RTD("cqg.rtd", ,"ContractData",C85, "LongDescription",, "T") -> Blue Buffalo Pet Products, Inc. | E85: =RTD("cqg.rtd", ,"ContractData",C85, "Open",, "T") -> 23.33 | F85: =RTD("cqg.rtd", ,"ContractData",C85, "High",, "T") -> 23.7 | G85: =RTD("cqg.rtd", ,"ContractData",C85, "Low",, "T") -> 23.16 | H85: =RTD("cqg.rtd", ,"ContractData",C85, "LastTradeToday",, "T") -> 23.66 | I85: =RTD("cqg.rtd", ,"ContractData",C85, "NetLastTradeToday",, "T") -> 0.3 | J85: =IFERROR(RTD("cqg.rtd", ,"ContractData",C85, "PerCentNetLastTrade",, "T")/100,"") -> 0.01284246575 | K85: =RTD("cqg.rtd", ,"ContractData", C85, "T_CVol",, "T") -> 429787 | L85: 85 | M85: =IFERROR(RANK($J85,$J$1:J$607)+COUNTIF($J$1:J85,J85)-1,"") -> 71 | N85: S.US.BUFF | O85: S.US.DD | P85: =RTD("cqg.rtd", ,"ContractData",O85, "PerCentNetLastTrade",, "T")/100 -> 0.01163692785 | Q85: https://finance.yahoo.com/quote/DD | S85: 0.01163692785 | V85: =RTD("cqg.rtd", ,"ContractData",O85, "LongDescription",, "T") -> E.I. du Pont de Nemours and Co. (DuPont) | Y85: 0.01163692785 | AA85: 1 | AB85: 1 | AD85: 0.01163692785
C86: S.US.BURL | D86: =RTD("cqg.rtd", ,"ContractData",C86, "LongDescription",, "T") -> Burlington Stores, Inc. | E86: =RTD("cqg.rtd", ,"ContractData",C86, "Open",, "T") -> 96 | F86: =RTD("cqg.rtd", ,"ContractData",C86, "High",, "T") -> 96.01 | G86: =RTD("cqg.rtd", ,"ContractData",C86, "Low",, "T") -> 93.96 | H86: =RTD("cqg.rtd", ,"ContractData",C86, "LastTradeToday",, "T") -> 94.23 | I86: =RTD("cqg.rtd", ,"ContractData",C86, "NetLastTradeToday",, "T") -> -1.67 | J86: =IFERROR(RTD("cqg.rtd", ,"ContractData",C86, "PerCentNetLastTrade",, "T")/100,"") -> -0.01741397289 | K86: =RTD("cqg.rtd", ,"ContractData", C86, "T_CVol",, "T") -> 555484 | L86: 86 | M86: =IFERROR(RANK($J86,$J$1:J$607)+COUNTIF($J$1:J86,J86)-1,"") -> 581 | N86: S.US.BURL | O86: S.US.BSX | P86: =RTD("cqg.rtd", ,"ContractData",O86, "PerCentNetLastTrade",, "T")/100 -> 0.01162354706 | Q86: https://finance.yahoo.com/quote/BSX | S86: 0.01162354706 | V86: =RTD("cqg.rtd", ,"ContractData",O86, "LongDescription",, "T") -> Boston Scientific Corp | Y86: 0.01162354706 | AA86: 1 | AB86: 1 | AD86: 0.01162354706
C87: S.US.BWA | D87: =RTD("cqg.rtd", ,"ContractData",C87, "LongDescription",, "T") -> Borg Warner Inc | E87: =RTD("cqg.rtd", ,"ContractData",C87, "Open",, "T") -> 40.95 | F87: =RTD("cqg.rtd", ,"ContractData",C87, "High",, "T") -> 41.09 | G87: =RTD("cqg.rtd", ,"ContractData",C87, "Low",, "T") -> 40.69 | H87: =RTD("cqg.rtd", ,"ContractData",C87, "LastTradeToday",, "T") -> 40.95 | I87: =RTD("cqg.rtd", ,"ContractData",C87, "NetLastTradeToday",, "T") -> 0.13 | J87: =IFERROR(RTD("cqg.rtd", ,"ContractData",C87, "PerCentNetLastTrade",, "T")/100,"") -> 0.003184713376 | K87: =RTD("cqg.rtd", ,"ContractData", C87, "T_CVol",, "T") -> 423677 | L87: 87 | M87: =IFERROR(RANK($J87,$J$1:J$607)+COUNTIF($J$1:J87,J87)-1,"") -> 269 | N87: S.US.BWA | O87: S.US.VMW | P87: =RTD("cqg.rtd", ,"ContractData",O87, "PerCentNetLastTrade",, "T")/100 -> 0.01127859176 | Q87: https://finance.yahoo.com/quote/VMW | S87: 0.01127859176 | V87: =RTD("cqg.rtd", ,"ContractData",O87, "LongDescription",, "T") -> Vmware Inc | Y87: 0.01127859176 | AA87: 1 | AB87: 1 | AD87: 0.01127859176
C88: S.US.BWXT | D88: =RTD("cqg.rtd", ,"ContractData",C88, "LongDescription",, "T") -> BWX Technologies, Inc. | E88: =RTD("cqg.rtd", ,"ContractData",C88, "Open",, "T") -> 48.36 | F88: =RTD("cqg.rtd", ,"ContractData",C88, "High",, "T") -> 48.55 | G88: =RTD("cqg.rtd", ,"ContractData",C88, "Low",, "T") -> 47.94 | H88: =RTD("cqg.rtd", ,"ContractData",C88, "LastTradeToday",, "T") -> 48.04 | I88: =RTD("cqg.rtd", ,"ContractData",C88, "NetLastTradeToday",, "T") -> -0.22 | J88: =IFERROR(RTD("cqg.rtd", ,"ContractData",C88, "PerCentNetLastTrade",, "T")/100,"") -> -0.004558640696 | K88: =RTD("cqg.rtd", ,"ContractData", C88, "T_CVol",, "T") -> 165560 | L88: 88 | M88: =IFERROR(RANK($J88,$J$1:J$607)+COUNTIF($J$1:J88,J88)-1,"") -> 474 | N88: S.US.BWXT | O88: S.US.BFB | P88: =RTD("cqg.rtd", ,"ContractData",O88, "PerCentNetLastTrade",, "T")/100 -> 0.01124016486 | Q88: https://finance.yahoo.com/quote/BFB | S88: 0.01124016486 | V88: =RTD("cqg.rtd", ,"ContractData",O88, "LongDescription",, "T") -> Brown-Forman Corporation ClsB | Y88: 0.01124016486 | AA88: 1 | AB88: 1 | AD88: 0.01124016486
C89: S.US.BXP | D89: =RTD("cqg.rtd", ,"ContractData",C89, "LongDescription",, "T") -> Boston Properties Inc | E89: =RTD("cqg.rtd", ,"ContractData",C89, "Open",, "T") -> 121.91 | F89: =RTD("cqg.rtd", ,"ContractData",C89, "High",, "T") -> 122.33 | G89: =RTD("cqg.rtd", ,"ContractData",C89, "Low",, "T") -> 121.43 | H89: =RTD("cqg.rtd", ,"ContractData",C89, "LastTradeToday",, "T") -> 122.07 | I89: =RTD("cqg.rtd", ,"ContractData",C89, "NetLastTradeToday",, "T") -> 0.23 | J89: =IFERROR(RTD("cqg.rtd", ,"ContractData",C89, "PerCentNetLastTrade",, "T")/100,"") -> 0.001887721602 | K89: =RTD("cqg.rtd", ,"ContractData", C89, "T_CVol",, "T") -> 243256 | L89: 89 | M89: =IFERROR(RANK($J89,$J$1:J$607)+COUNTIF($J$1:J89,J89)-1,"") -> 323 | N89: S.US.BXP | O89: S.US.HUBB | P89: =RTD("cqg.rtd", ,"ContractData",O89, "PerCentNetLastTrade",, "T")/100 -> 0.01112269725 | Q89: https://finance.yahoo.com/quote/HUBB | S89: 0.01112269725 | V89: =RTD("cqg.rtd", ,"ContractData",O89, "LongDescription",, "T") -> Hubbell Inc Cls B | Y89: 0.01112269725 | AA89: 1 | AB89: 1 | AD89: 0.01112269725
C90: S.US.CAA | D90: =RTD("cqg.rtd", ,"ContractData",C90, "LongDescription",, "T") -> CalAtlantic Group, Inc. | E90: =RTD("cqg.rtd", ,"ContractData",C90, "Open",, "T") -> 36.79 | F90: =RTD("cqg.rtd", ,"ContractData",C90, "High",, "T") -> 37.11 | G90: =RTD("cqg.rtd", ,"ContractData",C90, "Low",, "T") -> 36.59 | H90: =RTD("cqg.rtd", ,"ContractData",C90, "LastTradeToday",, "T") -> 37.05 | I90: =RTD("cqg.rtd", ,"ContractData",C90, "NetLastTradeToday",, "T") -> 0.13 | J90: =IFERROR(RTD("cqg.rtd", ,"ContractData",C90, "PerCentNetLastTrade",, "T")/100,"") -> 0.003521126761 | K90: =RTD("cqg.rtd", ,"ContractData", C90, "T_CVol",, "T") -> 363339 | L90: 90 | M90: =IFERROR(RANK($J90,$J$1:J$607)+COUNTIF($J$1:J90,J90)-1,"") -> 253 | N90: S.US.CAA | O90: S.US.KO | P90: =RTD("cqg.rtd", ,"ContractData",O90, "PerCentNetLastTrade",, "T")/100 -> 0.01103852219 | Q90: https://finance.yahoo.com/quote/KO | S90: 0.01103852219 | V90: =RTD("cqg.rtd", ,"ContractData",O90, "LongDescription",, "T") -> Coca-Cola Company | Y90: 0.01103852219 | AA90: 1 | AB90: 1 | AD90: 0.01103852219
C91: S.US.CAB | D91: =RTD("cqg.rtd", ,"ContractData",C91, "LongDescription",, "T") -> Cabelas Inc | E91: =RTD("cqg.rtd", ,"ContractData",C91, "Open",, "T") -> 53.29 | F91: =RTD("cqg.rtd", ,"ContractData",C91, "High",, "T") -> 53.49 | G91: =RTD("cqg.rtd", ,"ContractData",C91, "Low",, "T") -> 52.92 | H91: =RTD("cqg.rtd", ,"ContractData",C91, "LastTradeToday",, "T") -> 53.44 | I91: =RTD("cqg.rtd", ,"ContractData",C91, "NetLastTradeToday",, "T") -> 0.17 | J91: =IFERROR(RTD("cqg.rtd", ,"ContractData",C91, "PerCentNetLastTrade",, "T")/100,"") -> 0.003191289656 | K91: =RTD("cqg.rtd", ,"ContractData", C91, "T_CVol",, "T") -> 226530 | L91: 91 | M91: =IFERROR(RANK($J91,$J$1:J$607)+COUNTIF($J$1:J91,J91)-1,"") -> 268 | N91: S.US.CAB | O91: S.US.SERV | P91: =RTD("cqg.rtd", ,"ContractData",O91, "PerCentNetLastTrade",, "T")/100 -> 0.01096843232 | Q91: https://finance.yahoo.com/quote/SERV | S91: 0.01096843232 | V91: =RTD("cqg.rtd", ,"ContractData",O91, "LongDescription",, "T") -> Servicemaster Global Holdings, Inc. | Y91: 0.01096843232 | AA91: 1 | AB91: 1 | AD91: 0.01096843232
C92: S.US.CABO | D92: =RTD("cqg.rtd", ,"ContractData",C92, "LongDescription",, "T") -> Cable ONE, Inc. | E92: =RTD("cqg.rtd", ,"ContractData",C92, "Open",, "T") -> 695.32 | F92: =RTD("cqg.rtd", ,"ContractData",C92, "High",, "T") -> 699.65 | G92: =RTD("cqg.rtd", ,"ContractData",C92, "Low",, "T") -> 691.9 | H92: =RTD("cqg.rtd", ,"ContractData",C92, "LastTradeToday",, "T") -> 693 | I92: =RTD("cqg.rtd", ,"ContractData",C92, "NetLastTradeToday",, "T") -> -0.5 | J92: =IFERROR(RTD("cqg.rtd", ,"ContractData",C92, "PerCentNetLastTrade",, "T")/100,"") -> -0.0007209805335 | K92: =RTD("cqg.rtd", ,"ContractData", C92, "T_CVol",, "T") -> 13598 | L92: 92 | M92: =IFERROR(RANK($J92,$J$1:J$607)+COUNTIF($J$1:J92,J92)-1,"") -> 409 | N92: S.US.CABO | O92: S.US.HUM | P92: =RTD("cqg.rtd", ,"ContractData",O92, "PerCentNetLastTrade",, "T")/100 -> 0.01090369853 | Q92: https://finance.yahoo.com/quote/HUM | S92: 0.01090369853 | V92: =RTD("cqg.rtd", ,"ContractData",O92, "LongDescription",, "T") -> Humana Inc | Y92: 0.01090369853 | AA92: 1 | AB92: 1 | AD92: 0.01090369853
C93: S.US.CACC | D93: =RTD("cqg.rtd", ,"ContractData",C93, "LongDescription",, "T") -> Credit Acceptence Corp | E93: =RTD("cqg.rtd", ,"ContractData",C93, "Open",, "T") -> 226.33 | F93: =RTD("cqg.rtd", ,"ContractData",C93, "High",, "T") -> 228.86 | G93: =RTD("cqg.rtd", ,"ContractData",C93, "Low",, "T") -> 222.97 | H93: =RTD("cqg.rtd", ,"ContractData",C93, "LastTradeToday",, "T") -> 224.23 | I93: =RTD("cqg.rtd", ,"ContractData",C93, "NetLastTradeToday",, "T") -> -2.5 | J93: =IFERROR(RTD("cqg.rtd", ,"ContractData",C93, "PerCentNetLastTrade",, "T")/100,"") -> -0.01102633088 | K93: =RTD("cqg.rtd", ,"ContractData", C93, "T_CVol",, "T") -> 89553 | L93: 93 | M93: =IFERROR(RANK($J93,$J$1:J$607)+COUNTIF($J$1:J93,J93)-1,"") -> 554 | N93: S.US.CACC | O93: S.US.CMCSA | P93: =RTD("cqg.rtd", ,"ContractData",O93, "PerCentNetLastTrade",, "T")/100 -> 0.01080945199 | Q93: https://finance.yahoo.com/quote/CMCSA | S93: 0.01080945199 | V93: =RTD("cqg.rtd", ,"ContractData",O93, "LongDescription",, "T") -> Comcast Corp ClsA | Y93: 0.01080945199 | AA93: 1 | AB93: 1 | AD93: 0.01080945199
C94: S.US.CAG | D94: =RTD("cqg.rtd", ,"ContractData",C94, "LongDescription",, "T") -> Conagra Brands, Inc. | E94: =RTD("cqg.rtd", ,"ContractData",C94, "Open",, "T") -> 38.56 | F94: =RTD("cqg.rtd", ,"ContractData",C94, "High",, "T") -> 38.71 | G94: =RTD("cqg.rtd", ,"ContractData",C94, "Low",, "T") -> 38.5 | H94: =RTD("cqg.rtd", ,"ContractData",C94, "LastTradeToday",, "T") -> 38.69 | I94: =RTD("cqg.rtd", ,"ContractData",C94, "NetLastTradeToday",, "T") -> 0.31 | J94: =IFERROR(RTD("cqg.rtd", ,"ContractData",C94, "PerCentNetLastTrade",, "T")/100,"") -> 0.008077123502 | K94: =RTD("cqg.rtd", ,"ContractData", C94, "T_CVol",, "T") -> 779425 | L94: 94 | M94: =IFERROR(RANK($J94,$J$1:J$607)+COUNTIF($J$1:J94,J94)-1,"") -> 137 | N94: S.US.CAG | O94: S.US.DLR | P94: =RTD("cqg.rtd", ,"ContractData",O94, "PerCentNetLastTrade",, "T")/100 -> 0.01067217489 | Q94: https://finance.yahoo.com/quote/DLR | S94: 0.01067217489 | V94: =RTD("cqg.rtd", ,"ContractData",O94, "LongDescription",, "T") -> Digital Realty | Y94: 0.01067217489 | AA94: 1 | AB94: 1 | AD94: 0.01067217489
C95: S.US.CAH | D95: =RTD("cqg.rtd", ,"ContractData",C95, "LongDescription",, "T") -> Cardinal Health Inc | E95: =RTD("cqg.rtd", ,"ContractData",C95, "Open",, "T") -> 73.1 | F95: =RTD("cqg.rtd", ,"ContractData",C95, "High",, "T") -> 73.32 | G95: =RTD("cqg.rtd", ,"ContractData",C95, "Low",, "T") -> 72.83 | H95: =RTD("cqg.rtd", ,"ContractData",C95, "LastTradeToday",, "T") -> 73.25 | I95: =RTD("cqg.rtd", ,"ContractData",C95, "NetLastTradeToday",, "T") -> 0.29 | J95: =IFERROR(RTD("cqg.rtd", ,"ContractData",C95, "PerCentNetLastTrade",, "T")/100,"") -> 0.003974780702 | K95: =RTD("cqg.rtd", ,"ContractData", C95, "T_CVol",, "T") -> 514428 | L95: 95 | M95: =IFERROR(RANK($J95,$J$1:J$607)+COUNTIF($J$1:J95,J95)-1,"") -> 244 | N95: S.US.CAH | O95: S.US.SBUX | P95: =RTD("cqg.rtd", ,"ContractData",O95, "PerCentNetLastTrade",, "T")/100 -> 0.01062959935 | Q95: https://finance.yahoo.com/quote/SBUX | S95: 0.01062959935 | V95: =RTD("cqg.rtd", ,"ContractData",O95, "LongDescription",, "T") -> Starbucks Corp | Y95: 0.01062959935 | AA95: 1 | AB95: 1 | AD95: 0.01062959935
C96: S.US.CAR | D96: =RTD("cqg.rtd", ,"ContractData",C96, "LongDescription",, "T") -> AVIS Budget Group Inc | E96: =RTD("cqg.rtd", ,"ContractData",C96, "Open",, "T") -> 22.42 | F96: =RTD("cqg.rtd", ,"ContractData",C96, "High",, "T") -> 22.51 | G96: =RTD("cqg.rtd", ,"ContractData",C96, "Low",, "T") -> 21.94 | H96: =RTD("cqg.rtd", ,"ContractData",C96, "LastTradeToday",, "T") -> 22.15 | I96: =RTD("cqg.rtd", ,"ContractData",C96, "NetLastTradeToday",, "T") -> -0.23 | J96: =IFERROR(RTD("cqg.rtd", ,"ContractData",C96, "PerCentNetLastTrade",, "T")/100,"") -> -0.01027703307 | K96: =RTD("cqg.rtd", ,"ContractData", C96, "T_CVol",, "T") -> 1313190 | L96: 96 | M96: =IFERROR(RANK($J96,$J$1:J$607)+COUNTIF($J$1:J96,J96)-1,"") -> 547 | N96: S.US.CAR | O96: S.US.FB | P96: =RTD("cqg.rtd", ,"ContractData",O96, "PerCentNetLastTrade",, "T")/100 -> 0.01053555751 | Q96: https://finance.yahoo.com/quote/FB | S96: 0.01053555751 | V96: =RTD("cqg.rtd", ,"ContractData",O96, "LongDescription",, "T") -> Facebook, Inc. | Y96: 0.01053555751 | AA96: 1 | AB96: 1 | AD96: 0.01053555751
C97: S.US.CASY | D97: =RTD("cqg.rtd", ,"ContractData",C97, "LongDescription",, "T") -> Caseys General Stores Inc | E97: =RTD("cqg.rtd", ,"ContractData",C97, "Open",, "T") -> 112.9 | F97: =RTD("cqg.rtd", ,"ContractData",C97, "High",, "T") -> 113.63 | G97: =RTD("cqg.rtd", ,"ContractData",C97, "Low",, "T") -> 112.24 | H97: =RTD("cqg.rtd", ,"ContractData",C97, "LastTradeToday",, "T") -> 113.59 | I97: =RTD("cqg.rtd", ,"ContractData",C97, "NetLastTradeToday",, "T") -> 0.98 | J97: =IFERROR(RTD("cqg.rtd", ,"ContractData",C97, "PerCentNetLastTrade",, "T")/100,"") -> 0.0087026019 | K97: =RTD("cqg.rtd", ,"ContractData", C97, "T_CVol",, "T") -> 148483 | L97: 97 | M97: =IFERROR(RANK($J97,$J$1:J$607)+COUNTIF($J$1:J97,J97)-1,"") -> 127 | N97: S.US.CASY | O97: S.US.CHD | P97: =RTD("cqg.rtd", ,"ContractData",O97, "PerCentNetLastTrade",, "T")/100 -> 0.01053468495 | Q97: https://finance.yahoo.com/quote/CHD | S97: 0.01053468495 | V97: =RTD("cqg.rtd", ,"ContractData",O97, "LongDescription",, "T") -> Church/Dwight Co Inc | Y97: 0.01053468495 | AA97: 1 | AB97: 1 | AD97: 0.01053468495
C98: S.US.CBG | D98: =RTD("cqg.rtd", ,"ContractData",C98, "LongDescription",, "T") -> CBRE Group, Inc. | E98: =RTD("cqg.rtd", ,"ContractData",C98, "Open",, "T") -> 34.12 | F98: =RTD("cqg.rtd", ,"ContractData",C98, "High",, "T") -> 34.42 | G98: =RTD("cqg.rtd", ,"ContractData",C98, "Low",, "T") -> 34 | H98: =RTD("cqg.rtd", ,"ContractData",C98, "LastTradeToday",, "T") -> 34.18 | I98: =RTD("cqg.rtd", ,"ContractData",C98, "NetLastTradeToday",, "T") -> 0.03 | J98: =IFERROR(RTD("cqg.rtd", ,"ContractData",C98, "PerCentNetLastTrade",, "T")/100,"") -> 0.000878477306 | K98: =RTD("cqg.rtd", ,"ContractData", C98, "T_CVol",, "T") -> 857948 | L98: 98 | M98: =IFERROR(RANK($J98,$J$1:J$607)+COUNTIF($J$1:J98,J98)-1,"") -> 354 | N98: S.US.CBG | O98: S.US.GPN | P98: =RTD("cqg.rtd", ,"ContractData",O98, "PerCentNetLastTrade",, "T")/100 -> 0.01052516171 | Q98: https://finance.yahoo.com/quote/GPN | S98: 0.01052516171 | V98: =RTD("cqg.rtd", ,"ContractData",O98, "LongDescription",, "T") -> Global Payments | Y98: 0.01052516171 | AA98: 1 | AB98: 1 | AD98: 0.01052516171
C99: S.US.CBOE | D99: =RTD("cqg.rtd", ,"ContractData",C99, "LongDescription",, "T") -> CBOE Holdings, Inc. | E99: =RTD("cqg.rtd", ,"ContractData",C99, "Open",, "T") -> 85.84 | F99: =RTD("cqg.rtd", ,"ContractData",C99, "High",, "T") -> 86.13 | G99: =RTD("cqg.rtd", ,"ContractData",C99, "Low",, "T") -> 85.37 | H99: =RTD("cqg.rtd", ,"ContractData",C99, "LastTradeToday",, "T") -> 86.01 | I99: =RTD("cqg.rtd", ,"ContractData",C99, "NetLastTradeToday",, "T") -> 0.28 | J99: =IFERROR(RTD("cqg.rtd", ,"ContractData",C99, "PerCentNetLastTrade",, "T")/100,"") -> 0.003266067888 | K99: =RTD("cqg.rtd", ,"ContractData", C99, "T_CVol",, "T") -> 363883 | L99: 99 | M99: =IFERROR(RANK($J99,$J$1:J$607)+COUNTIF($J$1:J99,J99)-1,"") -> 265 | N99: S.US.CBOE | O99: S.US.BR | P99: =RTD("cqg.rtd", ,"ContractData",O99, "PerCentNetLastTrade",, "T")/100 -> 0.01052489543 | Q99: https://finance.yahoo.com/quote/BR | S99: 0.01052489543 | V99: =RTD("cqg.rtd", ,"ContractData",O99, "LongDescription",, "T") -> Broadridge Financial Solutions | Y99: 0.01052489543 | AA99: 1 | AB99: 1 | AD99: 0.01052489543
C100: S.US.CBS | D100: =RTD("cqg.rtd", ,"ContractData",C100, "LongDescription",, "T") -> CBS Corporation | E100: =RTD("cqg.rtd", ,"ContractData",C100, "Open",, "T") -> 61.64 | F100: =RTD("cqg.rtd", ,"ContractData",C100, "High",, "T") -> 61.95 | G100: =RTD("cqg.rtd", ,"ContractData",C100, "Low",, "T") -> 61.3 | H100: =RTD("cqg.rtd", ,"ContractData",C100, "LastTradeToday",, "T") -> 61.86 | I100: =RTD("cqg.rtd", ,"ContractData",C100, "NetLastTradeToday",, "T") -> 0.39 | J100: =IFERROR(RTD("cqg.rtd", ,"ContractData",C100, "PerCentNetLastTrade",, "T")/100,"") -> 0.006344558321 | K100: =RTD("cqg.rtd", ,"ContractData", C100, "T_CVol",, "T") -> 709666 | L100: 100 | M100: =IFERROR(RANK($J100,$J$1:J$607)+COUNTIF($J$1:J100,J100)-1,"") -> 188 | N100: S.US.CBS | O100: S.US.ADBE | P100: =RTD("cqg.rtd", ,"ContractData",O100, "PerCentNetLastTrade",, "T")/100 -> 0.01046444954 | Q100: https://finance.yahoo.com/quote/ADBE | S100: 0.01046444954 | V100: =RTD("cqg.rtd", ,"ContractData",O100, "LongDescription",, "T") -> Adobe Systems Inc | Y100: 0.01046444954 | AA100: 1 | AB100: 1 | AD100: 0.01046444954
C101: S.US.CCI | D101: =RTD("cqg.rtd", ,"ContractData",C101, "LongDescription",, "T") -> Crown Castle Intl | E101: =RTD("cqg.rtd", ,"ContractData",C101, "Open",, "T") -> 100.98 | F101: =RTD("cqg.rtd", ,"ContractData",C101, "High",, "T") -> 102.13 | G101: =RTD("cqg.rtd", ,"ContractData",C101, "Low",, "T") -> 100.71 | H101: =RTD("cqg.rtd", ,"ContractData",C101, "LastTradeToday",, "T") -> 101.59 | I101: =RTD("cqg.rtd", ,"ContractData",C101, "NetLastTradeToday",, "T") -> 0.81 | J101: =IFERROR(RTD("cqg.rtd", ,"ContractData",C101, "PerCentNetLastTrade",, "T")/100,"") -> 0.00803730899 | K101: =RTD("cqg.rtd", ,"ContractData", C101, "T_CVol",, "T") -> 1089087 | L101: 101 | M101: =IFERROR(RANK($J101,$J$1:J$607)+COUNTIF($J$1:J101,J101)-1,"") -> 139 | N101: S.US.CCI | O101: S.US.VRSN | P101: =RTD("cqg.rtd", ,"ContractData",O101, "PerCentNetLastTrade",, "T")/100 -> 0.01044357103 | Q101: https://finance.yahoo.com/quote/VRSN | S101: 0.01044357103 | V101: =RTD("cqg.rtd", ,"ContractData",O101, "LongDescription",, "T") -> Verisign Inc | Y101: 0.01044357103 | AA101: 1 | AB101: 1 | AD101: 0.01044357103
C102: S.US.CCK | D102: =RTD("cqg.rtd", ,"ContractData",C102, "LongDescription",, "T") -> Crown Holdings Inc | E102: =RTD("cqg.rtd", ,"ContractData",C102, "Open",, "T") -> 56.51 | F102: =RTD("cqg.rtd", ,"ContractData",C102, "High",, "T") -> 56.78 | G102: =RTD("cqg.rtd", ,"ContractData",C102, "Low",, "T") -> 56.31 | H102: =RTD("cqg.rtd", ,"ContractData",C102, "LastTradeToday",, "T") -> 56.71 | I102: =RTD("cqg.rtd", ,"ContractData",C102, "NetLastTradeToday",, "T") -> 0.18 | J102: =IFERROR(RTD("cqg.rtd", ,"ContractData",C102, "PerCentNetLastTrade",, "T")/100,"") -> 0.003184150009 | K102: =RTD("cqg.rtd", ,"ContractData", C102, "T_CVol",, "T") -> 296686 | L102: 102 | M102: =IFERROR(RANK($J102,$J$1:J$607)+COUNTIF($J$1:J102,J102)-1,"") -> 270 | N102: S.US.CCK | O102: S.US.IFF | P102: =RTD("cqg.rtd", ,"ContractData",O102, "PerCentNetLastTrade",, "T")/100 -> 0.01018165837 | Q102: https://finance.yahoo.com/quote/IFF | S102: 0.01018165837 | V102: =RTD("cqg.rtd", ,"ContractData",O102, "LongDescription",, "T") -> Intl Flvrs & Fragrances | Y102: 0.01018165837 | AA102: 1 | AB102: 1 | AD102: 0.01018165837
C103: S.US.CCO | D103: =RTD("cqg.rtd", ,"ContractData",C103, "LongDescription",, "T") -> Clear Channel Outdoor Hldgs | E103: =RTD("cqg.rtd", ,"ContractData",C103, "Open",, "T") -> 3.7 | F103: =RTD("cqg.rtd", ,"ContractData",C103, "High",, "T") -> 3.75 | G103: =RTD("cqg.rtd", ,"ContractData",C103, "Low",, "T") -> 3.55 | H103: =RTD("cqg.rtd", ,"ContractData",C103, "LastTradeToday",, "T") -> 3.7 | I103: =RTD("cqg.rtd", ,"ContractData",C103, "NetLastTradeToday",, "T") -> 0.05 | J103: =IFERROR(RTD("cqg.rtd", ,"ContractData",C103, "PerCentNetLastTrade",, "T")/100,"") -> 0.01369863014 | K103: =RTD("cqg.rtd", ,"ContractData", C103, "T_CVol",, "T") -> 91081 | L103: 103 | M103: =IFERROR(RANK($J103,$J$1:J$607)+COUNTIF($J$1:J103,J103)-1,"") -> 64 | N103: =C103 -> S.US.CCO | O103: S.US.AVGO | P103: =RTD("cqg.rtd", ,"ContractData",O103, "PerCentNetLastTrade",, "T")/100 -> 0.01006172318 | Q103: https://finance.yahoo.com/quote/AVGO | S103: =IF(P103>=0,P103,NA()) -> 0.01006172318 | T103: =IF(P103>=0,NA(),-1*P103) ->  | V103: =RTD("cqg.rtd", ,"ContractData",O103, "LongDescription",, "T") -> Broadcom Limited | Y103: =IFERROR(S103,P103) -> 0.01006172318 | AA103: =IF(S103="NA()",0,1) -> 1 | AB103: =IFERROR(AA103,0) -> 1 | AD103: =IFERROR(S103,"") -> 0.01006172318 | AE103: =IFERROR(T103,"") ->  | AF103: =IF(AE103="","",Y103) -> 
C104: S.US.CCP | D104: =RTD("cqg.rtd", ,"ContractData",C104, "LongDescription",, "T") -> Care Capital Properties, Inc. | E104: =RTD("cqg.rtd", ,"ContractData",C104, "Open",, "T") -> 27.94 | F104: =RTD("cqg.rtd", ,"ContractData",C104, "High",, "T") -> 28.42 | G104: =RTD("cqg.rtd", ,"ContractData",C104, "Low",, "T") -> 27.91 | H104: =RTD("cqg.rtd", ,"ContractData",C104, "LastTradeToday",, "T") -> 28 | I104: =RTD("cqg.rtd", ,"ContractData",C104, "NetLastTradeToday",, "T") -> 0.04 | J104: =IFERROR(RTD("cqg.rtd", ,"ContractData",C104, "PerCentNetLastTrade",, "T")/100,"") -> 0.001430615165 | K104: =RTD("cqg.rtd", ,"ContractData", C104, "T_CVol",, "T") -> 262340 | L104: 104 | M104: =IFERROR(RANK($J104,$J$1:J$607)+COUNTIF($J$1:J104,J104)-1,"") -> 340 | N104: S.US.CCP | O104: S.US.CRM | P104: =RTD("cqg.rtd", ,"ContractData",O104, "PerCentNetLastTrade",, "T")/100 -> 0.009944626511 | Q104: https://finance.yahoo.com/quote/CRM | S104: 0.009944626511 | V104: =RTD("cqg.rtd", ,"ContractData",O104, "LongDescription",, "T") -> Salesforce.com Inc | Y104: 0.009944626511 | AA104: 1 | AB104: 1 | AD104: 0.009944626511
C105: S.US.CDK | D105: =RTD("cqg.rtd", ,"ContractData",C105, "LongDescription",, "T") -> CDK Global, Inc. | E105: =RTD("cqg.rtd", ,"ContractData",C105, "Open",, "T") -> 61.16 | F105: =RTD("cqg.rtd", ,"ContractData",C105, "High",, "T") -> 61.43 | G105: =RTD("cqg.rtd", ,"ContractData",C105, "Low",, "T") -> 61 | H105: =RTD("cqg.rtd", ,"ContractData",C105, "LastTradeToday",, "T") -> 61.16 | I105: =RTD("cqg.rtd", ,"ContractData",C105, "NetLastTradeToday",, "T") -> 0.07 | J105: =IFERROR(RTD("cqg.rtd", ,"ContractData",C105, "PerCentNetLastTrade",, "T")/100,"") -> 0.001145850385 | K105: =RTD("cqg.rtd", ,"ContractData", C105, "T_CVol",, "T") -> 229377 | L105: 105 | M105: =IFERROR(RANK($J105,$J$1:J$607)+COUNTIF($J$1:J105,J105)-1,"") -> 347 | N105: S.US.CDK | O105: S.US.BFA | P105: =RTD("cqg.rtd", ,"ContractData",O105, "PerCentNetLastTrade",, "T")/100 -> 0.009942920273 | Q105: https://finance.yahoo.com/quote/BFA | S105: 0.009942920273 | V105: =RTD("cqg.rtd", ,"ContractData",O105, "LongDescription",, "T") -> Brown-Forman Corporation ClsA | Y105: 0.009942920273 | AA105: 1 | AB105: 1 | AD105: 0.009942920273
C106: S.US.CDNS | D106: =RTD("cqg.rtd", ,"ContractData",C106, "LongDescription",, "T") -> Cadence Design Systems, Inc | E106: =RTD("cqg.rtd", ,"ContractData",C106, "Open",, "T") -> 34.06 | F106: =RTD("cqg.rtd", ,"ContractData",C106, "High",, "T") -> 34.16 | G106: =RTD("cqg.rtd", ,"ContractData",C106, "Low",, "T") -> 33.8 | H106: =RTD("cqg.rtd", ,"ContractData",C106, "LastTradeToday",, "T") -> 34.13 | I106: =RTD("cqg.rtd", ,"ContractData",C106, "NetLastTradeToday",, "T") -> 0.11 | J106: =IFERROR(RTD("cqg.rtd", ,"ContractData",C106, "PerCentNetLastTrade",, "T")/100,"") -> 0.003233392122 | K106: =RTD("cqg.rtd", ,"ContractData", C106, "T_CVol",, "T") -> 1404244 | L106: 106 | M106: =IFERROR(RANK($J106,$J$1:J$607)+COUNTIF($J$1:J106,J106)-1,"") -> 266 | N106: S.US.CDNS | O106: S.US.ODFL | P106: =RTD("cqg.rtd", ,"ContractData",O106, "PerCentNetLastTrade",, "T")/100 -> 0.009907755381 | Q106: https://finance.yahoo.com/quote/ODFL | S106: 0.009907755381 | V106: =RTD("cqg.rtd", ,"ContractData",O106, "LongDescription",, "T") -> Old Dominion Freight Line Inc | Y106: 0.009907755381 | AA106: 1 | AB106: 1 | AD106: 0.009907755381
C107: S.US.CDW | D107: =RTD("cqg.rtd", ,"ContractData",C107, "LongDescription",, "T") -> CDW Corporation | E107: =RTD("cqg.rtd", ,"ContractData",C107, "Open",, "T") -> 57.92 | F107: =RTD("cqg.rtd", ,"ContractData",C107, "High",, "T") -> 58.24 | G107: =RTD("cqg.rtd", ,"ContractData",C107, "Low",, "T") -> 57.66 | H107: =RTD("cqg.rtd", ,"ContractData",C107, "LastTradeToday",, "T") -> 58.07 | I107: =RTD("cqg.rtd", ,"ContractData",C107, "NetLastTradeToday",, "T") -> 0.4 | J107: =IFERROR(RTD("cqg.rtd", ,"ContractData",C107, "PerCentNetLastTrade",, "T")/100,"") -> 0.006936015259 | K107: =RTD("cqg.rtd", ,"ContractData", C107, "T_CVol",, "T") -> 555724 | L107: 107 | M107: =IFERROR(RANK($J107,$J$1:J$607)+COUNTIF($J$1:J107,J107)-1,"") -> 169 | N107: S.US.CDW | O107: S.US.APD | P107: =RTD("cqg.rtd", ,"ContractData",O107, "PerCentNetLastTrade",, "T")/100 -> 0.009801862354 | Q107: https://finance.yahoo.com/quote/APD | S107: 0.009801862354 | V107: =RTD("cqg.rtd", ,"ContractData",O107, "LongDescription",, "T") -> Air Products & Chems Inc | Y107: 0.009801862354 | AA107: 1 | AB107: 1 | AD107: 0.009801862354
C108: S.US.CE | D108: =RTD("cqg.rtd", ,"ContractData",C108, "LongDescription",, "T") -> Celanese Corp | E108: =RTD("cqg.rtd", ,"ContractData",C108, "Open",, "T") -> 87.54 | F108: =RTD("cqg.rtd", ,"ContractData",C108, "High",, "T") -> 88.46 | G108: =RTD("cqg.rtd", ,"ContractData",C108, "Low",, "T") -> 87.25 | H108: =RTD("cqg.rtd", ,"ContractData",C108, "LastTradeToday",, "T") -> 87.45 | I108: =RTD("cqg.rtd", ,"ContractData",C108, "NetLastTradeToday",, "T") -> 0.25 | J108: =IFERROR(RTD("cqg.rtd", ,"ContractData",C108, "PerCentNetLastTrade",, "T")/100,"") -> 0.002866972477 | K108: =RTD("cqg.rtd", ,"ContractData", C108, "T_CVol",, "T") -> 633761 | L108: 108 | M108: =IFERROR(RANK($J108,$J$1:J$607)+COUNTIF($J$1:J108,J108)-1,"") -> 286 | N108: S.US.CE | O108: S.US.A | P108: =RTD("cqg.rtd", ,"ContractData",O108, "PerCentNetLastTrade",, "T")/100 -> 0.009717013297 | Q108: https://finance.yahoo.com/quote/A | S108: 0.009717013297 | V108: =RTD("cqg.rtd", ,"ContractData",O108, "LongDescription",, "T") -> Agilent Technologies | Y108: 0.009717013297 | AA108: 1 | AB108: 1 | AD108: 0.009717013297
C109: S.US.CELG | D109: =RTD("cqg.rtd", ,"ContractData",C109, "LongDescription",, "T") -> Celgene Corporation | E109: =RTD("cqg.rtd", ,"ContractData",C109, "Open",, "T") -> 117.73 | F109: =RTD("cqg.rtd", ,"ContractData",C109, "High",, "T") -> 117.93 | G109: =RTD("cqg.rtd", ,"ContractData",C109, "Low",, "T") -> 116.97 | H109: =RTD("cqg.rtd", ,"ContractData",C109, "LastTradeToday",, "T") -> 117.44 | I109: =RTD("cqg.rtd", ,"ContractData",C109, "NetLastTradeToday",, "T") -> 0.13 | J109: =IFERROR(RTD("cqg.rtd", ,"ContractData",C109, "PerCentNetLastTrade",, "T")/100,"") -> 0.001108174921 | K109: =RTD("cqg.rtd", ,"ContractData", C109, "T_CVol",, "T") -> 1702116 | L109: 109 | M109: =IFERROR(RANK($J109,$J$1:J$607)+COUNTIF($J$1:J109,J109)-1,"") -> 348 | N109: S.US.CELG | O109: S.US.MO | P109: =RTD("cqg.rtd", ,"ContractData",O109, "PerCentNetLastTrade",, "T")/100 -> 0.009704699847 | Q109: https://finance.yahoo.com/quote/MO | S109: 0.009704699847 | V109: =RTD("cqg.rtd", ,"ContractData",O109, "LongDescription",, "T") -> Altria Group Inc | Y109: 0.009704699847 | AA109: 1 | AB109: 1 | AD109: 0.009704699847
C110: S.US.CERN | D110: =RTD("cqg.rtd", ,"ContractData",C110, "LongDescription",, "T") -> Cerner Corporation | E110: =RTD("cqg.rtd", ,"ContractData",C110, "Open",, "T") -> 64.82 | F110: =RTD("cqg.rtd", ,"ContractData",C110, "High",, "T") -> 64.89 | G110: =RTD("cqg.rtd", ,"ContractData",C110, "Low",, "T") -> 64.3 | H110: =RTD("cqg.rtd", ,"ContractData",C110, "LastTradeToday",, "T") -> 64.54 | I110: =RTD("cqg.rtd", ,"ContractData",C110, "NetLastTradeToday",, "T") -> -0.13 | J110: =IFERROR(RTD("cqg.rtd", ,"ContractData",C110, "PerCentNetLastTrade",, "T")/100,"") -> -0.00201020566 | K110: =RTD("cqg.rtd", ,"ContractData", C110, "T_CVol",, "T") -> 539291 | L110: 110 | M110: =IFERROR(RANK($J110,$J$1:J$607)+COUNTIF($J$1:J110,J110)-1,"") -> 431 | N110: S.US.CERN | O110: S.US.EL | P110: =RTD("cqg.rtd", ,"ContractData",O110, "PerCentNetLastTrade",, "T")/100 -> 0.00967496467 | Q110: https://finance.yahoo.com/quote/EL | S110: 0.00967496467 | V110: =RTD("cqg.rtd", ,"ContractData",O110, "LongDescription",, "T") -> Estee Lauder Companies | Y110: 0.00967496467 | AA110: 1 | AB110: 1 | AD110: 0.00967496467
C111: S.US.CFG | D111: =RTD("cqg.rtd", ,"ContractData",C111, "LongDescription",, "T") -> Citizens Financial Group, Inc. | E111: =RTD("cqg.rtd", ,"ContractData",C111, "Open",, "T") -> 35.19 | F111: =RTD("cqg.rtd", ,"ContractData",C111, "High",, "T") -> 35.19 | G111: =RTD("cqg.rtd", ,"ContractData",C111, "Low",, "T") -> 34.45 | H111: =RTD("cqg.rtd", ,"ContractData",C111, "LastTradeToday",, "T") -> 34.61 | I111: =RTD("cqg.rtd", ,"ContractData",C111, "NetLastTradeToday",, "T") -> -0.48 | J111: =IFERROR(RTD("cqg.rtd", ,"ContractData",C111, "PerCentNetLastTrade",, "T")/100,"") -> -0.01367911086 | K111: =RTD("cqg.rtd", ,"ContractData", C111, "T_CVol",, "T") -> 1962995 | L111: 111 | M111: =IFERROR(RANK($J111,$J$1:J$607)+COUNTIF($J$1:J111,J111)-1,"") -> 567 | N111: S.US.CFG | O111: S.US.ESRT | P111: =RTD("cqg.rtd", ,"ContractData",O111, "PerCentNetLastTrade",, "T")/100 -> 0.009633911368 | Q111: https://finance.yahoo.com/quote/ESRT | S111: 0.009633911368 | V111: =RTD("cqg.rtd", ,"ContractData",O111, "LongDescription",, "T") -> Empire State Realty Trust, Inc. | Y111: 0.009633911368 | AA111: 1 | AB111: 1 | AD111: 0.009633911368
C112: S.US.CGNX | D112: =RTD("cqg.rtd", ,"ContractData",C112, "LongDescription",, "T") -> Cognex Corp | E112: =RTD("cqg.rtd", ,"ContractData",C112, "Open",, "T") -> 93.1 | F112: =RTD("cqg.rtd", ,"ContractData",C112, "High",, "T") -> 93.42 | G112: =RTD("cqg.rtd", ,"ContractData",C112, "Low",, "T") -> 92.12 | H112: =RTD("cqg.rtd", ,"ContractData",C112, "LastTradeToday",, "T") -> 92.26 | I112: =RTD("cqg.rtd", ,"ContractData",C112, "NetLastTradeToday",, "T") -> -0.67 | J112: =IFERROR(RTD("cqg.rtd", ,"ContractData",C112, "PerCentNetLastTrade",, "T")/100,"") -> -0.007209727752 | K112: =RTD("cqg.rtd", ,"ContractData", C112, "T_CVol",, "T") -> 253980 | L112: 112 | M112: =IFERROR(RANK($J112,$J$1:J$607)+COUNTIF($J$1:J112,J112)-1,"") -> 513 | N112: S.US.CGNX | O112: S.US.FDC | P112: =RTD("cqg.rtd", ,"ContractData",O112, "PerCentNetLastTrade",, "T")/100 -> 0.009632751355 | Q112: https://finance.yahoo.com/quote/FDC | S112: 0.009632751355 | V112: =RTD("cqg.rtd", ,"ContractData",O112, "LongDescription",, "T") -> First Data Corp. | Y112: 0.009632751355 | AA112: 1 | AB112: 1 | AD112: 0.009632751355
C113: S.US.CHD | D113: =RTD("cqg.rtd", ,"ContractData",C113, "LongDescription",, "T") -> Church/Dwight Co Inc | E113: =RTD("cqg.rtd", ,"ContractData",C113, "Open",, "T") -> 50.48 | F113: =RTD("cqg.rtd", ,"ContractData",C113, "High",, "T") -> 50.85 | G113: =RTD("cqg.rtd", ,"ContractData",C113, "Low",, "T") -> 50.42 | H113: =RTD("cqg.rtd", ,"ContractData",C113, "LastTradeToday",, "T") -> 50.84 | I113: =RTD("cqg.rtd", ,"ContractData",C113, "NetLastTradeToday",, "T") -> 0.53 | J113: =IFERROR(RTD("cqg.rtd", ,"ContractData",C113, "PerCentNetLastTrade",, "T")/100,"") -> 0.01053468495 | K113: =RTD("cqg.rtd", ,"ContractData", C113, "T_CVol",, "T") -> 547117 | L113: 113 | M113: =IFERROR(RANK($J113,$J$1:J$607)+COUNTIF($J$1:J113,J113)-1,"") -> 97 | N113: S.US.CHD | O113: S.US.NOC | P113: =RTD("cqg.rtd", ,"ContractData",O113, "PerCentNetLastTrade",, "T")/100 -> 0.009575104728 | Q113: https://finance.yahoo.com/quote/NOC | S113: 0.009575104728 | V113: =RTD("cqg.rtd", ,"ContractData",O113, "LongDescription",, "T") -> Northrop Grumman Corporation | Y113: 0.009575104728 | AA113: 1 | AB113: 1 | AD113: 0.009575104728
C114: S.US.CHH | D114: =RTD("cqg.rtd", ,"ContractData",C114, "LongDescription",, "T") -> Choice Hotels Internatl Inc | E114: =RTD("cqg.rtd", ,"ContractData",C114, "Open",, "T") -> 65.05 | F114: =RTD("cqg.rtd", ,"ContractData",C114, "High",, "T") -> 65.35 | G114: =RTD("cqg.rtd", ,"ContractData",C114, "Low",, "T") -> 64.25 | H114: =RTD("cqg.rtd", ,"ContractData",C114, "LastTradeToday",, "T") -> 65 | I114: =RTD("cqg.rtd", ,"ContractData",C114, "NetLastTradeToday",, "T") -> 0.05 | J114: =IFERROR(RTD("cqg.rtd", ,"ContractData",C114, "PerCentNetLastTrade",, "T")/100,"") -> 0.0007698229407 | K114: =RTD("cqg.rtd", ,"ContractData", C114, "T_CVol",, "T") -> 41223 | L114: 114 | M114: =IFERROR(RANK($J114,$J$1:J$607)+COUNTIF($J$1:J114,J114)-1,"") -> 358 | N114: S.US.CHH | O114: S.US.ARMK | P114: =RTD("cqg.rtd", ,"ContractData",O114, "PerCentNetLastTrade",, "T")/100 -> 0.009531590414 | Q114: https://finance.yahoo.com/quote/ARMK | S114: 0.009531590414 | V114: =RTD("cqg.rtd", ,"ContractData",O114, "LongDescription",, "T") -> Aramark | Y114: 0.009531590414 | AA114: 1 | AB114: 1 | AD114: 0.009531590414
C115: S.US.CHK | D115: =RTD("cqg.rtd", ,"ContractData",C115, "LongDescription",, "T") -> Chesapeake Energy Corp | E115: =RTD("cqg.rtd", ,"ContractData",C115, "Open",, "T") -> 5.67 | F115: =RTD("cqg.rtd", ,"ContractData",C115, "High",, "T") -> 5.81 | G115: =RTD("cqg.rtd", ,"ContractData",C115, "Low",, "T") -> 5.58 | H115: =RTD("cqg.rtd", ,"ContractData",C115, "LastTradeToday",, "T") -> 5.58 | I115: =RTD("cqg.rtd", ,"ContractData",C115, "NetLastTradeToday",, "T") -> -0.09 | J115: =IFERROR(RTD("cqg.rtd", ,"ContractData",C115, "PerCentNetLastTrade",, "T")/100,"") -> -0.01587301587 | K115: =RTD("cqg.rtd", ,"ContractData", C115, "T_CVol",, "T") -> 16711582 | L115: 115 | M115: =IFERROR(RANK($J115,$J$1:J$607)+COUNTIF($J$1:J115,J115)-1,"") -> 576 | N115: S.US.CHK | O115: S.US.SPGI | P115: =RTD("cqg.rtd", ,"ContractData",O115, "PerCentNetLastTrade",, "T")/100 -> 0.009406657019 | Q115: https://finance.yahoo.com/quote/SPGI | S115: 0.009406657019 | V115: =RTD("cqg.rtd", ,"ContractData",O115, "LongDescription",, "T") -> S&P Global Inc. | Y115: 0.009406657019 | AA115: 1 | AB115: 1 | AD115: 0.009406657019
C116: S.US.CHRW | D116: =RTD("cqg.rtd", ,"ContractData",C116, "LongDescription",, "T") -> CH Robinson Worldwide Inc | E116: =RTD("cqg.rtd", ,"ContractData",C116, "Open",, "T") -> 68.43 | F116: =RTD("cqg.rtd", ,"ContractData",C116, "High",, "T") -> 68.61 | G116: =RTD("cqg.rtd", ,"ContractData",C116, "Low",, "T") -> 68.01 | H116: =RTD("cqg.rtd", ,"ContractData",C116, "LastTradeToday",, "T") -> 68.17 | I116: =RTD("cqg.rtd", ,"ContractData",C116, "NetLastTradeToday",, "T") -> -0.17 | J116: =IFERROR(RTD("cqg.rtd", ,"ContractData",C116, "PerCentNetLastTrade",, "T")/100,"") -> -0.002487562189 | K116: =RTD("cqg.rtd", ,"ContractData", C116, "T_CVol",, "T") -> 515358 | L116: 116 | M116: =IFERROR(RANK($J116,$J$1:J$607)+COUNTIF($J$1:J116,J116)-1,"") -> 441 | N116: S.US.CHRW | O116: S.US.BERY | P116: =RTD("cqg.rtd", ,"ContractData",O116, "PerCentNetLastTrade",, "T")/100 -> 0.00939882958 | Q116: https://finance.yahoo.com/quote/BERY | S116: 0.00939882958 | V116: =RTD("cqg.rtd", ,"ContractData",O116, "LongDescription",, "T") -> Berry Plastics Group, Inc. | Y116: 0.00939882958 | AA116: 1 | AB116: 1 | AD116: 0.00939882958
C117: S.US.CHTR | D117: =RTD("cqg.rtd", ,"ContractData",C117, "LongDescription",, "T") -> Charter Communications, Inc. Class A | E117: =RTD("cqg.rtd", ,"ContractData",C117, "Open",, "T") -> 320.2 | F117: =RTD("cqg.rtd", ,"ContractData",C117, "High",, "T") -> 332.28 | G117: =RTD("cqg.rtd", ,"ContractData",C117, "Low",, "T") -> 318.3 | H117: =RTD("cqg.rtd", ,"ContractData",C117, "LastTradeToday",, "T") -> 329.49 | I117: =RTD("cqg.rtd", ,"ContractData",C117, "NetLastTradeToday",, "T") -> 10.7 | J117: =IFERROR(RTD("cqg.rtd", ,"ContractData",C117, "PerCentNetLastTrade",, "T")/100,"") -> 0.03356441545 | K117: =RTD("cqg.rtd", ,"ContractData", C117, "T_CVol",, "T") -> 1223021 | L117: 117 | M117: =IFERROR(RANK($J117,$J$1:J$607)+COUNTIF($J$1:J117,J117)-1,"") -> 9 | N117: S.US.CHTR | O117: S.US.KMB | P117: =RTD("cqg.rtd", ,"ContractData",O117, "PerCentNetLastTrade",, "T")/100 -> 0.009305993691 | Q117: https://finance.yahoo.com/quote/KMB | S117: 0.009305993691 | V117: =RTD("cqg.rtd", ,"ContractData",O117, "LongDescription",, "T") -> Kimberly-Clark Corp | Y117: 0.009305993691 | AA117: 1 | AB117: 1 | AD117: 0.009305993691
C118: S.US.CHUBA | D118: =RTD("cqg.rtd", ,"ContractData",C118, "LongDescription",, "T") -> CommerceHub, Inc. Series A | E118: =RTD("cqg.rtd", ,"ContractData",C118, "Open",, "T") -> 17.18 | F118: =RTD("cqg.rtd", ,"ContractData",C118, "High",, "T") -> 17.18 | G118: =RTD("cqg.rtd", ,"ContractData",C118, "Low",, "T") -> 16.94 | H118: =RTD("cqg.rtd", ,"ContractData",C118, "LastTradeToday",, "T") -> 17 | I118: =RTD("cqg.rtd", ,"ContractData",C118, "NetLastTradeToday",, "T") -> -0.14 | J118: =IFERROR(RTD("cqg.rtd", ,"ContractData",C118, "PerCentNetLastTrade",, "T")/100,"") -> -0.008168028005 | K118: =RTD("cqg.rtd", ,"ContractData", C118, "T_CVol",, "T") -> 29766 | L118: 118 | M118: =IFERROR(RANK($J118,$J$1:J$607)+COUNTIF($J$1:J118,J118)-1,"") -> 525 | N118: S.US.CHUBA | O118: S.US.SKX | P118: =RTD("cqg.rtd", ,"ContractData",O118, "PerCentNetLastTrade",, "T")/100 -> 0.009302325581 | Q118: https://finance.yahoo.com/quote/SKX | S118: 0.009302325581 | V118: =RTD("cqg.rtd", ,"ContractData",O118, "LongDescription",, "T") -> Skechers USA Inc | Y118: 0.009302325581 | AA118: 1 | AB118: 1 | AD118: 0.009302325581
C119: S.US.CHUBK | D119: =RTD("cqg.rtd", ,"ContractData",C119, "LongDescription",, "T") -> CommerceHub, Inc. Series C | E119: =RTD("cqg.rtd", ,"ContractData",C119, "Open",, "T") -> 17.43 | F119: =RTD("cqg.rtd", ,"ContractData",C119, "High",, "T") -> 17.43 | G119: =RTD("cqg.rtd", ,"ContractData",C119, "Low",, "T") -> 17.05 | H119: =RTD("cqg.rtd", ,"ContractData",C119, "LastTradeToday",, "T") -> 17.11 | I119: =RTD("cqg.rtd", ,"ContractData",C119, "NetLastTradeToday",, "T") -> -0.21 | J119: =IFERROR(RTD("cqg.rtd", ,"ContractData",C119, "PerCentNetLastTrade",, "T")/100,"") -> -0.01212471132 | K119: =RTD("cqg.rtd", ,"ContractData", C119, "T_CVol",, "T") -> 36153 | L119: 119 | M119: =IFERROR(RANK($J119,$J$1:J$607)+COUNTIF($J$1:J119,J119)-1,"") -> 560 | N119: S.US.CHUBK | O119: S.US.CSL | P119: =RTD("cqg.rtd", ,"ContractData",O119, "PerCentNetLastTrade",, "T")/100 -> 0.009095452274 | Q119: https://finance.yahoo.com/quote/CSL | S119: 0.009095452274 | V119: =RTD("cqg.rtd", ,"ContractData",O119, "LongDescription",, "T") -> Carlisle Cos Inc | Y119: 0.009095452274 | AA119: 1 | AB119: 1 | AD119: 0.009095452274
C120: S.US.CI | D120: =RTD("cqg.rtd", ,"ContractData",C120, "LongDescription",, "T") -> CIGNA Corporation | E120: =RTD("cqg.rtd", ,"ContractData",C120, "Open",, "T") -> 160.58 | F120: =RTD("cqg.rtd", ,"ContractData",C120, "High",, "T") -> 162.09 | G120: =RTD("cqg.rtd", ,"ContractData",C120, "Low",, "T") -> 160.09 | H120: =RTD("cqg.rtd", ,"ContractData",C120, "LastTradeToday",, "T") -> 161.97 | I120: =RTD("cqg.rtd", ,"ContractData",C120, "NetLastTradeToday",, "T") -> 1.45 | J120: =IFERROR(RTD("cqg.rtd", ,"ContractData",C120, "PerCentNetLastTrade",, "T")/100,"") -> 0.009033142288 | K120: =RTD("cqg.rtd", ,"ContractData", C120, "T_CVol",, "T") -> 403271 | L120: 120 | M120: =IFERROR(RANK($J120,$J$1:J$607)+COUNTIF($J$1:J120,J120)-1,"") -> 120 | N120: S.US.CI | O120: S.US.CI | P120: =RTD("cqg.rtd", ,"ContractData",O120, "PerCentNetLastTrade",, "T")/100 -> 0.009033142288 | Q120: https://finance.yahoo.com/quote/CI | S120: 0.009033142288 | V120: =RTD("cqg.rtd", ,"ContractData",O120, "LongDescription",, "T") -> CIGNA Corporation | Y120: 0.009033142288 | AA120: 1 | AB120: 1 | AD120: 0.009033142288
C121: S.US.CL | D121: =RTD("cqg.rtd", ,"ContractData",C121, "LongDescription",, "T") -> Colgate-Palmolive Co | E121: =RTD("cqg.rtd", ,"ContractData",C121, "Open",, "T") -> 74.05 | F121: =RTD("cqg.rtd", ,"ContractData",C121, "High",, "T") -> 74.43 | G121: =RTD("cqg.rtd", ,"ContractData",C121, "Low",, "T") -> 73.93 | H121: =RTD("cqg.rtd", ,"ContractData",C121, "LastTradeToday",, "T") -> 74.42 | I121: =RTD("cqg.rtd", ,"ContractData",C121, "NetLastTradeToday",, "T") -> 0.58 | J121: =IFERROR(RTD("cqg.rtd", ,"ContractData",C121, "PerCentNetLastTrade",, "T")/100,"") -> 0.007854821235 | K121: =RTD("cqg.rtd", ,"ContractData", C121, "T_CVol",, "T") -> 1211915 | L121: 121 | M121: =IFERROR(RANK($J121,$J$1:J$607)+COUNTIF($J$1:J121,J121)-1,"") -> 146 | N121: S.US.CL | O121: S.US.OKE | P121: =RTD("cqg.rtd", ,"ContractData",O121, "PerCentNetLastTrade",, "T")/100 -> 0.008998659774 | Q121: https://finance.yahoo.com/quote/OKE | S121: 0.008998659774 | V121: =RTD("cqg.rtd", ,"ContractData",O121, "LongDescription",, "T") -> ONEOK Inc New | Y121: 0.008998659774 | AA121: 1 | AB121: 1 | AD121: 0.008998659774
C122: S.US.CLGX | D122: =RTD("cqg.rtd", ,"ContractData",C122, "LongDescription",, "T") -> Corelogic, Inc. | E122: =RTD("cqg.rtd", ,"ContractData",C122, "Open",, "T") -> 42.47 | F122: =RTD("cqg.rtd", ,"ContractData",C122, "High",, "T") -> 42.83 | G122: =RTD("cqg.rtd", ,"ContractData",C122, "Low",, "T") -> 42.19 | H122: =RTD("cqg.rtd", ,"ContractData",C122, "LastTradeToday",, "T") -> 42.81 | I122: =RTD("cqg.rtd", ,"ContractData",C122, "NetLastTradeToday",, "T") -> 0.34 | J122: =IFERROR(RTD("cqg.rtd", ,"ContractData",C122, "PerCentNetLastTrade",, "T")/100,"") -> 0.008005651048 | K122: =RTD("cqg.rtd", ,"ContractData", C122, "T_CVol",, "T") -> 197930 | L122: 122 | M122: =IFERROR(RANK($J122,$J$1:J$607)+COUNTIF($J$1:J122,J122)-1,"") -> 142 | N122: S.US.CLGX | O122: S.US.LH | P122: =RTD("cqg.rtd", ,"ContractData",O122, "PerCentNetLastTrade",, "T")/100 -> 0.008947745168 | Q122: https://finance.yahoo.com/quote/LH | S122: 0.008947745168 | V122: =RTD("cqg.rtd", ,"ContractData",O122, "LongDescription",, "T") -> Laboratory Corp of Amer | Y122: 0.008947745168 | AA122: 1 | AB122: 1 | AD122: 0.008947745168
C123: S.US.CLH | D123: =RTD("cqg.rtd", ,"ContractData",C123, "LongDescription",, "T") -> Clean Harbors, Inc. | E123: =RTD("cqg.rtd", ,"ContractData",C123, "Open",, "T") -> 58.28 | F123: =RTD("cqg.rtd", ,"ContractData",C123, "High",, "T") -> 58.67 | G123: =RTD("cqg.rtd", ,"ContractData",C123, "Low",, "T") -> 58.08 | H123: =RTD("cqg.rtd", ,"ContractData",C123, "LastTradeToday",, "T") -> 58.2 | I123: =RTD("cqg.rtd", ,"ContractData",C123, "NetLastTradeToday",, "T") -> 0.04 | J123: =IFERROR(RTD("cqg.rtd", ,"ContractData",C123, "PerCentNetLastTrade",, "T")/100,"") -> 0.0006877579092 | K123: =RTD("cqg.rtd", ,"ContractData", C123, "T_CVol",, "T") -> 58450 | L123: 123 | M123: =IFERROR(RANK($J123,$J$1:J$607)+COUNTIF($J$1:J123,J123)-1,"") -> 364 | N123: S.US.CLH | O123: S.US.VRSK | P123: =RTD("cqg.rtd", ,"ContractData",O123, "PerCentNetLastTrade",, "T")/100 -> 0.008928571429 | Q123: https://finance.yahoo.com/quote/VRSK | S123: 0.008928571429 | V123: =RTD("cqg.rtd", ,"ContractData",O123, "LongDescription",, "T") -> Verisk Analytics, Inc. | Y123: 0.008928571429 | AA123: 1 | AB123: 1 | AD123: 0.008928571429
C124: S.US.CLNS | D124: =RTD("cqg.rtd", ,"ContractData",C124, "LongDescription",, "T") -> Colony NorthStar, Inc. | E124: =RTD("cqg.rtd", ,"ContractData",C124, "Open",, "T") -> 13.88 | F124: =RTD("cqg.rtd", ,"ContractData",C124, "High",, "T") -> 14.09 | G124: =RTD("cqg.rtd", ,"ContractData",C124, "Low",, "T") -> 13.82 | H124: =RTD("cqg.rtd", ,"ContractData",C124, "LastTradeToday",, "T") -> 14.07 | I124: =RTD("cqg.rtd", ,"ContractData",C124, "NetLastTradeToday",, "T") -> 0.21 | J124: =IFERROR(RTD("cqg.rtd", ,"ContractData",C124, "PerCentNetLastTrade",, "T")/100,"") -> 0.01515151515 | K124: =RTD("cqg.rtd", ,"ContractData", C124, "T_CVol",, "T") -> 1978137 | L124: 124 | M124: =IFERROR(RANK($J124,$J$1:J$607)+COUNTIF($J$1:J124,J124)-1,"") -> 55 | N124: S.US.CLNS | O124: S.US.CMG | P124: =RTD("cqg.rtd", ,"ContractData",O124, "PerCentNetLastTrade",, "T")/100 -> 0.008884210526 | Q124: https://finance.yahoo.com/quote/CMG | S124: 0.008884210526 | V124: =RTD("cqg.rtd", ,"ContractData",O124, "LongDescription",, "T") -> Chipotle Mexican Grill | Y124: 0.008884210526 | AA124: 1 | AB124: 1 | AD124: 0.008884210526
C125: S.US.CLR | D125: =RTD("cqg.rtd", ,"ContractData",C125, "LongDescription",, "T") -> Continental Resources | E125: =RTD("cqg.rtd", ,"ContractData",C125, "Open",, "T") -> 41.77 | F125: =RTD("cqg.rtd", ,"ContractData",C125, "High",, "T") -> 42.61 | G125: =RTD("cqg.rtd", ,"ContractData",C125, "Low",, "T") -> 41.63 | H125: =RTD("cqg.rtd", ,"ContractData",C125, "LastTradeToday",, "T") -> 41.72 | I125: =RTD("cqg.rtd", ,"ContractData",C125, "NetLastTradeToday",, "T") -> -0.29 | J125: =IFERROR(RTD("cqg.rtd", ,"ContractData",C125, "PerCentNetLastTrade",, "T")/100,"") -> -0.006903118305 | K125: =RTD("cqg.rtd", ,"ContractData", C125, "T_CVol",, "T") -> 1636032 | L125: 125 | M125: =IFERROR(RANK($J125,$J$1:J$607)+COUNTIF($J$1:J125,J125)-1,"") -> 510 | N125: S.US.CLR | O125: S.US.TRU | P125: =RTD("cqg.rtd", ,"ContractData",O125, "PerCentNetLastTrade",, "T")/100 -> 0.008849557522 | Q125: https://finance.yahoo.com/quote/TRU | S125: 0.008849557522 | V125: =RTD("cqg.rtd", ,"ContractData",O125, "LongDescription",, "T") -> TransUnion | Y125: 0.008849557522 | AA125: 1 | AB125: 1 | AD125: 0.008849557522
C126: S.US.CLX | D126: =RTD("cqg.rtd", ,"ContractData",C126, "LongDescription",, "T") -> Clorox Company | E126: =RTD("cqg.rtd", ,"ContractData",C126, "Open",, "T") -> 132.4 | F126: =RTD("cqg.rtd", ,"ContractData",C126, "High",, "T") -> 132.72 | G126: =RTD("cqg.rtd", ,"ContractData",C126, "Low",, "T") -> 131.95 | H126: =RTD("cqg.rtd", ,"ContractData",C126, "LastTradeToday",, "T") -> 132.6 | I126: =RTD("cqg.rtd", ,"ContractData",C126, "NetLastTradeToday",, "T") -> 0.92 | J126: =IFERROR(RTD("cqg.rtd", ,"ContractData",C126, "PerCentNetLastTrade",, "T")/100,"") -> 0.006986634265 | K126: =RTD("cqg.rtd", ,"ContractData", C126, "T_CVol",, "T") -> 169231 | L126: 126 | M126: =IFERROR(RANK($J126,$J$1:J$607)+COUNTIF($J$1:J126,J126)-1,"") -> 167 | N126: S.US.CLX | O126: S.US.ELS | P126: =RTD("cqg.rtd", ,"ContractData",O126, "PerCentNetLastTrade",, "T")/100 -> 0.008809020437 | Q126: https://finance.yahoo.com/quote/ELS | S126: 0.008809020437 | V126: =RTD("cqg.rtd", ,"ContractData",O126, "LongDescription",, "T") -> Equity Lifestyle Property Inc | Y126: 0.008809020437 | AA126: 1 | AB126: 1 | AD126: 0.008809020437
C127: S.US.CMCSA | D127: =RTD("cqg.rtd", ,"ContractData",C127, "LongDescription",, "T") -> Comcast Corp ClsA | E127: =RTD("cqg.rtd", ,"ContractData",C127, "Open",, "T") -> 39.85 | F127: =RTD("cqg.rtd", ,"ContractData",C127, "High",, "T") -> 40.27 | G127: =RTD("cqg.rtd", ,"ContractData",C127, "Low",, "T") -> 39.68 | H127: =RTD("cqg.rtd", ,"ContractData",C127, "LastTradeToday",, "T") -> 40.21 | I127: =RTD("cqg.rtd", ,"ContractData",C127, "NetLastTradeToday",, "T") -> 0.43 | J127: =IFERROR(RTD("cqg.rtd", ,"ContractData",C127, "PerCentNetLastTrade",, "T")/100,"") -> 0.01080945199 | K127: =RTD("cqg.rtd", ,"ContractData", C127, "T_CVol",, "T") -> 9047142 | L127: 127 | M127: =IFERROR(RANK($J127,$J$1:J$607)+COUNTIF($J$1:J127,J127)-1,"") -> 93 | N127: S.US.CMCSA | O127: S.US.CASY | P127: =RTD("cqg.rtd", ,"ContractData",O127, "PerCentNetLastTrade",, "T")/100 -> 0.0087026019 | Q127: https://finance.yahoo.com/quote/CASY | S127: 0.0087026019 | V127: =RTD("cqg.rtd", ,"ContractData",O127, "LongDescription",, "T") -> Caseys General Stores Inc | Y127: 0.0087026019 | AA127: 1 | AB127: 1 | AD127: 0.0087026019
C128: S.US.CMG | D128: =RTD("cqg.rtd", ,"ContractData",C128, "LongDescription",, "T") -> Chipotle Mexican Grill | E128: =RTD("cqg.rtd", ,"ContractData",C128, "Open",, "T") -> 476.43 | F128: =RTD("cqg.rtd", ,"ContractData",C128, "High",, "T") -> 480 | G128: =RTD("cqg.rtd", ,"ContractData",C128, "Low",, "T") -> 474.29 | H128: =RTD("cqg.rtd", ,"ContractData",C128, "LastTradeToday",, "T") -> 479.22 | I128: =RTD("cqg.rtd", ,"ContractData",C128, "NetLastTradeToday",, "T") -> 4.22 | J128: =IFERROR(RTD("cqg.rtd", ,"ContractData",C128, "PerCentNetLastTrade",, "T")/100,"") -> 0.008884210526 | K128: =RTD("cqg.rtd", ,"ContractData", C128, "T_CVol",, "T") -> 228112 | L128: 128 | M128: =IFERROR(RANK($J128,$J$1:J$607)+COUNTIF($J$1:J128,J128)-1,"") -> 124 | N128: S.US.CMG | O128: S.US.ALKS | P128: =RTD("cqg.rtd", ,"ContractData",O128, "PerCentNetLastTrade",, "T")/100 -> 0.008664009704 | Q128: https://finance.yahoo.com/quote/ALKS | S128: 0.008664009704 | V128: =RTD("cqg.rtd", ,"ContractData",O128, "LongDescription",, "T") -> Alkermes plc | Y128: 0.008664009704 | AA128: 1 | AB128: 1 | AD128: 0.008664009704
C129: S.US.CNC | D129: =RTD("cqg.rtd", ,"ContractData",C129, "LongDescription",, "T") -> Cenetene Corporation | E129: =RTD("cqg.rtd", ,"ContractData",C129, "Open",, "T") -> 74.24 | F129: =RTD("cqg.rtd", ,"ContractData",C129, "High",, "T") -> 75.06 | G129: =RTD("cqg.rtd", ,"ContractData",C129, "Low",, "T") -> 73.89 | H129: =RTD("cqg.rtd", ,"ContractData",C129, "LastTradeToday",, "T") -> 74.94 | I129: =RTD("cqg.rtd", ,"ContractData",C129, "NetLastTradeToday",, "T") -> 0.95 | J129: =IFERROR(RTD("cqg.rtd", ,"ContractData",C129, "PerCentNetLastTrade",, "T")/100,"") -> 0.01283957292 | K129: =RTD("cqg.rtd", ,"ContractData", C129, "T_CVol",, "T") -> 757088 | L129: 129 | M129: =IFERROR(RANK($J129,$J$1:J$607)+COUNTIF($J$1:J129,J129)-1,"") -> 72 | N129: S.US.CNC | O129: S.US.MHK | P129: =RTD("cqg.rtd", ,"ContractData",O129, "PerCentNetLastTrade",, "T")/100 -> 0.008631425259 | Q129: https://finance.yahoo.com/quote/MHK | S129: 0.008631425259 | V129: =RTD("cqg.rtd", ,"ContractData",O129, "LongDescription",, "T") -> Mohawk Industries Inc | Y129: 0.008631425259 | AA129: 1 | AB129: 1 | AD129: 0.008631425259
C130: S.US.CNK | D130: =RTD("cqg.rtd", ,"ContractData",C130, "LongDescription",, "T") -> Cinemark Holdings, Inc | E130: =RTD("cqg.rtd", ,"ContractData",C130, "Open",, "T") -> 40.79 | F130: =RTD("cqg.rtd", ,"ContractData",C130, "High",, "T") -> 40.88 | G130: =RTD("cqg.rtd", ,"ContractData",C130, "Low",, "T") -> 39.78 | H130: =RTD("cqg.rtd", ,"ContractData",C130, "LastTradeToday",, "T") -> 39.79 | I130: =RTD("cqg.rtd", ,"ContractData",C130, "NetLastTradeToday",, "T") -> -0.98 | J130: =IFERROR(RTD("cqg.rtd", ,"ContractData",C130, "PerCentNetLastTrade",, "T")/100,"") -> -0.02403728232 | K130: =RTD("cqg.rtd", ,"ContractData", C130, "T_CVol",, "T") -> 381630 | L130: 130 | M130: =IFERROR(RANK($J130,$J$1:J$607)+COUNTIF($J$1:J130,J130)-1,"") -> 590 | N130: S.US.CNK | O130: =VLOOKUP($L130,$M$1:$N$607,2,FALSE) -> S.US.LEG | P130: =RTD("cqg.rtd", ,"ContractData",O130, "PerCentNetLastTrade",, "T")/100 -> 0.008595428795 | Q130: ="https://finance.yahoo.com/quote/"&RIGHT(O130,(LEN(O130)-5)) -> https://finance.yahoo.com/quote/LEG | S130: 0.008595428795 | V130: =RTD("cqg.rtd", ,"ContractData",O130, "LongDescription",, "T") -> Leggett & Platt Inc | Y130: 0.008595428795 | AA130: 1 | AB130: 1 | AD130: 0.008595428795
C131: S.US.COG | D131: =RTD("cqg.rtd", ,"ContractData",C131, "LongDescription",, "T") -> Cabot Oil/Gas Corp | E131: =RTD("cqg.rtd", ,"ContractData",C131, "Open",, "T") -> 23.5 | F131: =RTD("cqg.rtd", ,"ContractData",C131, "High",, "T") -> 23.56 | G131: =RTD("cqg.rtd", ,"ContractData",C131, "Low",, "T") -> 22.9 | H131: =RTD("cqg.rtd", ,"ContractData",C131, "LastTradeToday",, "T") -> 22.92 | I131: =RTD("cqg.rtd", ,"ContractData",C131, "NetLastTradeToday",, "T") -> -0.63 | J131: =IFERROR(RTD("cqg.rtd", ,"ContractData",C131, "PerCentNetLastTrade",, "T")/100,"") -> -0.02675159236 | K131: =RTD("cqg.rtd", ,"ContractData", C131, "T_CVol",, "T") -> 2496927 | L131: =L130+1 -> 131 | M131: =IFERROR(RANK($J131,$J$1:J$607)+COUNTIF($J$1:J131,J131)-1,"") -> 596 | N131: S.US.COG | O131: S.US.ECL | P131: =RTD("cqg.rtd", ,"ContractData",O131, "PerCentNetLastTrade",, "T")/100 -> 0.008356110894 | Q131: https://finance.yahoo.com/quote/ECL | S131: 0.008356110894 | V131: =RTD("cqg.rtd", ,"ContractData",O131, "LongDescription",, "T") -> Ecolab Inc | Y131: 0.008356110894 | AA131: 1 | AB131: 1 | AD131: 0.008356110894
C132: S.US.COH | D132: =RTD("cqg.rtd", ,"ContractData",C132, "LongDescription",, "T") -> COACH INC | E132: =RTD("cqg.rtd", ,"ContractData",C132, "Open",, "T") -> 45.77 | F132: =RTD("cqg.rtd", ,"ContractData",C132, "High",, "T") -> 46.24 | G132: =RTD("cqg.rtd", ,"ContractData",C132, "Low",, "T") -> 45.56 | H132: =RTD("cqg.rtd", ,"ContractData",C132, "LastTradeToday",, "T") -> 46.02 | I132: =RTD("cqg.rtd", ,"ContractData",C132, "NetLastTradeToday",, "T") -> 0.01 | J132: =IFERROR(RTD("cqg.rtd", ,"ContractData",C132, "PerCentNetLastTrade",, "T")/100,"") -> 0.0002173440556 | K132: =RTD("cqg.rtd", ,"ContractData", C132, "T_CVol",, "T") -> 1719983 | L132: 132 | M132: =IFERROR(RANK($J132,$J$1:J$607)+COUNTIF($J$1:J132,J132)-1,"") -> 378 | N132: S.US.COH | O132: S.US.SQ | P132: =RTD("cqg.rtd", ,"ContractData",O132, "PerCentNetLastTrade",, "T")/100 -> 0.00831792976 | Q132: https://finance.yahoo.com/quote/SQ | S132: 0.00831792976 | V132: =RTD("cqg.rtd", ,"ContractData",O132, "LongDescription",, "T") -> Square, Inc | Y132: 0.00831792976 | AA132: 1 | AB132: 1 | AD132: 0.00831792976
C133: S.US.COL | D133: =RTD("cqg.rtd", ,"ContractData",C133, "LongDescription",, "T") -> Rockwell Collins | E133: =RTD("cqg.rtd", ,"ContractData",C133, "Open",, "T") -> 104.13 | F133: =RTD("cqg.rtd", ,"ContractData",C133, "High",, "T") -> 104.39 | G133: =RTD("cqg.rtd", ,"ContractData",C133, "Low",, "T") -> 103.21 | H133: =RTD("cqg.rtd", ,"ContractData",C133, "LastTradeToday",, "T") -> 104.07 | I133: =RTD("cqg.rtd", ,"ContractData",C133, "NetLastTradeToday",, "T") -> 0.39 | J133: =IFERROR(RTD("cqg.rtd", ,"ContractData",C133, "PerCentNetLastTrade",, "T")/100,"") -> 0.003761574074 | K133: =RTD("cqg.rtd", ,"ContractData", C133, "T_CVol",, "T") -> 1261973 | L133: 133 | M133: =IFERROR(RANK($J133,$J$1:J$607)+COUNTIF($J$1:J133,J133)-1,"") -> 248 | N133: S.US.COL | O133: S.US.VSTO | P133: =RTD("cqg.rtd", ,"ContractData",O133, "PerCentNetLastTrade",, "T")/100 -> 0.008260670032 | Q133: https://finance.yahoo.com/quote/VSTO | S133: 0.008260670032 | V133: =RTD("cqg.rtd", ,"ContractData",O133, "LongDescription",, "T") -> Vista Outdoor Inc. | Y133: 0.008260670032 | AA133: 1 | AB133: 1 | AD133: 0.008260670032
C134: S.US.COMM | D134: =RTD("cqg.rtd", ,"ContractData",C134, "LongDescription",, "T") -> CommScope Holding Company, Inc. | E134: =RTD("cqg.rtd", ,"ContractData",C134, "Open",, "T") -> 37.15 | F134: =RTD("cqg.rtd", ,"ContractData",C134, "High",, "T") -> 37.15 | G134: =RTD("cqg.rtd", ,"ContractData",C134, "Low",, "T") -> 35.26 | H134: =RTD("cqg.rtd", ,"ContractData",C134, "LastTradeToday",, "T") -> 36.86 | I134: =RTD("cqg.rtd", ,"ContractData",C134, "NetLastTradeToday",, "T") -> -0.25 | J134: =IFERROR(RTD("cqg.rtd", ,"ContractData",C134, "PerCentNetLastTrade",, "T")/100,"") -> -0.006736728645 | K134: =RTD("cqg.rtd", ,"ContractData", C134, "T_CVol",, "T") -> 2086894 | L134: 134 | M134: =IFERROR(RANK($J134,$J$1:J$607)+COUNTIF($J$1:J134,J134)-1,"") -> 509 | N134: S.US.COMM | O134: S.US.LYB | P134: =RTD("cqg.rtd", ,"ContractData",O134, "PerCentNetLastTrade",, "T")/100 -> 0.008191634603 | Q134: https://finance.yahoo.com/quote/LYB | S134: 0.008191634603 | V134: =RTD("cqg.rtd", ,"ContractData",O134, "LongDescription",, "T") -> LyondellBasell Industries NV Class A | Y134: 0.008191634603 | AA134: 1 | AB134: 1 | AD134: 0.008191634603
C135: S.US.CONE | D135: =RTD("cqg.rtd", ,"ContractData",C135, "LongDescription",, "T") -> CyrusOne Inc | E135: =RTD("cqg.rtd", ,"ContractData",C135, "Open",, "T") -> 56.04 | F135: =RTD("cqg.rtd", ,"ContractData",C135, "High",, "T") -> 56.8 | G135: =RTD("cqg.rtd", ,"ContractData",C135, "Low",, "T") -> 56.04 | H135: =RTD("cqg.rtd", ,"ContractData",C135, "LastTradeToday",, "T") -> 56.5 | I135: =RTD("cqg.rtd", ,"ContractData",C135, "NetLastTradeToday",, "T") -> 0.69 | J135: =IFERROR(RTD("cqg.rtd", ,"ContractData",C135, "PerCentNetLastTrade",, "T")/100,"") -> 0.01236337574 | K135: =RTD("cqg.rtd", ,"ContractData", C135, "T_CVol",, "T") -> 593758 | L135: 135 | M135: =IFERROR(RANK($J135,$J$1:J$607)+COUNTIF($J$1:J135,J135)-1,"") -> 75 | N135: S.US.CONE | O135: S.US.VIAB | P135: =RTD("cqg.rtd", ,"ContractData",O135, "PerCentNetLastTrade",, "T")/100 -> 0.008158508159 | Q135: https://finance.yahoo.com/quote/VIAB | S135: 0.008158508159 | V135: =RTD("cqg.rtd", ,"ContractData",O135, "LongDescription",, "T") -> Viacom Inc ClsB | Y135: 0.008158508159 | AA135: 1 | AB135: 1 | AD135: 0.008158508159
C136: S.US.COO | D136: =RTD("cqg.rtd", ,"ContractData",C136, "LongDescription",, "T") -> Cooper Companies Inc (The) | E136: =RTD("cqg.rtd", ,"ContractData",C136, "Open",, "T") -> 217.79 | F136: =RTD("cqg.rtd", ,"ContractData",C136, "High",, "T") -> 218.13 | G136: =RTD("cqg.rtd", ,"ContractData",C136, "Low",, "T") -> 215.55 | H136: =RTD("cqg.rtd", ,"ContractData",C136, "LastTradeToday",, "T") -> 218.13 | I136: =RTD("cqg.rtd", ,"ContractData",C136, "NetLastTradeToday",, "T") -> 1.05 | J136: =IFERROR(RTD("cqg.rtd", ,"ContractData",C136, "PerCentNetLastTrade",, "T")/100,"") -> 0.004836926479 | K136: =RTD("cqg.rtd", ,"ContractData", C136, "T_CVol",, "T") -> 83023 | L136: 136 | M136: =IFERROR(RANK($J136,$J$1:J$607)+COUNTIF($J$1:J136,J136)-1,"") -> 220 | N136: S.US.COO | O136: S.US.EMR | P136: =RTD("cqg.rtd", ,"ContractData",O136, "PerCentNetLastTrade",, "T")/100 -> 0.008102633356 | Q136: https://finance.yahoo.com/quote/EMR | S136: 0.008102633356 | V136: =RTD("cqg.rtd", ,"ContractData",O136, "LongDescription",, "T") -> Emerson Electric Co | Y136: 0.008102633356 | AA136: 1 | AB136: 1 | AD136: 0.008102633356
C137: S.US.COST | D137: =RTD("cqg.rtd", ,"ContractData",C137, "LongDescription",, "T") -> Costco Wholesale Corp | E137: =RTD("cqg.rtd", ,"ContractData",C137, "Open",, "T") -> 172.95 | F137: =RTD("cqg.rtd", ,"ContractData",C137, "High",, "T") -> 172.95 | G137: =RTD("cqg.rtd", ,"ContractData",C137, "Low",, "T") -> 171.8 | H137: =RTD("cqg.rtd", ,"ContractData",C137, "LastTradeToday",, "T") -> 172.66 | I137: =RTD("cqg.rtd", ,"ContractData",C137, "NetLastTradeToday",, "T") -> 0.19 | J137: =IFERROR(RTD("cqg.rtd", ,"ContractData",C137, "PerCentNetLastTrade",, "T")/100,"") -> 0.001101640865 | K137: =RTD("cqg.rtd", ,"ContractData", C137, "T_CVol",, "T") -> 804994 | L137: 137 | M137: =IFERROR(RANK($J137,$J$1:J$607)+COUNTIF($J$1:J137,J137)-1,"") -> 349 | N137: S.US.COST | O137: S.US.CAG | P137: =RTD("cqg.rtd", ,"ContractData",O137, "PerCentNetLastTrade",, "T")/100 -> 0.008077123502 | Q137: https://finance.yahoo.com/quote/CAG | S137: 0.008077123502 | V137: =RTD("cqg.rtd", ,"ContractData",O137, "LongDescription",, "T") -> Conagra Brands, Inc. | Y137: 0.008077123502 | AA137: 1 | AB137: 1 | AD137: 0.008077123502
C138: S.US.COTY | D138: =RTD("cqg.rtd", ,"ContractData",C138, "LongDescription",, "T") -> COTY Inc | E138: =RTD("cqg.rtd", ,"ContractData",C138, "Open",, "T") -> 18.99 | F138: =RTD("cqg.rtd", ,"ContractData",C138, "High",, "T") -> 19 | G138: =RTD("cqg.rtd", ,"ContractData",C138, "Low",, "T") -> 18.76 | H138: =RTD("cqg.rtd", ,"ContractData",C138, "LastTradeToday",, "T") -> 18.93 | I138: =RTD("cqg.rtd", ,"ContractData",C138, "NetLastTradeToday",, "T") -> -0.05 | J138: =IFERROR(RTD("cqg.rtd", ,"ContractData",C138, "PerCentNetLastTrade",, "T")/100,"") -> -0.002634351949 | K138: =RTD("cqg.rtd", ,"ContractData", C138, "T_CVol",, "T") -> 1259003 | L138: 138 | M138: =IFERROR(RANK($J138,$J$1:J$607)+COUNTIF($J$1:J138,J138)-1,"") -> 445 | N138: S.US.COTY | O138: S.US.APH | P138: =RTD("cqg.rtd", ,"ContractData",O138, "PerCentNetLastTrade",, "T")/100 -> 0.008041433829 | Q138: https://finance.yahoo.com/quote/APH | S138: 0.008041433829 | V138: =RTD("cqg.rtd", ,"ContractData",O138, "LongDescription",, "T") -> Amphenol | Y138: 0.008041433829 | AA138: 1 | AB138: 1 | AD138: 0.008041433829
C139: S.US.CPB | D139: =RTD("cqg.rtd", ,"ContractData",C139, "LongDescription",, "T") -> Campbell Soup Company | E139: =RTD("cqg.rtd", ,"ContractData",C139, "Open",, "T") -> 58.16 | F139: =RTD("cqg.rtd", ,"ContractData",C139, "High",, "T") -> 58.43 | G139: =RTD("cqg.rtd", ,"ContractData",C139, "Low",, "T") -> 57.93 | H139: =RTD("cqg.rtd", ,"ContractData",C139, "LastTradeToday",, "T") -> 58.42 | I139: =RTD("cqg.rtd", ,"ContractData",C139, "NetLastTradeToday",, "T") -> 0.3 | J139: =IFERROR(RTD("cqg.rtd", ,"ContractData",C139, "PerCentNetLastTrade",, "T")/100,"") -> 0.005161734343 | K139: =RTD("cqg.rtd", ,"ContractData", C139, "T_CVol",, "T") -> 1119831 | L139: 139 | M139: =IFERROR(RANK($J139,$J$1:J$607)+COUNTIF($J$1:J139,J139)-1,"") -> 211 | N139: S.US.CPB | O139: S.US.CCI | P139: =RTD("cqg.rtd", ,"ContractData",O139, "PerCentNetLastTrade",, "T")/100 -> 0.00803730899 | Q139: https://finance.yahoo.com/quote/CCI | S139: 0.00803730899 | V139: =RTD("cqg.rtd", ,"ContractData",O139, "LongDescription",, "T") -> Crown Castle Intl | Y139: 0.00803730899 | AA139: 1 | AB139: 1 | AD139: 0.00803730899
C140: S.US.CPRT | D140: =RTD("cqg.rtd", ,"ContractData",C140, "LongDescription",, "T") -> Copart Inc | E140: =RTD("cqg.rtd", ,"ContractData",C140, "Open",, "T") -> 29.98 | F140: =RTD("cqg.rtd", ,"ContractData",C140, "High",, "T") -> 30.08 | G140: =RTD("cqg.rtd", ,"ContractData",C140, "Low",, "T") -> 29.81 | H140: =RTD("cqg.rtd", ,"ContractData",C140, "LastTradeToday",, "T") -> 30.02 | I140: =RTD("cqg.rtd", ,"ContractData",C140, "NetLastTradeToday",, "T") -> 0 | J140: =IFERROR(RTD("cqg.rtd", ,"ContractData",C140, "PerCentNetLastTrade",, "T")/100,"") -> 0 | K140: =RTD("cqg.rtd", ,"ContractData", C140, "T_CVol",, "T") -> 542830 | L140: 140 | M140: =IFERROR(RANK($J140,$J$1:J$607)+COUNTIF($J$1:J140,J140)-1,"") -> 382 | N140: S.US.CPRT | O140: S.US.MA | P140: =RTD("cqg.rtd", ,"ContractData",O140, "PerCentNetLastTrade",, "T")/100 -> 0.008026755853 | Q140: https://finance.yahoo.com/quote/MA | S140: 0.008026755853 | V140: =RTD("cqg.rtd", ,"ContractData",O140, "LongDescription",, "T") -> Mastercard Inc. | Y140: 0.008026755853 | AA140: 1 | AB140: 1 | AD140: 0.008026755853
C141: S.US.CREE | D141: =RTD("cqg.rtd", ,"ContractData",C141, "LongDescription",, "T") -> Cree Inc | E141: =RTD("cqg.rtd", ,"ContractData",C141, "Open",, "T") -> 23.99 | F141: =RTD("cqg.rtd", ,"ContractData",C141, "High",, "T") -> 24.32 | G141: =RTD("cqg.rtd", ,"ContractData",C141, "Low",, "T") -> 23.87 | H141: =RTD("cqg.rtd", ,"ContractData",C141, "LastTradeToday",, "T") -> 24.23 | I141: =RTD("cqg.rtd", ,"ContractData",C141, "NetLastTradeToday",, "T") -> 0 | J141: =IFERROR(RTD("cqg.rtd", ,"ContractData",C141, "PerCentNetLastTrade",, "T")/100,"") -> 0 | K141: =RTD("cqg.rtd", ,"ContractData", C141, "T_CVol",, "T") -> 541131 | L141: 141 | M141: =IFERROR(RANK($J141,$J$1:J$607)+COUNTIF($J$1:J141,J141)-1,"") -> 383 | N141: S.US.CREE | O141: S.US.VIA | P141: =RTD("cqg.rtd", ,"ContractData",O141, "PerCentNetLastTrade",, "T")/100 -> 0.008010680908 | Q141: https://finance.yahoo.com/quote/VIA | S141: 0.008010680908 | V141: =RTD("cqg.rtd", ,"ContractData",O141, "LongDescription",, "T") -> Viacom Inc ClsA | Y141: 0.008010680908 | AA141: 1 | AB141: 1 | AD141: 0.008010680908
C142: S.US.CRI | D142: =RTD("cqg.rtd", ,"ContractData",C142, "LongDescription",, "T") -> Carters Inc | E142: =RTD("cqg.rtd", ,"ContractData",C142, "Open",, "T") -> 80.23 | F142: =RTD("cqg.rtd", ,"ContractData",C142, "High",, "T") -> 80.61 | G142: =RTD("cqg.rtd", ,"ContractData",C142, "Low",, "T") -> 79.76 | H142: =RTD("cqg.rtd", ,"ContractData",C142, "LastTradeToday",, "T") -> 80.41 | I142: =RTD("cqg.rtd", ,"ContractData",C142, "NetLastTradeToday",, "T") -> 0.06 | J142: =IFERROR(RTD("cqg.rtd", ,"ContractData",C142, "PerCentNetLastTrade",, "T")/100,"") -> 0.0007467330429 | K142: =RTD("cqg.rtd", ,"ContractData", C142, "T_CVol",, "T") -> 398330 | L142: 142 | M142: =IFERROR(RANK($J142,$J$1:J$607)+COUNTIF($J$1:J142,J142)-1,"") -> 360 | N142: S.US.CRI | O142: S.US.CLGX | P142: =RTD("cqg.rtd", ,"ContractData",O142, "PerCentNetLastTrade",, "T")/100 -> 0.008005651048 | Q142: https://finance.yahoo.com/quote/CLGX | S142: 0.008005651048 | V142: =RTD("cqg.rtd", ,"ContractData",O142, "LongDescription",, "T") -> Corelogic, Inc. | Y142: 0.008005651048 | AA142: 1 | AB142: 1 | AD142: 0.008005651048
C143: S.US.CRL | D143: =RTD("cqg.rtd", ,"ContractData",C143, "LongDescription",, "T") -> Charles River Labs Hldgs Inc | E143: =RTD("cqg.rtd", ,"ContractData",C143, "Open",, "T") -> 90.6 | F143: =RTD("cqg.rtd", ,"ContractData",C143, "High",, "T") -> 91.77 | G143: =RTD("cqg.rtd", ,"ContractData",C143, "Low",, "T") -> 90.29 | H143: =RTD("cqg.rtd", ,"ContractData",C143, "LastTradeToday",, "T") -> 91.72 | I143: =RTD("cqg.rtd", ,"ContractData",C143, "NetLastTradeToday",, "T") -> 1.1 | J143: =IFERROR(RTD("cqg.rtd", ,"ContractData",C143, "PerCentNetLastTrade",, "T")/100,"") -> 0.01213860075 | K143: =RTD("cqg.rtd", ,"ContractData", C143, "T_CVol",, "T") -> 83974 | L143: 143 | M143: =IFERROR(RANK($J143,$J$1:J$607)+COUNTIF($J$1:J143,J143)-1,"") -> 77 | N143: S.US.CRL | O143: S.US.ROL | P143: =RTD("cqg.rtd", ,"ContractData",O143, "PerCentNetLastTrade",, "T")/100 -> 0.00799811809 | Q143: https://finance.yahoo.com/quote/ROL | S143: 0.00799811809 | V143: =RTD("cqg.rtd", ,"ContractData",O143, "LongDescription",, "T") -> Rollins Inc | Y143: 0.00799811809 | AA143: 1 | AB143: 1 | AD143: 0.00799811809
C144: S.US.CRM | D144: =RTD("cqg.rtd", ,"ContractData",C144, "LongDescription",, "T") -> Salesforce.com Inc | E144: =RTD("cqg.rtd", ,"ContractData",C144, "Open",, "T") -> 88.43 | F144: =RTD("cqg.rtd", ,"ContractData",C144, "High",, "T") -> 89.6 | G144: =RTD("cqg.rtd", ,"ContractData",C144, "Low",, "T") -> 88.33 | H144: =RTD("cqg.rtd", ,"ContractData",C144, "LastTradeToday",, "T") -> 89.37 | I144: =RTD("cqg.rtd", ,"ContractData",C144, "NetLastTradeToday",, "T") -> 0.88 | J144: =IFERROR(RTD("cqg.rtd", ,"ContractData",C144, "PerCentNetLastTrade",, "T")/100,"") -> 0.009944626511 | K144: =RTD("cqg.rtd", ,"ContractData", C144, "T_CVol",, "T") -> 2519836 | L144: 144 | M144: =IFERROR(RANK($J144,$J$1:J$607)+COUNTIF($J$1:J144,J144)-1,"") -> 104 | N144: S.US.CRM | O144: S.US.LAMR | P144: =RTD("cqg.rtd", ,"ContractData",O144, "PerCentNetLastTrade",, "T")/100 -> 0.007972665148 | Q144: https://finance.yahoo.com/quote/LAMR | S144: 0.007972665148 | V144: =RTD("cqg.rtd", ,"ContractData",O144, "LongDescription",, "T") -> Lamar Advertising Co | Y144: 0.007972665148 | AA144: 1 | AB144: 1 | AD144: 0.007972665148
C145: S.US.CSGP | D145: =RTD("cqg.rtd", ,"ContractData",C145, "LongDescription",, "T") -> CoStar Group | E145: =RTD("cqg.rtd", ,"ContractData",C145, "Open",, "T") -> 256.83 | F145: =RTD("cqg.rtd", ,"ContractData",C145, "High",, "T") -> 257.88 | G145: =RTD("cqg.rtd", ,"ContractData",C145, "Low",, "T") -> 254.43 | H145: =RTD("cqg.rtd", ,"ContractData",C145, "LastTradeToday",, "T") -> 257.87 | I145: =RTD("cqg.rtd", ,"ContractData",C145, "NetLastTradeToday",, "T") -> 1.87 | J145: =IFERROR(RTD("cqg.rtd", ,"ContractData",C145, "PerCentNetLastTrade",, "T")/100,"") -> 0.0073046875 | K145: =RTD("cqg.rtd", ,"ContractData", C145, "T_CVol",, "T") -> 90293 | L145: 145 | M145: =IFERROR(RANK($J145,$J$1:J$607)+COUNTIF($J$1:J145,J145)-1,"") -> 157 | N145: S.US.CSGP | O145: S.US.MNST | P145: =RTD("cqg.rtd", ,"ContractData",O145, "PerCentNetLastTrade",, "T")/100 -> 0.007889945377 | Q145: https://finance.yahoo.com/quote/MNST | S145: 0.007889945377 | V145: =RTD("cqg.rtd", ,"ContractData",O145, "LongDescription",, "T") -> Monster Beverage Corporation | Y145: 0.007889945377 | AA145: 1 | AB145: 1 | AD145: 0.007889945377
C146: S.US.CSL | D146: =RTD("cqg.rtd", ,"ContractData",C146, "LongDescription",, "T") -> Carlisle Cos Inc | E146: =RTD("cqg.rtd", ,"ContractData",C146, "Open",, "T") -> 100.28 | F146: =RTD("cqg.rtd", ,"ContractData",C146, "High",, "T") -> 101.13 | G146: =RTD("cqg.rtd", ,"ContractData",C146, "Low",, "T") -> 100.09 | H146: =RTD("cqg.rtd", ,"ContractData",C146, "LastTradeToday",, "T") -> 100.96 | I146: =RTD("cqg.rtd", ,"ContractData",C146, "NetLastTradeToday",, "T") -> 0.91 | J146: =IFERROR(RTD("cqg.rtd", ,"ContractData",C146, "PerCentNetLastTrade",, "T")/100,"") -> 0.009095452274 | K146: =RTD("cqg.rtd", ,"ContractData", C146, "T_CVol",, "T") -> 307741 | L146: 146 | M146: =IFERROR(RANK($J146,$J$1:J$607)+COUNTIF($J$1:J146,J146)-1,"") -> 119 | N146: S.US.CSL | O146: S.US.CL | P146: =RTD("cqg.rtd", ,"ContractData",O146, "PerCentNetLastTrade",, "T")/100 -> 0.007854821235 | Q146: https://finance.yahoo.com/quote/CL | S146: 0.007854821235 | V146: =RTD("cqg.rtd", ,"ContractData",O146, "LongDescription",, "T") -> Colgate-Palmolive Co | Y146: 0.007854821235 | AA146: 1 | AB146: 1 | AD146: 0.007854821235
C147: S.US.CSRA | D147: =RTD("cqg.rtd", ,"ContractData",C147, "LongDescription",, "T") -> CSRA Inc. | E147: =RTD("cqg.rtd", ,"ContractData",C147, "Open",, "T") -> 29.36 | F147: =RTD("cqg.rtd", ,"ContractData",C147, "High",, "T") -> 29.68 | G147: =RTD("cqg.rtd", ,"ContractData",C147, "Low",, "T") -> 29.2 | H147: =RTD("cqg.rtd", ,"ContractData",C147, "LastTradeToday",, "T") -> 29.64 | I147: =RTD("cqg.rtd", ,"ContractData",C147, "NetLastTradeToday",, "T") -> 0.38 | J147: =IFERROR(RTD("cqg.rtd", ,"ContractData",C147, "PerCentNetLastTrade",, "T")/100,"") -> 0.01298701299 | K147: =RTD("cqg.rtd", ,"ContractData", C147, "T_CVol",, "T") -> 978894 | L147: 147 | M147: =IFERROR(RANK($J147,$J$1:J$607)+COUNTIF($J$1:J147,J147)-1,"") -> 69 | N147: S.US.CSRA | O147: S.US.EXR | P147: =RTD("cqg.rtd", ,"ContractData",O147, "PerCentNetLastTrade",, "T")/100 -> 0.007832562917 | Q147: https://finance.yahoo.com/quote/EXR | S147: 0.007832562917 | V147: =RTD("cqg.rtd", ,"ContractData",O147, "LongDescription",, "T") -> Extra Space Storage Inc | Y147: 0.007832562917 | AA147: 1 | AB147: 1 | AD147: 0.007832562917
C148: S.US.CTAS | D148: =RTD("cqg.rtd", ,"ContractData",C148, "LongDescription",, "T") -> Cintas Corp | E148: =RTD("cqg.rtd", ,"ContractData",C148, "Open",, "T") -> 122.75 | F148: =RTD("cqg.rtd", ,"ContractData",C148, "High",, "T") -> 124.53 | G148: =RTD("cqg.rtd", ,"ContractData",C148, "Low",, "T") -> 122.4 | H148: =RTD("cqg.rtd", ,"ContractData",C148, "LastTradeToday",, "T") -> 124.48 | I148: =RTD("cqg.rtd", ,"ContractData",C148, "NetLastTradeToday",, "T") -> 2.09 | J148: =IFERROR(RTD("cqg.rtd", ,"ContractData",C148, "PerCentNetLastTrade",, "T")/100,"") -> 0.01707655854 | K148: =RTD("cqg.rtd", ,"ContractData", C148, "T_CVol",, "T") -> 252717 | L148: 148 | M148: =IFERROR(RANK($J148,$J$1:J$607)+COUNTIF($J$1:J148,J148)-1,"") -> 40 | N148: S.US.CTAS | O148: S.US.MD | P148: =RTD("cqg.rtd", ,"ContractData",O148, "PerCentNetLastTrade",, "T")/100 -> 0.007710666422 | Q148: https://finance.yahoo.com/quote/MD | S148: 0.007710666422 | V148: =RTD("cqg.rtd", ,"ContractData",O148, "LongDescription",, "T") -> Mednax Inc | Y148: 0.007710666422 | AA148: 1 | AB148: 1 | AD148: 0.007710666422
C149: S.US.CTSH | D149: =RTD("cqg.rtd", ,"ContractData",C149, "LongDescription",, "T") -> Cognizant Tech Solutions Corp | E149: =RTD("cqg.rtd", ,"ContractData",C149, "Open",, "T") -> 66.17 | F149: =RTD("cqg.rtd", ,"ContractData",C149, "High",, "T") -> 66.53 | G149: =RTD("cqg.rtd", ,"ContractData",C149, "Low",, "T") -> 65.85 | H149: =RTD("cqg.rtd", ,"ContractData",C149, "LastTradeToday",, "T") -> 66.45 | I149: =RTD("cqg.rtd", ,"ContractData",C149, "NetLastTradeToday",, "T") -> 0.44 | J149: =IFERROR(RTD("cqg.rtd", ,"ContractData",C149, "PerCentNetLastTrade",, "T")/100,"") -> 0.006665656719 | K149: =RTD("cqg.rtd", ,"ContractData", C149, "T_CVol",, "T") -> 1585621 | L149: 149 | M149: =IFERROR(RANK($J149,$J$1:J$607)+COUNTIF($J$1:J149,J149)-1,"") -> 177 | N149: S.US.CTSH | O149: S.US.TUP | P149: =RTD("cqg.rtd", ,"ContractData",O149, "PerCentNetLastTrade",, "T")/100 -> 0.007602926409 | Q149: https://finance.yahoo.com/quote/TUP | S149: 0.007602926409 | V149: =RTD("cqg.rtd", ,"ContractData",O149, "LongDescription",, "T") -> Tupperware Brands Corp | Y149: 0.007602926409 | AA149: 1 | AB149: 1 | AD149: 0.007602926409
C150: S.US.CTXS | D150: =RTD("cqg.rtd", ,"ContractData",C150, "LongDescription",, "T") -> Citrix Systems Inc | E150: =RTD("cqg.rtd", ,"ContractData",C150, "Open",, "T") -> 82.44 | F150: =RTD("cqg.rtd", ,"ContractData",C150, "High",, "T") -> 82.44 | G150: =RTD("cqg.rtd", ,"ContractData",C150, "Low",, "T") -> 81.55 | H150: =RTD("cqg.rtd", ,"ContractData",C150, "LastTradeToday",, "T") -> 82.3 | I150: =RTD("cqg.rtd", ,"ContractData",C150, "NetLastTradeToday",, "T") -> 0.24 | J150: =IFERROR(RTD("cqg.rtd", ,"ContractData",C150, "PerCentNetLastTrade",, "T")/100,"") -> 0.002924689252 | K150: =RTD("cqg.rtd", ,"ContractData", C150, "T_CVol",, "T") -> 473827 | L150: 150 | M150: =IFERROR(RANK($J150,$J$1:J$607)+COUNTIF($J$1:J150,J150)-1,"") -> 284 | N150: S.US.CTXS | O150: S.US.AKAM | P150: =RTD("cqg.rtd", ,"ContractData",O150, "PerCentNetLastTrade",, "T")/100 -> 0.00759333474 | Q150: https://finance.yahoo.com/quote/AKAM | S150: 0.00759333474 | V150: =RTD("cqg.rtd", ,"ContractData",O150, "LongDescription",, "T") -> Akamai Tech Inc | Y150: 0.00759333474 | AA150: 1 | AB150: 1 | AD150: 0.00759333474
C151: S.US.CUBE | D151: =RTD("cqg.rtd", ,"ContractData",C151, "LongDescription",, "T") -> Cubesmart | E151: =RTD("cqg.rtd", ,"ContractData",C151, "Open",, "T") -> 25.29 | F151: =RTD("cqg.rtd", ,"ContractData",C151, "High",, "T") -> 25.38 | G151: =RTD("cqg.rtd", ,"ContractData",C151, "Low",, "T") -> 25.17 | H151: =RTD("cqg.rtd", ,"ContractData",C151, "LastTradeToday",, "T") -> 25.28 | I151: =RTD("cqg.rtd", ,"ContractData",C151, "NetLastTradeToday",, "T") -> 0.07 | J151: =IFERROR(RTD("cqg.rtd", ,"ContractData",C151, "PerCentNetLastTrade",, "T")/100,"") -> 0.002776675922 | K151: =RTD("cqg.rtd", ,"ContractData", C151, "T_CVol",, "T") -> 999338 | L151: 151 | M151: =IFERROR(RANK($J151,$J$1:J$607)+COUNTIF($J$1:J151,J151)-1,"") -> 291 | N151: S.US.CUBE | O151: S.US.SIX | P151: =RTD("cqg.rtd", ,"ContractData",O151, "PerCentNetLastTrade",, "T")/100 -> 0.007504078303 | Q151: https://finance.yahoo.com/quote/SIX | S151: 0.007504078303 | V151: =RTD("cqg.rtd", ,"ContractData",O151, "LongDescription",, "T") -> Six Flags Entertainment Corporation | Y151: 0.007504078303 | AA151: 1 | AB151: 1 | AD151: 0.007504078303
C152: S.US.CVA | D152: =RTD("cqg.rtd", ,"ContractData",C152, "LongDescription",, "T") -> Covanta Holding Corp | E152: =RTD("cqg.rtd", ,"ContractData",C152, "Open",, "T") -> 14.55 | F152: =RTD("cqg.rtd", ,"ContractData",C152, "High",, "T") -> 14.65 | G152: =RTD("cqg.rtd", ,"ContractData",C152, "Low",, "T") -> 14.37 | H152: =RTD("cqg.rtd", ,"ContractData",C152, "LastTradeToday",, "T") -> 14.5 | I152: =RTD("cqg.rtd", ,"ContractData",C152, "NetLastTradeToday",, "T") -> 0 | J152: =IFERROR(RTD("cqg.rtd", ,"ContractData",C152, "PerCentNetLastTrade",, "T")/100,"") -> 0 | K152: =RTD("cqg.rtd", ,"ContractData", C152, "T_CVol",, "T") -> 350235 | L152: 152 | M152: =IFERROR(RANK($J152,$J$1:J$607)+COUNTIF($J$1:J152,J152)-1,"") -> 384 | N152: S.US.CVA | O152: S.US.DKS | P152: =RTD("cqg.rtd", ,"ContractData",O152, "PerCentNetLastTrade",, "T")/100 -> 0.007482500603 | Q152: https://finance.yahoo.com/quote/DKS | S152: 0.007482500603 | V152: =RTD("cqg.rtd", ,"ContractData",O152, "LongDescription",, "T") -> Dicks Sporting Goods Inc. | Y152: 0.007482500603 | AA152: 1 | AB152: 1 | AD152: 0.007482500603
C153: S.US.CVS | D153: =RTD("cqg.rtd", ,"ContractData",C153, "LongDescription",, "T") -> CVS Health Corporation | E153: =RTD("cqg.rtd", ,"ContractData",C153, "Open",, "T") -> 77.31 | F153: =RTD("cqg.rtd", ,"ContractData",C153, "High",, "T") -> 77.54 | G153: =RTD("cqg.rtd", ,"ContractData",C153, "Low",, "T") -> 76.39 | H153: =RTD("cqg.rtd", ,"ContractData",C153, "LastTradeToday",, "T") -> 76.56 | I153: =RTD("cqg.rtd", ,"ContractData",C153, "NetLastTradeToday",, "T") -> -0.71 | J153: =IFERROR(RTD("cqg.rtd", ,"ContractData",C153, "PerCentNetLastTrade",, "T")/100,"") -> -0.009188559596 | K153: =RTD("cqg.rtd", ,"ContractData", C153, "T_CVol",, "T") -> 2551015 | L153: 153 | M153: =IFERROR(RANK($J153,$J$1:J$607)+COUNTIF($J$1:J153,J153)-1,"") -> 533 | N153: S.US.CVS | O153: S.US.PEP | P153: =RTD("cqg.rtd", ,"ContractData",O153, "PerCentNetLastTrade",, "T")/100 -> 0.007475010865 | Q153: https://finance.yahoo.com/quote/PEP | S153: 0.007475010865 | V153: =RTD("cqg.rtd", ,"ContractData",O153, "LongDescription",, "T") -> PepsiCo Inc | Y153: 0.007475010865 | AA153: 1 | AB153: 1 | AD153: 0.007475010865
C154: S.US.D | D154: =RTD("cqg.rtd", ,"ContractData",C154, "LongDescription",, "T") -> Dominion Energy, Inc. | E154: =RTD("cqg.rtd", ,"ContractData",C154, "Open",, "T") -> 79.82 | F154: =RTD("cqg.rtd", ,"ContractData",C154, "High",, "T") -> 80.28 | G154: =RTD("cqg.rtd", ,"ContractData",C154, "Low",, "T") -> 79.7 | H154: =RTD("cqg.rtd", ,"ContractData",C154, "LastTradeToday",, "T") -> 80.2 | I154: =RTD("cqg.rtd", ,"ContractData",C154, "NetLastTradeToday",, "T") -> 0.49 | J154: =IFERROR(RTD("cqg.rtd", ,"ContractData",C154, "PerCentNetLastTrade",, "T")/100,"") -> 0.006147283904 | K154: =RTD("cqg.rtd", ,"ContractData", C154, "T_CVol",, "T") -> 589267 | L154: 154 | M154: =IFERROR(RANK($J154,$J$1:J$607)+COUNTIF($J$1:J154,J154)-1,"") -> 189 | N154: S.US.D | O154: S.US.PM | P154: =RTD("cqg.rtd", ,"ContractData",O154, "PerCentNetLastTrade",, "T")/100 -> 0.007470376095 | Q154: https://finance.yahoo.com/quote/PM | S154: 0.007470376095 | V154: =RTD("cqg.rtd", ,"ContractData",O154, "LongDescription",, "T") -> Philip Morris International | Y154: 0.007470376095 | AA154: 1 | AB154: 1 | AD154: 0.007470376095
C155: S.US.DAL | D155: =RTD("cqg.rtd", ,"ContractData",C155, "LongDescription",, "T") -> Delta Airlines, Inc. | E155: =RTD("cqg.rtd", ,"ContractData",C155, "Open",, "T") -> 48.67 | F155: =RTD("cqg.rtd", ,"ContractData",C155, "High",, "T") -> 48.97 | G155: =RTD("cqg.rtd", ,"ContractData",C155, "Low",, "T") -> 48.48 | H155: =RTD("cqg.rtd", ,"ContractData",C155, "LastTradeToday",, "T") -> 48.75 | I155: =RTD("cqg.rtd", ,"ContractData",C155, "NetLastTradeToday",, "T") -> 0.16 | J155: =IFERROR(RTD("cqg.rtd", ,"ContractData",C155, "PerCentNetLastTrade",, "T")/100,"") -> 0.003292858613 | K155: =RTD("cqg.rtd", ,"ContractData", C155, "T_CVol",, "T") -> 2828019 | L155: 155 | M155: =IFERROR(RANK($J155,$J$1:J$607)+COUNTIF($J$1:J155,J155)-1,"") -> 264 | N155: S.US.DAL | O155: S.US.TXT | P155: =RTD("cqg.rtd", ,"ContractData",O155, "PerCentNetLastTrade",, "T")/100 -> 0.007427843803 | Q155: https://finance.yahoo.com/quote/TXT | S155: 0.007427843803 | V155: =RTD("cqg.rtd", ,"ContractData",O155, "LongDescription",, "T") -> Textron Inc | Y155: 0.007427843803 | AA155: 1 | AB155: 1 | AD155: 0.007427843803
C156: S.US.DATA | D156: =RTD("cqg.rtd", ,"ContractData",C156, "LongDescription",, "T") -> Tableau Software Inc | E156: =RTD("cqg.rtd", ,"ContractData",C156, "Open",, "T") -> 60.97 | F156: =RTD("cqg.rtd", ,"ContractData",C156, "High",, "T") -> 61.7 | G156: =RTD("cqg.rtd", ,"ContractData",C156, "Low",, "T") -> 60.85 | H156: =RTD("cqg.rtd", ,"ContractData",C156, "LastTradeToday",, "T") -> 61.48 | I156: =RTD("cqg.rtd", ,"ContractData",C156, "NetLastTradeToday",, "T") -> 1.26 | J156: =IFERROR(RTD("cqg.rtd", ,"ContractData",C156, "PerCentNetLastTrade",, "T")/100,"") -> 0.0209232813 | K156: =RTD("cqg.rtd", ,"ContractData", C156, "T_CVol",, "T") -> 1359101 | L156: 156 | M156: =IFERROR(RANK($J156,$J$1:J$607)+COUNTIF($J$1:J156,J156)-1,"") -> 23 | N156: S.US.DATA | O156: S.US.PK | P156: =RTD("cqg.rtd", ,"ContractData",O156, "PerCentNetLastTrade",, "T")/100 -> 0.007395873881 | Q156: https://finance.yahoo.com/quote/PK | S156: 0.007395873881 | V156: =RTD("cqg.rtd", ,"ContractData",O156, "LongDescription",, "T") -> Park Hotels & Resorts Inc. | Y156: 0.007395873881 | AA156: 1 | AB156: 1 | AD156: 0.007395873881
C157: S.US.DCI | D157: =RTD("cqg.rtd", ,"ContractData",C157, "LongDescription",, "T") -> Donaldson Company Inc | E157: =RTD("cqg.rtd", ,"ContractData",C157, "Open",, "T") -> 46.97 | F157: =RTD("cqg.rtd", ,"ContractData",C157, "High",, "T") -> 47.14 | G157: =RTD("cqg.rtd", ,"ContractData",C157, "Low",, "T") -> 46.8 | H157: =RTD("cqg.rtd", ,"ContractData",C157, "LastTradeToday",, "T") -> 46.91 | I157: =RTD("cqg.rtd", ,"ContractData",C157, "NetLastTradeToday",, "T") -> 0 | J157: =IFERROR(RTD("cqg.rtd", ,"ContractData",C157, "PerCentNetLastTrade",, "T")/100,"") -> 0 | K157: =RTD("cqg.rtd", ,"ContractData", C157, "T_CVol",, "T") -> 223667 | L157: 157 | M157: =IFERROR(RANK($J157,$J$1:J$607)+COUNTIF($J$1:J157,J157)-1,"") -> 385 | N157: S.US.DCI | O157: S.US.CSGP | P157: =RTD("cqg.rtd", ,"ContractData",O157, "PerCentNetLastTrade",, "T")/100 -> 0.0073046875 | Q157: https://finance.yahoo.com/quote/CSGP | S157: 0.0073046875 | V157: =RTD("cqg.rtd", ,"ContractData",O157, "LongDescription",, "T") -> CoStar Group | Y157: 0.0073046875 | AA157: 1 | AB157: 1 | AD157: 0.0073046875
C158: S.US.DD | D158: =RTD("cqg.rtd", ,"ContractData",C158, "LongDescription",, "T") -> E.I. du Pont de Nemours and Co. (DuPont) | E158: =RTD("cqg.rtd", ,"ContractData",C158, "Open",, "T") -> 77.5 | F158: =RTD("cqg.rtd", ,"ContractData",C158, "High",, "T") -> 78.54 | G158: =RTD("cqg.rtd", ,"ContractData",C158, "Low",, "T") -> 77.48 | H158: =RTD("cqg.rtd", ,"ContractData",C158, "LastTradeToday",, "T") -> 78.24 | I158: =RTD("cqg.rtd", ,"ContractData",C158, "NetLastTradeToday",, "T") -> 0.9 | J158: =IFERROR(RTD("cqg.rtd", ,"ContractData",C158, "PerCentNetLastTrade",, "T")/100,"") -> 0.01163692785 | K158: =RTD("cqg.rtd", ,"ContractData", C158, "T_CVol",, "T") -> 1149683 | L158: 158 | M158: =IFERROR(RANK($J158,$J$1:J$607)+COUNTIF($J$1:J158,J158)-1,"") -> 85 | N158: S.US.DD | O158: S.US.VAR | P158: =RTD("cqg.rtd", ,"ContractData",O158, "PerCentNetLastTrade",, "T")/100 -> 0.007295466389 | Q158: https://finance.yahoo.com/quote/VAR | S158: 0.007295466389 | V158: =RTD("cqg.rtd", ,"ContractData",O158, "LongDescription",, "T") -> Varian Medical Systems Inc | Y158: 0.007295466389 | AA158: 1 | AB158: 1 | AD158: 0.007295466389
C159: S.US.DE | D159: =RTD("cqg.rtd", ,"ContractData",C159, "LongDescription",, "T") -> Deere & Company | E159: =RTD("cqg.rtd", ,"ContractData",C159, "Open",, "T") -> 121.96 | F159: =RTD("cqg.rtd", ,"ContractData",C159, "High",, "T") -> 122.61 | G159: =RTD("cqg.rtd", ,"ContractData",C159, "Low",, "T") -> 121.79 | H159: =RTD("cqg.rtd", ,"ContractData",C159, "LastTradeToday",, "T") -> 122.47 | I159: =RTD("cqg.rtd", ,"ContractData",C159, "NetLastTradeToday",, "T") -> 0.34 | J159: =IFERROR(RTD("cqg.rtd", ,"ContractData",C159, "PerCentNetLastTrade",, "T")/100,"") -> 0.002783918775 | K159: =RTD("cqg.rtd", ,"ContractData", C159, "T_CVol",, "T") -> 886560 | L159: 159 | M159: =IFERROR(RANK($J159,$J$1:J$607)+COUNTIF($J$1:J159,J159)-1,"") -> 290 | N159: S.US.DE | O159: S.US.LMT | P159: =RTD("cqg.rtd", ,"ContractData",O159, "PerCentNetLastTrade",, "T")/100 -> 0.00729271447 | Q159: https://finance.yahoo.com/quote/LMT | S159: 0.00729271447 | V159: =RTD("cqg.rtd", ,"ContractData",O159, "LongDescription",, "T") -> Lockheed Martin Corp | Y159: 0.00729271447 | AA159: 1 | AB159: 1 | AD159: 0.00729271447
C160: S.US.DFIN | D160: =RTD("cqg.rtd", ,"ContractData",C160, "LongDescription",, "T") -> Donnelley Financial Solutions, Inc. | E160: =RTD("cqg.rtd", ,"ContractData",C160, "Open",, "T") -> 23.43 | F160: =RTD("cqg.rtd", ,"ContractData",C160, "High",, "T") -> 23.66 | G160: =RTD("cqg.rtd", ,"ContractData",C160, "Low",, "T") -> 23 | H160: =RTD("cqg.rtd", ,"ContractData",C160, "LastTradeToday",, "T") -> 23.05 | I160: =RTD("cqg.rtd", ,"ContractData",C160, "NetLastTradeToday",, "T") -> -0.39 | J160: =IFERROR(RTD("cqg.rtd", ,"ContractData",C160, "PerCentNetLastTrade",, "T")/100,"") -> -0.01663822526 | K160: =RTD("cqg.rtd", ,"ContractData", C160, "T_CVol",, "T") -> 45192 | L160: 160 | M160: =IFERROR(RANK($J160,$J$1:J$607)+COUNTIF($J$1:J160,J160)-1,"") -> 580 | N160: S.US.DFIN | O160: S.US.WAT | P160: =RTD("cqg.rtd", ,"ContractData",O160, "PerCentNetLastTrade",, "T")/100 -> 0.007268597388 | Q160: https://finance.yahoo.com/quote/WAT | S160: 0.007268597388 | V160: =RTD("cqg.rtd", ,"ContractData",O160, "LongDescription",, "T") -> Waters Corporation | Y160: 0.007268597388 | AA160: 1 | AB160: 1 | AD160: 0.007268597388
C161: S.US.DFS | D161: =RTD("cqg.rtd", ,"ContractData",C161, "LongDescription",, "T") -> Discover Financial Services | E161: =RTD("cqg.rtd", ,"ContractData",C161, "Open",, "T") -> 59.74 | F161: =RTD("cqg.rtd", ,"ContractData",C161, "High",, "T") -> 59.91 | G161: =RTD("cqg.rtd", ,"ContractData",C161, "Low",, "T") -> 59.23 | H161: =RTD("cqg.rtd", ,"ContractData",C161, "LastTradeToday",, "T") -> 59.34 | I161: =RTD("cqg.rtd", ,"ContractData",C161, "NetLastTradeToday",, "T") -> -0.4 | J161: =IFERROR(RTD("cqg.rtd", ,"ContractData",C161, "PerCentNetLastTrade",, "T")/100,"") -> -0.006695681286 | K161: =RTD("cqg.rtd", ,"ContractData", C161, "T_CVol",, "T") -> 889168 | L161: 161 | M161: =IFERROR(RANK($J161,$J$1:J$607)+COUNTIF($J$1:J161,J161)-1,"") -> 507 | N161: S.US.DFS | O161: S.US.DXCM | P161: =RTD("cqg.rtd", ,"ContractData",O161, "PerCentNetLastTrade",, "T")/100 -> 0.007250665877 | Q161: https://finance.yahoo.com/quote/DXCM | S161: 0.007250665877 | V161: =RTD("cqg.rtd", ,"ContractData",O161, "LongDescription",, "T") -> DexCom Inc | Y161: 0.007250665877 | AA161: 1 | AB161: 1 | AD161: 0.007250665877
C162: S.US.DG | D162: =RTD("cqg.rtd", ,"ContractData",C162, "LongDescription",, "T") -> Dollar General Corporation | E162: =RTD("cqg.rtd", ,"ContractData",C162, "Open",, "T") -> 70.66 | F162: =RTD("cqg.rtd", ,"ContractData",C162, "High",, "T") -> 70.68 | G162: =RTD("cqg.rtd", ,"ContractData",C162, "Low",, "T") -> 69.14 | H162: =RTD("cqg.rtd", ,"ContractData",C162, "LastTradeToday",, "T") -> 70.32 | I162: =RTD("cqg.rtd", ,"ContractData",C162, "NetLastTradeToday",, "T") -> -0.39 | J162: =IFERROR(RTD("cqg.rtd", ,"ContractData",C162, "PerCentNetLastTrade",, "T")/100,"") -> -0.005515485787 | K162: =RTD("cqg.rtd", ,"ContractData", C162, "T_CVol",, "T") -> 2352174 | L162: 162 | M162: =IFERROR(RANK($J162,$J$1:J$607)+COUNTIF($J$1:J162,J162)-1,"") -> 488 | N162: S.US.DG | O162: S.US.THS | P162: =RTD("cqg.rtd", ,"ContractData",O162, "PerCentNetLastTrade",, "T")/100 -> 0.007227671657 | Q162: https://finance.yahoo.com/quote/THS | S162: 0.007227671657 | V162: =RTD("cqg.rtd", ,"ContractData",O162, "LongDescription",, "T") -> TreeHouse Foods | Y162: 0.007227671657 | AA162: 1 | AB162: 1 | AD162: 0.007227671657
C163: S.US.DHI | D163: =RTD("cqg.rtd", ,"ContractData",C163, "LongDescription",, "T") -> DR Horton Inc | E163: =RTD("cqg.rtd", ,"ContractData",C163, "Open",, "T") -> 33.27 | F163: =RTD("cqg.rtd", ,"ContractData",C163, "High",, "T") -> 33.42 | G163: =RTD("cqg.rtd", ,"ContractData",C163, "Low",, "T") -> 32.99 | H163: =RTD("cqg.rtd", ,"ContractData",C163, "LastTradeToday",, "T") -> 33.34 | I163: =RTD("cqg.rtd", ,"ContractData",C163, "NetLastTradeToday",, "T") -> -0.03 | J163: =IFERROR(RTD("cqg.rtd", ,"ContractData",C163, "PerCentNetLastTrade",, "T")/100,"") -> -0.0008990110878 | K163: =RTD("cqg.rtd", ,"ContractData", C163, "T_CVol",, "T") -> 1725679 | L163: 163 | M163: =IFERROR(RANK($J163,$J$1:J$607)+COUNTIF($J$1:J163,J163)-1,"") -> 412 | N163: S.US.DHI | O163: S.US.FBHS | P163: =RTD("cqg.rtd", ,"ContractData",O163, "PerCentNetLastTrade",, "T")/100 -> 0.007187350264 | Q163: https://finance.yahoo.com/quote/FBHS | S163: 0.007187350264 | V163: =RTD("cqg.rtd", ,"ContractData",O163, "LongDescription",, "T") -> Fortune Brands Home & Security, Inc. | Y163: 0.007187350264 | AA163: 1 | AB163: 1 | AD163: 0.007187350264
C164: S.US.DHR | D164: =RTD("cqg.rtd", ,"ContractData",C164, "LongDescription",, "T") -> Danaher Corporation | E164: =RTD("cqg.rtd", ,"ContractData",C164, "Open",, "T") -> 84.4 | F164: =RTD("cqg.rtd", ,"ContractData",C164, "High",, "T") -> 84.4 | G164: =RTD("cqg.rtd", ,"ContractData",C164, "Low",, "T") -> 83.81 | H164: =RTD("cqg.rtd", ,"ContractData",C164, "LastTradeToday",, "T") -> 84.01 | I164: =RTD("cqg.rtd", ,"ContractData",C164, "NetLastTradeToday",, "T") -> 0.06 | J164: =IFERROR(RTD("cqg.rtd", ,"ContractData",C164, "PerCentNetLastTrade",, "T")/100,"") -> 0.0007147111376 | K164: =RTD("cqg.rtd", ,"ContractData", C164, "T_CVol",, "T") -> 1149739 | L164: 164 | M164: =IFERROR(RANK($J164,$J$1:J$607)+COUNTIF($J$1:J164,J164)-1,"") -> 363 | N164: S.US.DHR | O164: S.US.BA | P164: =RTD("cqg.rtd", ,"ContractData",O164, "PerCentNetLastTrade",, "T")/100 -> 0.007139353643 | Q164: https://finance.yahoo.com/quote/BA | S164: 0.007139353643 | V164: =RTD("cqg.rtd", ,"ContractData",O164, "LongDescription",, "T") -> Boeing Company | Y164: 0.007139353643 | AA164: 1 | AB164: 1 | AD164: 0.007139353643
C165: S.US.DIS | D165: =RTD("cqg.rtd", ,"ContractData",C165, "LongDescription",, "T") -> Disney (Walt) Company | E165: =RTD("cqg.rtd", ,"ContractData",C165, "Open",, "T") -> 107.15 | F165: =RTD("cqg.rtd", ,"ContractData",C165, "High",, "T") -> 107.77 | G165: =RTD("cqg.rtd", ,"ContractData",C165, "Low",, "T") -> 106.93 | H165: =RTD("cqg.rtd", ,"ContractData",C165, "LastTradeToday",, "T") -> 107.76 | I165: =RTD("cqg.rtd", ,"ContractData",C165, "NetLastTradeToday",, "T") -> 0.74 | J165: =IFERROR(RTD("cqg.rtd", ,"ContractData",C165, "PerCentNetLastTrade",, "T")/100,"") -> 0.006914595403 | K165: =RTD("cqg.rtd", ,"ContractData", C165, "T_CVol",, "T") -> 2368156 | L165: 165 | M165: =IFERROR(RANK($J165,$J$1:J$607)+COUNTIF($J$1:J165,J165)-1,"") -> 172 | N165: S.US.DIS | O165: S.US.DVMT | P165: =RTD("cqg.rtd", ,"ContractData",O165, "PerCentNetLastTrade",, "T")/100 -> 0.007123775601 | Q165: https://finance.yahoo.com/quote/DVMT | S165: 0.007123775601 | V165: =RTD("cqg.rtd", ,"ContractData",O165, "LongDescription",, "T") -> Dell Technologies Inc. | Y165: 0.007123775601 | AA165: 1 | AB165: 1 | AD165: 0.007123775601
C166: S.US.DISCA | D166: =RTD("cqg.rtd", ,"ContractData",C166, "LongDescription",, "T") -> Discovery Holding Channel Common A | E166: =RTD("cqg.rtd", ,"ContractData",C166, "Open",, "T") -> 25.73 | F166: =RTD("cqg.rtd", ,"ContractData",C166, "High",, "T") -> 25.8 | G166: =RTD("cqg.rtd", ,"ContractData",C166, "Low",, "T") -> 25.33 | H166: =RTD("cqg.rtd", ,"ContractData",C166, "LastTradeToday",, "T") -> 25.35 | I166: =RTD("cqg.rtd", ,"ContractData",C166, "NetLastTradeToday",, "T") -> -0.28 | J166: =IFERROR(RTD("cqg.rtd", ,"ContractData",C166, "PerCentNetLastTrade",, "T")/100,"") -> -0.01092469762 | K166: =RTD("cqg.rtd", ,"ContractData", C166, "T_CVol",, "T") -> 1113504 | L166: 166 | M166: =IFERROR(RANK($J166,$J$1:J$607)+COUNTIF($J$1:J166,J166)-1,"") -> 552 | N166: S.US.DISCA | O166: S.US.MKC | P166: =RTD("cqg.rtd", ,"ContractData",O166, "PerCentNetLastTrade",, "T")/100 -> 0.007119867356 | Q166: https://finance.yahoo.com/quote/MKC | S166: 0.007119867356 | V166: =RTD("cqg.rtd", ,"ContractData",O166, "LongDescription",, "T") -> McCormick & Company Inc | Y166: 0.007119867356 | AA166: 1 | AB166: 1 | AD166: 0.007119867356
C167: S.US.DISCK | D167: =RTD("cqg.rtd", ,"ContractData",C167, "LongDescription",, "T") -> Discovery Communications Inc. | E167: =RTD("cqg.rtd", ,"ContractData",C167, "Open",, "T") -> 25.06 | F167: =RTD("cqg.rtd", ,"ContractData",C167, "High",, "T") -> 25.13 | G167: =RTD("cqg.rtd", ,"ContractData",C167, "Low",, "T") -> 24.75 | H167: =RTD("cqg.rtd", ,"ContractData",C167, "LastTradeToday",, "T") -> 24.77 | I167: =RTD("cqg.rtd", ,"ContractData",C167, "NetLastTradeToday",, "T") -> -0.2 | J167: =IFERROR(RTD("cqg.rtd", ,"ContractData",C167, "PerCentNetLastTrade",, "T")/100,"") -> -0.008009611534 | K167: =RTD("cqg.rtd", ,"ContractData", C167, "T_CVol",, "T") -> 753386 | L167: 167 | M167: =IFERROR(RANK($J167,$J$1:J$607)+COUNTIF($J$1:J167,J167)-1,"") -> 522 | N167: =C167 -> S.US.DISCK | O167: S.US.CLX | P167: =RTD("cqg.rtd", ,"ContractData",O167, "PerCentNetLastTrade",, "T")/100 -> 0.006986634265 | Q167: https://finance.yahoo.com/quote/CLX | S167: =IF(P167>=0,P167,NA()) -> 0.006986634265 | T167: =IF(P167>=0,NA(),-1*P167) ->  | V167: =RTD("cqg.rtd", ,"ContractData",O167, "LongDescription",, "T") -> Clorox Company | Y167: =IFERROR(S167,P167) -> 0.006986634265 | AA167: =IF(S167="NA()",0,1) -> 1 | AB167: =IFERROR(AA167,0) -> 1 | AD167: =IFERROR(S167,"") -> 0.006986634265 | AE167: =IFERROR(T167,"") ->  | AF167: =IF(AE167="","",Y167) -> 
C168: S.US.DISH | D168: =RTD("cqg.rtd", ,"ContractData",C168, "LongDescription",, "T") -> DISH Network Corp. | E168: =RTD("cqg.rtd", ,"ContractData",C168, "Open",, "T") -> 63.53 | F168: =RTD("cqg.rtd", ,"ContractData",C168, "High",, "T") -> 63.83 | G168: =RTD("cqg.rtd", ,"ContractData",C168, "Low",, "T") -> 61.62 | H168: =RTD("cqg.rtd", ,"ContractData",C168, "LastTradeToday",, "T") -> 63.43 | I168: =RTD("cqg.rtd", ,"ContractData",C168, "NetLastTradeToday",, "T") -> -0.43 | J168: =IFERROR(RTD("cqg.rtd", ,"ContractData",C168, "PerCentNetLastTrade",, "T")/100,"") -> -0.006733479486 | K168: =RTD("cqg.rtd", ,"ContractData", C168, "T_CVol",, "T") -> 2332062 | L168: 168 | M168: =IFERROR(RANK($J168,$J$1:J$607)+COUNTIF($J$1:J168,J168)-1,"") -> 508 | N168: S.US.DISH | O168: S.US.HRI | P168: =RTD("cqg.rtd", ,"ContractData",O168, "PerCentNetLastTrade",, "T")/100 -> 0.006946373993 | Q168: https://finance.yahoo.com/quote/HRI | S168: 0.006946373993 | V168: =RTD("cqg.rtd", ,"ContractData",O168, "LongDescription",, "T") -> Herc Holdings Inc. | Y168: 0.006946373993 | AA168: 1 | AB168: 1 | AD168: 0.006946373993
C169: S.US.DKS | D169: =RTD("cqg.rtd", ,"ContractData",C169, "LongDescription",, "T") -> Dicks Sporting Goods Inc. | E169: =RTD("cqg.rtd", ,"ContractData",C169, "Open",, "T") -> 41.44 | F169: =RTD("cqg.rtd", ,"ContractData",C169, "High",, "T") -> 41.84 | G169: =RTD("cqg.rtd", ,"ContractData",C169, "Low",, "T") -> 41.27 | H169: =RTD("cqg.rtd", ,"ContractData",C169, "LastTradeToday",, "T") -> 41.74 | I169: =RTD("cqg.rtd", ,"ContractData",C169, "NetLastTradeToday",, "T") -> 0.31 | J169: =IFERROR(RTD("cqg.rtd", ,"ContractData",C169, "PerCentNetLastTrade",, "T")/100,"") -> 0.007482500603 | K169: =RTD("cqg.rtd", ,"ContractData", C169, "T_CVol",, "T") -> 1026530 | L169: 169 | M169: =IFERROR(RANK($J169,$J$1:J$607)+COUNTIF($J$1:J169,J169)-1,"") -> 152 | N169: S.US.DKS | O169: S.US.CDW | P169: =RTD("cqg.rtd", ,"ContractData",O169, "PerCentNetLastTrade",, "T")/100 -> 0.006936015259 | Q169: https://finance.yahoo.com/quote/CDW | S169: 0.006936015259 | V169: =RTD("cqg.rtd", ,"ContractData",O169, "LongDescription",, "T") -> CDW Corporation | Y169: 0.006936015259 | AA169: 1 | AB169: 1 | AD169: 0.006936015259
C170: S.US.DLPH | D170: =RTD("cqg.rtd", ,"ContractData",C170, "LongDescription",, "T") -> Delphi Automotive PLC | E170: =RTD("cqg.rtd", ,"ContractData",C170, "Open",, "T") -> 86.43 | F170: =RTD("cqg.rtd", ,"ContractData",C170, "High",, "T") -> 86.57 | G170: =RTD("cqg.rtd", ,"ContractData",C170, "Low",, "T") -> 85.82 | H170: =RTD("cqg.rtd", ,"ContractData",C170, "LastTradeToday",, "T") -> 86.29 | I170: =RTD("cqg.rtd", ,"ContractData",C170, "NetLastTradeToday",, "T") -> -0.11 | J170: =IFERROR(RTD("cqg.rtd", ,"ContractData",C170, "PerCentNetLastTrade",, "T")/100,"") -> -0.001273148148 | K170: =RTD("cqg.rtd", ,"ContractData", C170, "T_CVol",, "T") -> 670676 | L170: 170 | M170: =IFERROR(RANK($J170,$J$1:J$607)+COUNTIF($J$1:J170,J170)-1,"") -> 421 | N170: S.US.DLPH | O170: S.US.KLAC | P170: =RTD("cqg.rtd", ,"ContractData",O170, "PerCentNetLastTrade",, "T")/100 -> 0.006927505122 | Q170: https://finance.yahoo.com/quote/KLAC | S170: 0.006927505122 | V170: =RTD("cqg.rtd", ,"ContractData",O170, "LongDescription",, "T") -> KLA-Tencor | Y170: 0.006927505122 | AA170: 1 | AB170: 1 | AD170: 0.006927505122
C171: S.US.DLR | D171: =RTD("cqg.rtd", ,"ContractData",C171, "LongDescription",, "T") -> Digital Realty | E171: =RTD("cqg.rtd", ,"ContractData",C171, "Open",, "T") -> 116.32 | F171: =RTD("cqg.rtd", ,"ContractData",C171, "High",, "T") -> 117.76 | G171: =RTD("cqg.rtd", ,"ContractData",C171, "Low",, "T") -> 116.32 | H171: =RTD("cqg.rtd", ,"ContractData",C171, "LastTradeToday",, "T") -> 117.43 | I171: =RTD("cqg.rtd", ,"ContractData",C171, "NetLastTradeToday",, "T") -> 1.24 | J171: =IFERROR(RTD("cqg.rtd", ,"ContractData",C171, "PerCentNetLastTrade",, "T")/100,"") -> 0.01067217489 | K171: =RTD("cqg.rtd", ,"ContractData", C171, "T_CVol",, "T") -> 299254 | L171: 171 | M171: =IFERROR(RANK($J171,$J$1:J$607)+COUNTIF($J$1:J171,J171)-1,"") -> 94 | N171: S.US.DLR | O171: S.US.GNTX | P171: =RTD("cqg.rtd", ,"ContractData",O171, "PerCentNetLastTrade",, "T")/100 -> 0.006922257721 | Q171: https://finance.yahoo.com/quote/GNTX | S171: 0.006922257721 | V171: =RTD("cqg.rtd", ,"ContractData",O171, "LongDescription",, "T") -> Gentex Corporation | Y171: 0.006922257721 | AA171: 1 | AB171: 1 | AD171: 0.006922257721
C172: S.US.DLTR | D172: =RTD("cqg.rtd", ,"ContractData",C172, "LongDescription",, "T") -> Dollar Tree Stores | E172: =RTD("cqg.rtd", ,"ContractData",C172, "Open",, "T") -> 78.86 | F172: =RTD("cqg.rtd", ,"ContractData",C172, "High",, "T") -> 79.14 | G172: =RTD("cqg.rtd", ,"ContractData",C172, "Low",, "T") -> 76.72 | H172: =RTD("cqg.rtd", ,"ContractData",C172, "LastTradeToday",, "T") -> 78.21 | I172: =RTD("cqg.rtd", ,"ContractData",C172, "NetLastTradeToday",, "T") -> -0.64 | J172: =IFERROR(RTD("cqg.rtd", ,"ContractData",C172, "PerCentNetLastTrade",, "T")/100,"") -> -0.008116677235 | K172: =RTD("cqg.rtd", ,"ContractData", C172, "T_CVol",, "T") -> 2952993 | L172: 172 | M172: =IFERROR(RANK($J172,$J$1:J$607)+COUNTIF($J$1:J172,J172)-1,"") -> 524 | N172: S.US.DLTR | O172: S.US.DIS | P172: =RTD("cqg.rtd", ,"ContractData",O172, "PerCentNetLastTrade",, "T")/100 -> 0.006914595403 | Q172: https://finance.yahoo.com/quote/DIS | S172: 0.006914595403 | V172: =RTD("cqg.rtd", ,"ContractData",O172, "LongDescription",, "T") -> Disney (Walt) Company | Y172: 0.006914595403 | AA172: 1 | AB172: 1 | AD172: 0.006914595403
C173: S.US.DNB | D173: =RTD("cqg.rtd", ,"ContractData",C173, "LongDescription",, "T") -> Dun & Bradstreet Corp | E173: =RTD("cqg.rtd", ,"ContractData",C173, "Open",, "T") -> 105.61 | F173: =RTD("cqg.rtd", ,"ContractData",C173, "High",, "T") -> 106.01 | G173: =RTD("cqg.rtd", ,"ContractData",C173, "Low",, "T") -> 105.12 | H173: =RTD("cqg.rtd", ,"ContractData",C173, "LastTradeToday",, "T") -> 105.3 | I173: =RTD("cqg.rtd", ,"ContractData",C173, "NetLastTradeToday",, "T") -> -0.43 | J173: =IFERROR(RTD("cqg.rtd", ,"ContractData",C173, "PerCentNetLastTrade",, "T")/100,"") -> -0.004066963019 | K173: =RTD("cqg.rtd", ,"ContractData", C173, "T_CVol",, "T") -> 127800 | L173: 173 | M173: =IFERROR(RANK($J173,$J$1:J$607)+COUNTIF($J$1:J173,J173)-1,"") -> 470 | N173: S.US.DNB | O173: S.US.DRI | P173: =RTD("cqg.rtd", ,"ContractData",O173, "PerCentNetLastTrade",, "T")/100 -> 0.006809787627 | Q173: https://finance.yahoo.com/quote/DRI | S173: 0.006809787627 | V173: =RTD("cqg.rtd", ,"ContractData",O173, "LongDescription",, "T") -> Darden Restaurants Inc | Y173: 0.006809787627 | AA173: 1 | AB173: 1 | AD173: 0.006809787627
C174: S.US.DNKN | D174: =RTD("cqg.rtd", ,"ContractData",C174, "LongDescription",, "T") -> Dunkin' Brands Group, Inc. | E174: =RTD("cqg.rtd", ,"ContractData",C174, "Open",, "T") -> 55.72 | F174: =RTD("cqg.rtd", ,"ContractData",C174, "High",, "T") -> 56.65 | G174: =RTD("cqg.rtd", ,"ContractData",C174, "Low",, "T") -> 55.46 | H174: =RTD("cqg.rtd", ,"ContractData",C174, "LastTradeToday",, "T") -> 56.64 | I174: =RTD("cqg.rtd", ,"ContractData",C174, "NetLastTradeToday",, "T") -> 0.93 | J174: =IFERROR(RTD("cqg.rtd", ,"ContractData",C174, "PerCentNetLastTrade",, "T")/100,"") -> 0.01669359181 | K174: =RTD("cqg.rtd", ,"ContractData", C174, "T_CVol",, "T") -> 480870 | L174: 174 | M174: =IFERROR(RANK($J174,$J$1:J$607)+COUNTIF($J$1:J174,J174)-1,"") -> 43 | N174: S.US.DNKN | O174: S.US.EEFT | P174: =RTD("cqg.rtd", ,"ContractData",O174, "PerCentNetLastTrade",, "T")/100 -> 0.006799475128 | Q174: https://finance.yahoo.com/quote/EEFT | S174: 0.006799475128 | V174: =RTD("cqg.rtd", ,"ContractData",O174, "LongDescription",, "T") -> Euronet Worldwide Inc | Y174: 0.006799475128 | AA174: 1 | AB174: 1 | AD174: 0.006799475128
C175: S.US.DPS | D175: =RTD("cqg.rtd", ,"ContractData",C175, "LongDescription",, "T") -> Dr Pepper Snapple Group, Inc | E175: =RTD("cqg.rtd", ,"ContractData",C175, "Open",, "T") -> 92.27 | F175: =RTD("cqg.rtd", ,"ContractData",C175, "High",, "T") -> 93.46 | G175: =RTD("cqg.rtd", ,"ContractData",C175, "Low",, "T") -> 91.98 | H175: =RTD("cqg.rtd", ,"ContractData",C175, "LastTradeToday",, "T") -> 93.41 | I175: =RTD("cqg.rtd", ,"ContractData",C175, "NetLastTradeToday",, "T") -> 1.51 | J175: =IFERROR(RTD("cqg.rtd", ,"ContractData",C175, "PerCentNetLastTrade",, "T")/100,"") -> 0.01643090316 | K175: =RTD("cqg.rtd", ,"ContractData", C175, "T_CVol",, "T") -> 506602 | L175: 175 | M175: =IFERROR(RANK($J175,$J$1:J$607)+COUNTIF($J$1:J175,J175)-1,"") -> 46 | N175: S.US.DPS | O175: S.US.MSCI | P175: =RTD("cqg.rtd", ,"ContractData",O175, "PerCentNetLastTrade",, "T")/100 -> 0.006773834799 | Q175: https://finance.yahoo.com/quote/MSCI | S175: 0.006773834799 | V175: =RTD("cqg.rtd", ,"ContractData",O175, "LongDescription",, "T") -> MSCI, Inc. | Y175: 0.006773834799 | AA175: 1 | AB175: 1 | AD175: 0.006773834799
C176: S.US.DPZ | D176: =RTD("cqg.rtd", ,"ContractData",C176, "LongDescription",, "T") -> Dominos Pizza, Inc. | E176: =RTD("cqg.rtd", ,"ContractData",C176, "Open",, "T") -> 199.48 | F176: =RTD("cqg.rtd", ,"ContractData",C176, "High",, "T") -> 205.31 | G176: =RTD("cqg.rtd", ,"ContractData",C176, "Low",, "T") -> 199.48 | H176: =RTD("cqg.rtd", ,"ContractData",C176, "LastTradeToday",, "T") -> 205.16 | I176: =RTD("cqg.rtd", ,"ContractData",C176, "NetLastTradeToday",, "T") -> 5.91 | J176: =IFERROR(RTD("cqg.rtd", ,"ContractData",C176, "PerCentNetLastTrade",, "T")/100,"") -> 0.02966122961 | K176: =RTD("cqg.rtd", ,"ContractData", C176, "T_CVol",, "T") -> 554107 | L176: 176 | M176: =IFERROR(RANK($J176,$J$1:J$607)+COUNTIF($J$1:J176,J176)-1,"") -> 11 | N176: S.US.DPZ | O176: S.US.ADS | P176: =RTD("cqg.rtd", ,"ContractData",O176, "PerCentNetLastTrade",, "T")/100 -> 0.006773633631 | Q176: https://finance.yahoo.com/quote/ADS | S176: 0.006773633631 | V176: =RTD("cqg.rtd", ,"ContractData",O176, "LongDescription",, "T") -> Alliance Data Systems Corp | Y176: 0.006773633631 | AA176: 1 | AB176: 1 | AD176: 0.006773633631
C177: S.US.DRI | D177: =RTD("cqg.rtd", ,"ContractData",C177, "LongDescription",, "T") -> Darden Restaurants Inc | E177: =RTD("cqg.rtd", ,"ContractData",C177, "Open",, "T") -> 86.9 | F177: =RTD("cqg.rtd", ,"ContractData",C177, "High",, "T") -> 87.36 | G177: =RTD("cqg.rtd", ,"ContractData",C177, "Low",, "T") -> 86.52 | H177: =RTD("cqg.rtd", ,"ContractData",C177, "LastTradeToday",, "T") -> 87.23 | I177: =RTD("cqg.rtd", ,"ContractData",C177, "NetLastTradeToday",, "T") -> 0.59 | J177: =IFERROR(RTD("cqg.rtd", ,"ContractData",C177, "PerCentNetLastTrade",, "T")/100,"") -> 0.006809787627 | K177: =RTD("cqg.rtd", ,"ContractData", C177, "T_CVol",, "T") -> 329005 | L177: 177 | M177: =IFERROR(RANK($J177,$J$1:J$607)+COUNTIF($J$1:J177,J177)-1,"") -> 173 | N177: S.US.DRI | O177: S.US.CTSH | P177: =RTD("cqg.rtd", ,"ContractData",O177, "PerCentNetLastTrade",, "T")/100 -> 0.006665656719 | Q177: https://finance.yahoo.com/quote/CTSH | S177: 0.006665656719 | V177: =RTD("cqg.rtd", ,"ContractData",O177, "LongDescription",, "T") -> Cognizant Tech Solutions Corp | Y177: 0.006665656719 | AA177: 1 | AB177: 1 | AD177: 0.006665656719
C178: S.US.DST | D178: =RTD("cqg.rtd", ,"ContractData",C178, "LongDescription",, "T") -> DST Systems | E178: =RTD("cqg.rtd", ,"ContractData",C178, "Open",, "T") -> 118.02 | F178: =RTD("cqg.rtd", ,"ContractData",C178, "High",, "T") -> 118.83 | G178: =RTD("cqg.rtd", ,"ContractData",C178, "Low",, "T") -> 117.44 | H178: =RTD("cqg.rtd", ,"ContractData",C178, "LastTradeToday",, "T") -> 118.72 | I178: =RTD("cqg.rtd", ,"ContractData",C178, "NetLastTradeToday",, "T") -> 0.23 | J178: =IFERROR(RTD("cqg.rtd", ,"ContractData",C178, "PerCentNetLastTrade",, "T")/100,"") -> 0.001941092075 | K178: =RTD("cqg.rtd", ,"ContractData", C178, "T_CVol",, "T") -> 60611 | L178: 178 | M178: =IFERROR(RANK($J178,$J$1:J$607)+COUNTIF($J$1:J178,J178)-1,"") -> 321 | N178: S.US.DST | O178: S.US.TSS | P178: =RTD("cqg.rtd", ,"ContractData",O178, "PerCentNetLastTrade",, "T")/100 -> 0.006636038795 | Q178: https://finance.yahoo.com/quote/TSS | S178: 0.006636038795 | V178: =RTD("cqg.rtd", ,"ContractData",O178, "LongDescription",, "T") -> Total Systems Services Inc | Y178: 0.006636038795 | AA178: 1 | AB178: 1 | AD178: 0.006636038795
C179: S.US.DVA | D179: =RTD("cqg.rtd", ,"ContractData",C179, "LongDescription",, "T") -> DaVita Inc. | E179: =RTD("cqg.rtd", ,"ContractData",C179, "Open",, "T") -> 64.99 | F179: =RTD("cqg.rtd", ,"ContractData",C179, "High",, "T") -> 65.05 | G179: =RTD("cqg.rtd", ,"ContractData",C179, "Low",, "T") -> 64.53 | H179: =RTD("cqg.rtd", ,"ContractData",C179, "LastTradeToday",, "T") -> 64.71 | I179: =RTD("cqg.rtd", ,"ContractData",C179, "NetLastTradeToday",, "T") -> -0.17 | J179: =IFERROR(RTD("cqg.rtd", ,"ContractData",C179, "PerCentNetLastTrade",, "T")/100,"") -> -0.002620221948 | K179: =RTD("cqg.rtd", ,"ContractData", C179, "T_CVol",, "T") -> 644618 | L179: 179 | M179: =IFERROR(RANK($J179,$J$1:J$607)+COUNTIF($J$1:J179,J179)-1,"") -> 443 | N179: S.US.DVA | O179: S.US.P | P179: =RTD("cqg.rtd", ,"ContractData",O179, "PerCentNetLastTrade",, "T")/100 -> 0.006564551422 | Q179: https://finance.yahoo.com/quote/P | S179: 0.006564551422 | V179: =RTD("cqg.rtd", ,"ContractData",O179, "LongDescription",, "T") -> Pandora Media, Inc. | Y179: 0.006564551422 | AA179: 1 | AB179: 1 | AD179: 0.006564551422
C180: S.US.DVMT | D180: =RTD("cqg.rtd", ,"ContractData",C180, "LongDescription",, "T") -> Dell Technologies Inc. | E180: =RTD("cqg.rtd", ,"ContractData",C180, "Open",, "T") -> 67.59 | F180: =RTD("cqg.rtd", ,"ContractData",C180, "High",, "T") -> 67.92 | G180: =RTD("cqg.rtd", ,"ContractData",C180, "Low",, "T") -> 67.37 | H180: =RTD("cqg.rtd", ,"ContractData",C180, "LastTradeToday",, "T") -> 67.86 | I180: =RTD("cqg.rtd", ,"ContractData",C180, "NetLastTradeToday",, "T") -> 0.48 | J180: =IFERROR(RTD("cqg.rtd", ,"ContractData",C180, "PerCentNetLastTrade",, "T")/100,"") -> 0.007123775601 | K180: =RTD("cqg.rtd", ,"ContractData", C180, "T_CVol",, "T") -> 710335 | L180: 180 | M180: =IFERROR(RANK($J180,$J$1:J$607)+COUNTIF($J$1:J180,J180)-1,"") -> 165 | N180: S.US.DVMT | O180: S.US.BAX | P180: =RTD("cqg.rtd", ,"ContractData",O180, "PerCentNetLastTrade",, "T")/100 -> 0.006560773481 | Q180: https://finance.yahoo.com/quote/BAX | S180: 0.006560773481 | V180: =RTD("cqg.rtd", ,"ContractData",O180, "LongDescription",, "T") -> Baxter International Inc | Y180: 0.006560773481 | AA180: 1 | AB180: 1 | AD180: 0.006560773481
C181: S.US.DVN | D181: =RTD("cqg.rtd", ,"ContractData",C181, "LongDescription",, "T") -> Devon Energy Corp | E181: =RTD("cqg.rtd", ,"ContractData",C181, "Open",, "T") -> 37.63 | F181: =RTD("cqg.rtd", ,"ContractData",C181, "High",, "T") -> 37.88 | G181: =RTD("cqg.rtd", ,"ContractData",C181, "Low",, "T") -> 36.75 | H181: =RTD("cqg.rtd", ,"ContractData",C181, "LastTradeToday",, "T") -> 36.95 | I181: =RTD("cqg.rtd", ,"ContractData",C181, "NetLastTradeToday",, "T") -> -0.87 | J181: =IFERROR(RTD("cqg.rtd", ,"ContractData",C181, "PerCentNetLastTrade",, "T")/100,"") -> -0.02300370175 | K181: =RTD("cqg.rtd", ,"ContractData", C181, "T_CVol",, "T") -> 3128091 | L181: 181 | M181: =IFERROR(RANK($J181,$J$1:J$607)+COUNTIF($J$1:J181,J181)-1,"") -> 588 | N181: S.US.DVN | O181: S.US.AMT | P181: =RTD("cqg.rtd", ,"ContractData",O181, "PerCentNetLastTrade",, "T")/100 -> 0.006525285481 | Q181: https://finance.yahoo.com/quote/AMT | S181: 0.006525285481 | V181: =RTD("cqg.rtd", ,"ContractData",O181, "LongDescription",, "T") -> American Tower Corp ClA | Y181: 0.006525285481 | AA181: 1 | AB181: 1 | AD181: 0.006525285481
C182: S.US.DXCM | D182: =RTD("cqg.rtd", ,"ContractData",C182, "LongDescription",, "T") -> DexCom Inc | E182: =RTD("cqg.rtd", ,"ContractData",C182, "Open",, "T") -> 67.78 | F182: =RTD("cqg.rtd", ,"ContractData",C182, "High",, "T") -> 68.29 | G182: =RTD("cqg.rtd", ,"ContractData",C182, "Low",, "T") -> 67.11 | H182: =RTD("cqg.rtd", ,"ContractData",C182, "LastTradeToday",, "T") -> 68.07 | I182: =RTD("cqg.rtd", ,"ContractData",C182, "NetLastTradeToday",, "T") -> 0.49 | J182: =IFERROR(RTD("cqg.rtd", ,"ContractData",C182, "PerCentNetLastTrade",, "T")/100,"") -> 0.007250665877 | K182: =RTD("cqg.rtd", ,"ContractData", C182, "T_CVol",, "T") -> 518262 | L182: 182 | M182: =IFERROR(RANK($J182,$J$1:J$607)+COUNTIF($J$1:J182,J182)-1,"") -> 161 | N182: S.US.DXCM | O182: S.US.MAS | P182: =RTD("cqg.rtd", ,"ContractData",O182, "PerCentNetLastTrade",, "T")/100 -> 0.006516426826 | Q182: https://finance.yahoo.com/quote/MAS | S182: 0.006516426826 | V182: =RTD("cqg.rtd", ,"ContractData",O182, "LongDescription",, "T") -> Masco Corporation | Y182: 0.006516426826 | AA182: 1 | AB182: 1 | AD182: 0.006516426826
C183: S.US.EA | D183: =RTD("cqg.rtd", ,"ContractData",C183, "LongDescription",, "T") -> Electronic Arts | E183: =RTD("cqg.rtd", ,"ContractData",C183, "Open",, "T") -> 108.78 | F183: =RTD("cqg.rtd", ,"ContractData",C183, "High",, "T") -> 111.62 | G183: =RTD("cqg.rtd", ,"ContractData",C183, "Low",, "T") -> 108.39 | H183: =RTD("cqg.rtd", ,"ContractData",C183, "LastTradeToday",, "T") -> 111.53 | I183: =RTD("cqg.rtd", ,"ContractData",C183, "NetLastTradeToday",, "T") -> 2.52 | J183: =IFERROR(RTD("cqg.rtd", ,"ContractData",C183, "PerCentNetLastTrade",, "T")/100,"") -> 0.02311714522 | K183: =RTD("cqg.rtd", ,"ContractData", C183, "T_CVol",, "T") -> 2339944 | L183: 183 | M183: =IFERROR(RANK($J183,$J$1:J$607)+COUNTIF($J$1:J183,J183)-1,"") -> 21 | N183: S.US.EA | O183: S.US.PCLN | P183: =RTD("cqg.rtd", ,"ContractData",O183, "PerCentNetLastTrade",, "T")/100 -> 0.006488177949 | Q183: https://finance.yahoo.com/quote/PCLN | S183: 0.006488177949 | V183: =RTD("cqg.rtd", ,"ContractData",O183, "LongDescription",, "T") -> The Priceline Group Inc. | Y183: 0.006488177949 | AA183: 1 | AB183: 1 | AD183: 0.006488177949
C184: S.US.EAT | D184: =RTD("cqg.rtd", ,"ContractData",C184, "LongDescription",, "T") -> Brinker Internatl Inc | E184: =RTD("cqg.rtd", ,"ContractData",C184, "Open",, "T") -> 40.07 | F184: =RTD("cqg.rtd", ,"ContractData",C184, "High",, "T") -> 40.21 | G184: =RTD("cqg.rtd", ,"ContractData",C184, "Low",, "T") -> 39.82 | H184: =RTD("cqg.rtd", ,"ContractData",C184, "LastTradeToday",, "T") -> 40.08 | I184: =RTD("cqg.rtd", ,"ContractData",C184, "NetLastTradeToday",, "T") -> 0.01 | J184: =IFERROR(RTD("cqg.rtd", ,"ContractData",C184, "PerCentNetLastTrade",, "T")/100,"") -> 0.0002495632643 | K184: =RTD("cqg.rtd", ,"ContractData", C184, "T_CVol",, "T") -> 880380 | L184: 184 | M184: =IFERROR(RANK($J184,$J$1:J$607)+COUNTIF($J$1:J184,J184)-1,"") -> 376 | N184: S.US.EAT | O184: S.US.ZBH | P184: =RTD("cqg.rtd", ,"ContractData",O184, "PerCentNetLastTrade",, "T")/100 -> 0.006451065275 | Q184: https://finance.yahoo.com/quote/ZBH | S184: 0.006451065275 | V184: =RTD("cqg.rtd", ,"ContractData",O184, "LongDescription",, "T") -> Zimmer Biomet Holdings, Inc | Y184: 0.006451065275 | AA184: 1 | AB184: 1 | AD184: 0.006451065275
C185: S.US.EBAY | D185: =RTD("cqg.rtd", ,"ContractData",C185, "LongDescription",, "T") -> eBay Inc | E185: =RTD("cqg.rtd", ,"ContractData",C185, "Open",, "T") -> 34.62 | F185: =RTD("cqg.rtd", ,"ContractData",C185, "High",, "T") -> 34.99 | G185: =RTD("cqg.rtd", ,"ContractData",C185, "Low",, "T") -> 34.44 | H185: =RTD("cqg.rtd", ,"ContractData",C185, "LastTradeToday",, "T") -> 34.71 | I185: =RTD("cqg.rtd", ,"ContractData",C185, "NetLastTradeToday",, "T") -> 0.1 | J185: =IFERROR(RTD("cqg.rtd", ,"ContractData",C185, "PerCentNetLastTrade",, "T")/100,"") -> 0.002889338342 | K185: =RTD("cqg.rtd", ,"ContractData", C185, "T_CVol",, "T") -> 5198175 | L185: 185 | M185: =IFERROR(RANK($J185,$J$1:J$607)+COUNTIF($J$1:J185,J185)-1,"") -> 285 | N185: S.US.EBAY | O185: S.US.SLGN | P185: =RTD("cqg.rtd", ,"ContractData",O185, "PerCentNetLastTrade",, "T")/100 -> 0.006393861893 | Q185: https://finance.yahoo.com/quote/SLGN | S185: 0.006393861893 | V185: =RTD("cqg.rtd", ,"ContractData",O185, "LongDescription",, "T") -> Silgan Holdings | Y185: 0.006393861893 | AA185: 1 | AB185: 1 | AD185: 0.006393861893
C186: S.US.ECL | D186: =RTD("cqg.rtd", ,"ContractData",C186, "LongDescription",, "T") -> Ecolab Inc | E186: =RTD("cqg.rtd", ,"ContractData",C186, "Open",, "T") -> 128.3 | F186: =RTD("cqg.rtd", ,"ContractData",C186, "High",, "T") -> 129.78 | G186: =RTD("cqg.rtd", ,"ContractData",C186, "Low",, "T") -> 128.07 | H186: =RTD("cqg.rtd", ,"ContractData",C186, "LastTradeToday",, "T") -> 129.12 | I186: =RTD("cqg.rtd", ,"ContractData",C186, "NetLastTradeToday",, "T") -> 1.07 | J186: =IFERROR(RTD("cqg.rtd", ,"ContractData",C186, "PerCentNetLastTrade",, "T")/100,"") -> 0.008356110894 | K186: =RTD("cqg.rtd", ,"ContractData", C186, "T_CVol",, "T") -> 404551 | L186: 186 | M186: =IFERROR(RANK($J186,$J$1:J$607)+COUNTIF($J$1:J186,J186)-1,"") -> 131 | N186: S.US.ECL | O186: S.US.URBN | P186: =RTD("cqg.rtd", ,"ContractData",O186, "PerCentNetLastTrade",, "T")/100 -> 0.006379585327 | Q186: https://finance.yahoo.com/quote/URBN | S186: 0.006379585327 | V186: =RTD("cqg.rtd", ,"ContractData",O186, "LongDescription",, "T") -> Urban Outfitters Inc | Y186: 0.006379585327 | AA186: 1 | AB186: 1 | AD186: 0.006379585327
C187: S.US.EEFT | D187: =RTD("cqg.rtd", ,"ContractData",C187, "LongDescription",, "T") -> Euronet Worldwide Inc | E187: =RTD("cqg.rtd", ,"ContractData",C187, "Open",, "T") -> 83.94 | F187: =RTD("cqg.rtd", ,"ContractData",C187, "High",, "T") -> 84.56 | G187: =RTD("cqg.rtd", ,"ContractData",C187, "Low",, "T") -> 83.62 | H187: =RTD("cqg.rtd", ,"ContractData",C187, "LastTradeToday",, "T") -> 84.4 | I187: =RTD("cqg.rtd", ,"ContractData",C187, "NetLastTradeToday",, "T") -> 0.57 | J187: =IFERROR(RTD("cqg.rtd", ,"ContractData",C187, "PerCentNetLastTrade",, "T")/100,"") -> 0.006799475128 | K187: =RTD("cqg.rtd", ,"ContractData", C187, "T_CVol",, "T") -> 76902 | L187: 187 | M187: =IFERROR(RANK($J187,$J$1:J$607)+COUNTIF($J$1:J187,J187)-1,"") -> 174 | N187: S.US.EEFT | O187: S.US.HXL | P187: =RTD("cqg.rtd", ,"ContractData",O187, "PerCentNetLastTrade",, "T")/100 -> 0.0063605645 | Q187: https://finance.yahoo.com/quote/HXL | S187: 0.0063605645 | V187: =RTD("cqg.rtd", ,"ContractData",O187, "LongDescription",, "T") -> Hexcel Corp | Y187: 0.0063605645 | AA187: 1 | AB187: 1 | AD187: 0.0063605645
C188: S.US.EFX | D188: =RTD("cqg.rtd", ,"ContractData",C188, "LongDescription",, "T") -> Equifax Inc | E188: =RTD("cqg.rtd", ,"ContractData",C188, "Open",, "T") -> 136.75 | F188: =RTD("cqg.rtd", ,"ContractData",C188, "High",, "T") -> 137.32 | G188: =RTD("cqg.rtd", ,"ContractData",C188, "Low",, "T") -> 135.76 | H188: =RTD("cqg.rtd", ,"ContractData",C188, "LastTradeToday",, "T") -> 136.1 | I188: =RTD("cqg.rtd", ,"ContractData",C188, "NetLastTradeToday",, "T") -> -0.66 | J188: =IFERROR(RTD("cqg.rtd", ,"ContractData",C188, "PerCentNetLastTrade",, "T")/100,"") -> -0.004825972507 | K188: =RTD("cqg.rtd", ,"ContractData", C188, "T_CVol",, "T") -> 225037 | L188: 188 | M188: =IFERROR(RANK($J188,$J$1:J$607)+COUNTIF($J$1:J188,J188)-1,"") -> 478 | N188: S.US.EFX | O188: S.US.CBS | P188: =RTD("cqg.rtd", ,"ContractData",O188, "PerCentNetLastTrade",, "T")/100 -> 0.006344558321 | Q188: https://finance.yahoo.com/quote/CBS | S188: 0.006344558321 | V188: =RTD("cqg.rtd", ,"ContractData",O188, "LongDescription",, "T") -> CBS Corporation | Y188: 0.006344558321 | AA188: 1 | AB188: 1 | AD188: 0.006344558321
C189: S.US.EL | D189: =RTD("cqg.rtd", ,"ContractData",C189, "LongDescription",, "T") -> Estee Lauder Companies | E189: =RTD("cqg.rtd", ,"ContractData",C189, "Open",, "T") -> 92.34 | F189: =RTD("cqg.rtd", ,"ContractData",C189, "High",, "T") -> 92.96 | G189: =RTD("cqg.rtd", ,"ContractData",C189, "Low",, "T") -> 92.13 | H189: =RTD("cqg.rtd", ,"ContractData",C189, "LastTradeToday",, "T") -> 92.88 | I189: =RTD("cqg.rtd", ,"ContractData",C189, "NetLastTradeToday",, "T") -> 0.89 | J189: =IFERROR(RTD("cqg.rtd", ,"ContractData",C189, "PerCentNetLastTrade",, "T")/100,"") -> 0.00967496467 | K189: =RTD("cqg.rtd", ,"ContractData", C189, "T_CVol",, "T") -> 618574 | L189: 189 | M189: =IFERROR(RANK($J189,$J$1:J$607)+COUNTIF($J$1:J189,J189)-1,"") -> 110 | N189: S.US.EL | O189: S.US.D | P189: =RTD("cqg.rtd", ,"ContractData",O189, "PerCentNetLastTrade",, "T")/100 -> 0.006147283904 | Q189: https://finance.yahoo.com/quote/D | S189: 0.006147283904 | V189: =RTD("cqg.rtd", ,"ContractData",O189, "LongDescription",, "T") -> Dominion Energy, Inc. | Y189: 0.006147283904 | AA189: 1 | AB189: 1 | AD189: 0.006147283904
C190: S.US.ELS | D190: =RTD("cqg.rtd", ,"ContractData",C190, "LongDescription",, "T") -> Equity Lifestyle Property Inc | E190: =RTD("cqg.rtd", ,"ContractData",C190, "Open",, "T") -> 85.38 | F190: =RTD("cqg.rtd", ,"ContractData",C190, "High",, "T") -> 85.94 | G190: =RTD("cqg.rtd", ,"ContractData",C190, "Low",, "T") -> 85.14 | H190: =RTD("cqg.rtd", ,"ContractData",C190, "LastTradeToday",, "T") -> 85.89 | I190: =RTD("cqg.rtd", ,"ContractData",C190, "NetLastTradeToday",, "T") -> 0.75 | J190: =IFERROR(RTD("cqg.rtd", ,"ContractData",C190, "PerCentNetLastTrade",, "T")/100,"") -> 0.008809020437 | K190: =RTD("cqg.rtd", ,"ContractData", C190, "T_CVol",, "T") -> 89676 | L190: 190 | M190: =IFERROR(RANK($J190,$J$1:J$607)+COUNTIF($J$1:J190,J190)-1,"") -> 126 | N190: S.US.ELS | O190: S.US.HSY | P190: =RTD("cqg.rtd", ,"ContractData",O190, "PerCentNetLastTrade",, "T")/100 -> 0.006098638855 | Q190: https://finance.yahoo.com/quote/HSY | S190: 0.006098638855 | V190: =RTD("cqg.rtd", ,"ContractData",O190, "LongDescription",, "T") -> Hershey Foods Corp | Y190: 0.006098638855 | AA190: 1 | AB190: 1 | AD190: 0.006098638855
C191: S.US.EMR | D191: =RTD("cqg.rtd", ,"ContractData",C191, "LongDescription",, "T") -> Emerson Electric Co | E191: =RTD("cqg.rtd", ,"ContractData",C191, "Open",, "T") -> 59.49 | F191: =RTD("cqg.rtd", ,"ContractData",C191, "High",, "T") -> 60.45 | G191: =RTD("cqg.rtd", ,"ContractData",C191, "Low",, "T") -> 59.34 | H191: =RTD("cqg.rtd", ,"ContractData",C191, "LastTradeToday",, "T") -> 59.72 | I191: =RTD("cqg.rtd", ,"ContractData",C191, "NetLastTradeToday",, "T") -> 0.48 | J191: =IFERROR(RTD("cqg.rtd", ,"ContractData",C191, "PerCentNetLastTrade",, "T")/100,"") -> 0.008102633356 | K191: =RTD("cqg.rtd", ,"ContractData", C191, "T_CVol",, "T") -> 2128089 | L191: 191 | M191: =IFERROR(RANK($J191,$J$1:J$607)+COUNTIF($J$1:J191,J191)-1,"") -> 136 | N191: S.US.EMR | O191: S.US.GRPN | P191: =RTD("cqg.rtd", ,"ContractData",O191, "PerCentNetLastTrade",, "T")/100 -> 0.006097560976 | Q191: https://finance.yahoo.com/quote/GRPN | S191: 0.006097560976 | V191: =RTD("cqg.rtd", ,"ContractData",O191, "LongDescription",, "T") -> Groupon, Inc. | Y191: 0.006097560976 | AA191: 1 | AB191: 1 | AD191: 0.006097560976
C192: S.US.ENR | D192: =RTD("cqg.rtd", ,"ContractData",C192, "LongDescription",, "T") -> Energizer Holdings, Inc. | E192: =RTD("cqg.rtd", ,"ContractData",C192, "Open",, "T") -> 53.56 | F192: =RTD("cqg.rtd", ,"ContractData",C192, "High",, "T") -> 54.23 | G192: =RTD("cqg.rtd", ,"ContractData",C192, "Low",, "T") -> 53.29 | H192: =RTD("cqg.rtd", ,"ContractData",C192, "LastTradeToday",, "T") -> 54.15 | I192: =RTD("cqg.rtd", ,"ContractData",C192, "NetLastTradeToday",, "T") -> 0.77 | J192: =IFERROR(RTD("cqg.rtd", ,"ContractData",C192, "PerCentNetLastTrade",, "T")/100,"") -> 0.01442487823 | K192: =RTD("cqg.rtd", ,"ContractData", C192, "T_CVol",, "T") -> 165878 | L192: 192 | M192: =IFERROR(RANK($J192,$J$1:J$607)+COUNTIF($J$1:J192,J192)-1,"") -> 58 | N192: S.US.ENR | O192: S.US.KHC | P192: =RTD("cqg.rtd", ,"ContractData",O192, "PerCentNetLastTrade",, "T")/100 -> 0.006095569827 | Q192: https://finance.yahoo.com/quote/KHC | S192: 0.006095569827 | V192: =RTD("cqg.rtd", ,"ContractData",O192, "LongDescription",, "T") -> The Kraft Heinz Company | Y192: 0.006095569827 | AA192: 1 | AB192: 1 | AD192: 0.006095569827
C193: S.US.EOG | D193: =RTD("cqg.rtd", ,"ContractData",C193, "LongDescription",, "T") -> EOG Resources | E193: =RTD("cqg.rtd", ,"ContractData",C193, "Open",, "T") -> 92.37 | F193: =RTD("cqg.rtd", ,"ContractData",C193, "High",, "T") -> 93.39 | G193: =RTD("cqg.rtd", ,"ContractData",C193, "Low",, "T") -> 92.31 | H193: =RTD("cqg.rtd", ,"ContractData",C193, "LastTradeToday",, "T") -> 92.54 | I193: =RTD("cqg.rtd", ,"ContractData",C193, "NetLastTradeToday",, "T") -> 0.01 | J193: =IFERROR(RTD("cqg.rtd", ,"ContractData",C193, "PerCentNetLastTrade",, "T")/100,"") -> 0.0001080730574 | K193: =RTD("cqg.rtd", ,"ContractData", C193, "T_CVol",, "T") -> 1610564 | L193: 193 | M193: =IFERROR(RANK($J193,$J$1:J$607)+COUNTIF($J$1:J193,J193)-1,"") -> 381 | N193: S.US.EOG | O193: S.US.NUS | P193: =RTD("cqg.rtd", ,"ContractData",O193, "PerCentNetLastTrade",, "T")/100 -> 0.005979344084 | Q193: https://finance.yahoo.com/quote/NUS | S193: 0.005979344084 | V193: =RTD("cqg.rtd", ,"ContractData",O193, "LongDescription",, "T") -> Nu Skin Asia Pacific Inc | Y193: 0.005979344084 | AA193: 1 | AB193: 1 | AD193: 0.005979344084
C194: S.US.EQIX | D194: =RTD("cqg.rtd", ,"ContractData",C194, "LongDescription",, "T") -> Equinix Inc | E194: =RTD("cqg.rtd", ,"ContractData",C194, "Open",, "T") -> 434.94 | F194: =RTD("cqg.rtd", ,"ContractData",C194, "High",, "T") -> 441.72 | G194: =RTD("cqg.rtd", ,"ContractData",C194, "Low",, "T") -> 434.94 | H194: =RTD("cqg.rtd", ,"ContractData",C194, "LastTradeToday",, "T") -> 440.89 | I194: =RTD("cqg.rtd", ,"ContractData",C194, "NetLastTradeToday",, "T") -> 5.1 | J194: =IFERROR(RTD("cqg.rtd", ,"ContractData",C194, "PerCentNetLastTrade",, "T")/100,"") -> 0.01170288442 | K194: =RTD("cqg.rtd", ,"ContractData", C194, "T_CVol",, "T") -> 244977 | L194: 194 | M194: =IFERROR(RANK($J194,$J$1:J$607)+COUNTIF($J$1:J194,J194)-1,"") -> 82 | N194: S.US.EQIX | O194: =VLOOKUP($L194,$M$1:$N$607,2,FALSE) -> S.US.FLO | P194: =RTD("cqg.rtd", ,"ContractData",O194, "PerCentNetLastTrade",, "T")/100 -> 0.005926724138 | Q194: ="https://finance.yahoo.com/quote/"&RIGHT(O194,(LEN(O194)-5)) -> https://finance.yahoo.com/quote/FLO | S194: 0.005926724138 | V194: =RTD("cqg.rtd", ,"ContractData",O194, "LongDescription",, "T") -> Flowers Industries Inc | Y194: 0.005926724138 | AA194: 1 | AB194: 1 | AD194: 0.005926724138
C195: S.US.ERIE | D195: =RTD("cqg.rtd", ,"ContractData",C195, "LongDescription",, "T") -> Erie Indemnity Co | E195: =RTD("cqg.rtd", ,"ContractData",C195, "Open",, "T") -> 116.79 | F195: =RTD("cqg.rtd", ,"ContractData",C195, "High",, "T") -> 116.98 | G195: =RTD("cqg.rtd", ,"ContractData",C195, "Low",, "T") -> 115.43 | H195: =RTD("cqg.rtd", ,"ContractData",C195, "LastTradeToday",, "T") -> 116.29 | I195: =RTD("cqg.rtd", ,"ContractData",C195, "NetLastTradeToday",, "T") -> -0.92 | J195: =IFERROR(RTD("cqg.rtd", ,"ContractData",C195, "PerCentNetLastTrade",, "T")/100,"") -> -0.007849159628 | K195: =RTD("cqg.rtd", ,"ContractData", C195, "T_CVol",, "T") -> 10491 | L195: =L194+1 -> 195 | M195: =IFERROR(RANK($J195,$J$1:J$607)+COUNTIF($J$1:J195,J195)-1,"") -> 521 | N195: S.US.ERIE | O195: S.US.TDG | P195: =RTD("cqg.rtd", ,"ContractData",O195, "PerCentNetLastTrade",, "T")/100 -> 0.005925250684 | Q195: https://finance.yahoo.com/quote/TDG | S195: 0.005925250684 | V195: =RTD("cqg.rtd", ,"ContractData",O195, "LongDescription",, "T") -> TransDigm Group | Y195: 0.005925250684 | AA195: 1 | AB195: 1 | AD195: 0.005925250684
C196: S.US.ESRT | D196: =RTD("cqg.rtd", ,"ContractData",C196, "LongDescription",, "T") -> Empire State Realty Trust, Inc. | E196: =RTD("cqg.rtd", ,"ContractData",C196, "Open",, "T") -> 20.77 | F196: =RTD("cqg.rtd", ,"ContractData",C196, "High",, "T") -> 21.01 | G196: =RTD("cqg.rtd", ,"ContractData",C196, "Low",, "T") -> 20.75 | H196: =RTD("cqg.rtd", ,"ContractData",C196, "LastTradeToday",, "T") -> 20.96 | I196: =RTD("cqg.rtd", ,"ContractData",C196, "NetLastTradeToday",, "T") -> 0.2 | J196: =IFERROR(RTD("cqg.rtd", ,"ContractData",C196, "PerCentNetLastTrade",, "T")/100,"") -> 0.009633911368 | K196: =RTD("cqg.rtd", ,"ContractData", C196, "T_CVol",, "T") -> 347802 | L196: 196 | M196: =IFERROR(RANK($J196,$J$1:J$607)+COUNTIF($J$1:J196,J196)-1,"") -> 111 | N196: S.US.ESRT | O196: S.US.GRA | P196: =RTD("cqg.rtd", ,"ContractData",O196, "PerCentNetLastTrade",, "T")/100 -> 0.005885650224 | Q196: https://finance.yahoo.com/quote/GRA | S196: 0.005885650224 | V196: =RTD("cqg.rtd", ,"ContractData",O196, "LongDescription",, "T") -> Grace (WR) & Co New | Y196: 0.005885650224 | AA196: 1 | AB196: 1 | AD196: 0.005885650224
C197: S.US.ESRX | D197: =RTD("cqg.rtd", ,"ContractData",C197, "LongDescription",, "T") -> Express Scripts Holding Company | E197: =RTD("cqg.rtd", ,"ContractData",C197, "Open",, "T") -> 59.97 | F197: =RTD("cqg.rtd", ,"ContractData",C197, "High",, "T") -> 60.33 | G197: =RTD("cqg.rtd", ,"ContractData",C197, "Low",, "T") -> 59.6 | H197: =RTD("cqg.rtd", ,"ContractData",C197, "LastTradeToday",, "T") -> 59.79 | I197: =RTD("cqg.rtd", ,"ContractData",C197, "NetLastTradeToday",, "T") -> -0.36 | J197: =IFERROR(RTD("cqg.rtd", ,"ContractData",C197, "PerCentNetLastTrade",, "T")/100,"") -> -0.005985037406 | K197: =RTD("cqg.rtd", ,"ContractData", C197, "T_CVol",, "T") -> 1720339 | L197: 197 | M197: =IFERROR(RANK($J197,$J$1:J$607)+COUNTIF($J$1:J197,J197)-1,"") -> 496 | N197: S.US.ESRX | O197: S.US.ARRS | P197: =RTD("cqg.rtd", ,"ContractData",O197, "PerCentNetLastTrade",, "T")/100 -> 0.00584154801 | Q197: https://finance.yahoo.com/quote/ARRS | S197: 0.00584154801 | V197: =RTD("cqg.rtd", ,"ContractData",O197, "LongDescription",, "T") -> ARRIS International plc | Y197: 0.00584154801 | AA197: 1 | AB197: 1 | AD197: 0.00584154801
C198: S.US.ESS | D198: =RTD("cqg.rtd", ,"ContractData",C198, "LongDescription",, "T") -> Essex Property Trust Inc | E198: =RTD("cqg.rtd", ,"ContractData",C198, "Open",, "T") -> 252.56 | F198: =RTD("cqg.rtd", ,"ContractData",C198, "High",, "T") -> 257.22 | G198: =RTD("cqg.rtd", ,"ContractData",C198, "Low",, "T") -> 252.18 | H198: =RTD("cqg.rtd", ,"ContractData",C198, "LastTradeToday",, "T") -> 256.54 | I198: =RTD("cqg.rtd", ,"ContractData",C198, "NetLastTradeToday",, "T") -> 4.61 | J198: =IFERROR(RTD("cqg.rtd", ,"ContractData",C198, "PerCentNetLastTrade",, "T")/100,"") -> 0.01829873378 | K198: =RTD("cqg.rtd", ,"ContractData", C198, "T_CVol",, "T") -> 236143 | L198: 198 | M198: =IFERROR(RANK($J198,$J$1:J$607)+COUNTIF($J$1:J198,J198)-1,"") -> 32 | N198: S.US.ESS | O198: S.US.VTR | P198: =RTD("cqg.rtd", ,"ContractData",O198, "PerCentNetLastTrade",, "T")/100 -> 0.005777777778 | Q198: https://finance.yahoo.com/quote/VTR | S198: 0.005777777778 | V198: =RTD("cqg.rtd", ,"ContractData",O198, "LongDescription",, "T") -> Ventas Inc | Y198: 0.005777777778 | AA198: 1 | AB198: 1 | AD198: 0.005777777778
C199: S.US.EV | D199: =RTD("cqg.rtd", ,"ContractData",C199, "LongDescription",, "T") -> Eaton Vance Corp | E199: =RTD("cqg.rtd", ,"ContractData",C199, "Open",, "T") -> 45.18 | F199: =RTD("cqg.rtd", ,"ContractData",C199, "High",, "T") -> 46.96 | G199: =RTD("cqg.rtd", ,"ContractData",C199, "Low",, "T") -> 45.11 | H199: =RTD("cqg.rtd", ,"ContractData",C199, "LastTradeToday",, "T") -> 46.6 | I199: =RTD("cqg.rtd", ,"ContractData",C199, "NetLastTradeToday",, "T") -> 1.42 | J199: =IFERROR(RTD("cqg.rtd", ,"ContractData",C199, "PerCentNetLastTrade",, "T")/100,"") -> 0.03142983621 | K199: =RTD("cqg.rtd", ,"ContractData", C199, "T_CVol",, "T") -> 503627 | L199: 199 | M199: =IFERROR(RANK($J199,$J$1:J$607)+COUNTIF($J$1:J199,J199)-1,"") -> 10 | N199: S.US.EV | O199: S.US.WM | P199: =RTD("cqg.rtd", ,"ContractData",O199, "PerCentNetLastTrade",, "T")/100 -> 0.005632216277 | Q199: https://finance.yahoo.com/quote/WM | S199: 0.005632216277 | V199: =RTD("cqg.rtd", ,"ContractData",O199, "LongDescription",, "T") -> Waste Mgmt Inc New | Y199: 0.005632216277 | AA199: 1 | AB199: 1 | AD199: 0.005632216277
C200: S.US.EVHC | D200: =RTD("cqg.rtd", ,"ContractData",C200, "LongDescription",, "T") -> Envision Healthcare Corporation | E200: =RTD("cqg.rtd", ,"ContractData",C200, "Open",, "T") -> 55.43 | F200: =RTD("cqg.rtd", ,"ContractData",C200, "High",, "T") -> 55.74 | G200: =RTD("cqg.rtd", ,"ContractData",C200, "Low",, "T") -> 55.13 | H200: =RTD("cqg.rtd", ,"ContractData",C200, "LastTradeToday",, "T") -> 55.55 | I200: =RTD("cqg.rtd", ,"ContractData",C200, "NetLastTradeToday",, "T") -> -0.01 | J200: =IFERROR(RTD("cqg.rtd", ,"ContractData",C200, "PerCentNetLastTrade",, "T")/100,"") -> -0.0001799856012 | K200: =RTD("cqg.rtd", ,"ContractData", C200, "T_CVol",, "T") -> 218577 | L200: 200 | M200: =IFERROR(RANK($J200,$J$1:J$607)+COUNTIF($J$1:J200,J200)-1,"") -> 393 | N200: S.US.EVHC | O200: S.US.HCA | P200: =RTD("cqg.rtd", ,"ContractData",O200, "PerCentNetLastTrade",, "T")/100 -> 0.005614549005 | Q200: https://finance.yahoo.com/quote/HCA | S200: 0.005614549005 | V200: =RTD("cqg.rtd", ,"ContractData",O200, "LongDescription",, "T") -> HCA Holdings Inc. | Y200: 0.005614549005 | AA200: 1 | AB200: 1 | AD200: 0.005614549005
... 409 more rows
